Workbook

Sheet Infos
A1: Présentation du générateur de codes d'éco-participation 2025
A6: Créer les codes pour l'application de l'éco-participation sur les Articles de Bricolage et de Jardin (ABJ)
A7: Version 2.1 - 1er mars 2025
A8: Mise à jour des tarifs applicables au 1er janvier 2025 Ajout des codes éco-modulés et de la codification simplifiée 2025
A10: A qui s’adresse cet outil ?
A11: Cet outil s'adresse aux metteurs sur le marché d'Articles de Bricolage et de Jardin (ABJ)
A13: A quoi sert-il ?
A14: Ce fichier permet de générer les codes produits qui servent à déclarer les mises en marché. Ces codes produits permettent d'appliquer le tarif de l'éco-participation aux Articles de Bricolage et de Jardin (ABJ) en fonction de leurs caractéristiques.
A15: Pour comprendre comment est constitué ce code produit à 11 chiffres, cliquez sur l’onglet « Comprendre la codification »
A17: Comment générer un code produit ?
A18: Pour générer un code produit cliquez sur l’onglet « Générateur code produit »
A19: Attention : Pour être certain de renseigner les bons codes lors de votre déclaration, utilisez l'onglet « Générateur code produit » et la fonction « copier-coller » en sélectionnant « collage spécial valeur absolue ».
A21: Déclarer l’éco-participation
A23: A quel moment faire votre déclaration ?
A24: Pour les déclarations trimestrielles, celles-ci doivent être faites le mois suivant chaque trimestre calendaire (avril pour le T1, juillet pour le T2, octobre pour le T3 et janvier pour le T4).
A25: Pour les déclarations annuelles, la déclaration est à réaliser en janvier N+1
A26: Si vous déclarez des codes éco-modulés ou ouvrant droit à une prime d'incorporation des éléments de preuve supplémentaires peuvent être nécessaire. Il est conseillé de se reporter au guide Ecomodulation pour compléter la déclaration.
A28: Comment faire votre déclaration (avec les codes produits) ?
A29: La déclaration des mises en marché avec les codes produits se fait par saisie ou chargement d'un fichier* format .csv sur l'Extranet : https://espace-services.ecomaison.com/ *Vous pouvez télécharger le fichier type dans la rubrique Déclarations.
A32: > Pour savoir comment effectuer votre déclaration, consultez le mode opératoire complet :
A33: https://espace-services.ecomaison.com/mode-operatoire-declarer

Sheet Périmètre
B1: =MID(CELL("filename",A1),FIND("]",CELL("filename",A1))+1,256) -> Périmètre
B4: ARTICLES DE BRICOLAGE ET DE JARDIN - ABJ | E4: POUR INFORMATION - AGREMENT EN COURS (fin 2027)
B6: Articles de bricolage
B8: 100 | C8: Outillage à main et leurs accessoires
C10: Rayon | D10: Catégorie | E10: Exemples de produits (non-exhaustif)
C11: =$B$6 -> Articles de bricolage | D11: =$C$8 -> Outillage à main et leurs accessoires | E11: abrasifs en feuilles, en roulleaux…)
C12: Articles de bricolage | D12: =$C$8 -> Outillage à main et leurs accessoires | E12: agrafeuse
C13: Articles de bricolage | D13: =$C$8 -> Outillage à main et leurs accessoires | E13: arrache-liteaux
C14: Articles de bricolage | D14: =$C$8 -> Outillage à main et leurs accessoires | E14: bande de ponçage
C15: Articles de bricolage | D15: Outillage à main et leurs accessoires | E15: barre à creuser
C16: Articles de bricolage | D16: Outillage à main et leurs accessoires | E16: barre à mine
C17: Articles de bricolage | D17: Outillage à main et leurs accessoires | E17: bédane
C18: Articles de bricolage | D18: Outillage à main et leurs accessoires | E18: boites et scies a onglets
C19: Articles de bricolage | D19: Outillage à main et leurs accessoires | E19: burin
C20: Articles de bricolage | D20: Outillage à main et leurs accessoires | E20: cale de ponçage
C21: Articles de bricolage | D21: Outillage à main et leurs accessoires | E21: chevillette
C22: Articles de bricolage | D22: =$C$8 -> Outillage à main et leurs accessoires | E22: ciseaux
C23: Articles de bricolage | D23: =$C$8 -> Outillage à main et leurs accessoires | E23: ciseaux à bois
C24: Articles de bricolage | D24: Outillage à main et leurs accessoires | E24: ciseaux à brique
C25: Articles de bricolage | D25: Outillage à main et leurs accessoires | E25: Cle a molette
C26: =$B$6 -> Articles de bricolage | D26: =$C$8 -> Outillage à main et leurs accessoires | E26: clé à pipe
C27: Articles de bricolage | D27: Outillage à main et leurs accessoires | E27: clé diverses
C28: Articles de bricolage | D28: Outillage à main et leurs accessoires | E28: clé dynamométrique
C29: Articles de bricolage | D29: Outillage à main et leurs accessoires | E29: clé mixte
C30: Articles de bricolage | D30: Outillage à main et leurs accessoires | E30: Cle suedoise ou cle serre tube
C31: Articles de bricolage | D31: Outillage à main et leurs accessoires | E31: cliquets
C32: Articles de bricolage | D32: Outillage à main et leurs accessoires | E32: coupe tube
C33: Articles de bricolage | D33: Outillage à main et leurs accessoires | E33: Couteau
C34: Articles de bricolage | D34: Outillage à main et leurs accessoires | E34: couteau à asphalte
C35: Articles de bricolage | D35: Outillage à main et leurs accessoires | E35: couteau à enduire
C36: Articles de bricolage | D36: Outillage à main et leurs accessoires | E36: couteau de bricolage , couteau de poche
C37: Articles de bricolage | D37: Outillage à main et leurs accessoires | E37: cutter
C38: Articles de bricolage | D38: Outillage à main et leurs accessoires | E38: douilles
C39: Articles de bricolage | D39: Outillage à main et leurs accessoires | E39: embouts de vissage
C40: Articles de bricolage | D40: Outillage à main et leurs accessoires | E40: emporte pieces
C41: Articles de bricolage | D41: Outillage à main et leurs accessoires | E41: éponge abrasive
C42: Articles de bricolage | D42: =$C$8 -> Outillage à main et leurs accessoires | E42: Eponge gros travaux
C43: Articles de bricolage | D43: =$C$8 -> Outillage à main et leurs accessoires | E43: equerre (outil)
C44: Articles de bricolage | D44: =$C$8 -> Outillage à main et leurs accessoires | E44: etais
C45: Articles de bricolage | D45: =$C$8 -> Outillage à main et leurs accessoires | E45: etancheur
C46: Articles de bricolage | D46: Outillage à main et leurs accessoires | E46: Extracteur et lisseur de joint
C47: Articles de bricolage | D47: =$C$8 -> Outillage à main et leurs accessoires | E47: fil à plomb
C48: Articles de bricolage | D48: =$C$8 -> Outillage à main et leurs accessoires | E48: grattoirs
C49: Articles de bricolage | D49: =$C$8 -> Outillage à main et leurs accessoires | E49: grattoirs à béton
C50: Articles de bricolage | D50: =$C$8 -> Outillage à main et leurs accessoires | E50: griffe à cintrer
C51: Articles de bricolage | D51: Outillage à main et leurs accessoires | E51: griffe de zingueur
C52: Articles de bricolage | D52: Outillage à main et leurs accessoires | E52: lame
C53: Articles de bricolage | D53: Outillage à main et leurs accessoires | E53: lame de scie
C54: Articles de bricolage | D54: Outillage à main et leurs accessoires | E54: limes et limes de précision
C55: Articles de bricolage | D55: Outillage à main et leurs accessoires | E55: lisseur de joints
C56: Articles de bricolage | D56: Outillage à main et leurs accessoires | E56: Machoire a sertir
C57: Articles de bricolage | D57: Outillage à main et leurs accessoires | E57: maillet
C58: Articles de bricolage | D58: Outillage à main et leurs accessoires | E58: maillet de pavage
C59: Articles de bricolage | D59: Outillage à main et leurs accessoires | E59: marteau
C60: Articles de bricolage | D60: Outillage à main et leurs accessoires | E60: marteau de pavage
C61: Articles de bricolage | D61: Outillage à main et leurs accessoires | E61: masses
C62: Articles de bricolage | D62: =$C$8 -> Outillage à main et leurs accessoires | E62: massette
C63: Articles de bricolage | D63: Outillage à main et leurs accessoires | E63: mesure de précision
C64: Articles de bricolage | D64: Outillage à main et leurs accessoires | E64: Metre
C65: Articles de bricolage | D65: Outillage à main et leurs accessoires | E65: métrologie
C66: Articles de bricolage | D66: Outillage à main et leurs accessoires | E66: niveau à bulle
C67: Articles de bricolage | D67: Outillage à main et leurs accessoires | E67: Niveaux
C68: Articles de bricolage | D68: Outillage à main et leurs accessoires | E68: outillage aep
C69: Articles de bricolage | D69: Outillage à main et leurs accessoires | E69: outillage de fontainerie
C70: Articles de bricolage | D70: Outillage à main et leurs accessoires | E70: outillage d'électricien
C71: Articles de bricolage | D71: Outillage à main et leurs accessoires | E71: outillage du couvreur
C72: Articles de bricolage | D72: Outillage à main et leurs accessoires | E72: outillage du maçon
C73: Articles de bricolage | D73: Outillage à main et leurs accessoires | E73: outillage pour le travail du bois
C74: Articles de bricolage | D74: Outillage à main et leurs accessoires | E74: outillage spécifique du plâtrier-plaquiste
C75: Articles de bricolage | D75: Outillage à main et leurs accessoires | E75: outils de mesure et de traçage
C76: Articles de bricolage | D76: Outillage à main et leurs accessoires | E76: outils du plombier
C77: Articles de bricolage | D77: Outillage à main et leurs accessoires | E77: outils et accessoires du carreleur
C78: Articles de bricolage | D78: Outillage à main et leurs accessoires | E78: outils pour travaux d'étanchéité
C79: Articles de bricolage | D79: Outillage à main et leurs accessoires | E79: ouvre-caisse
C80: Articles de bricolage | D80: Outillage à main et leurs accessoires | E80: pied de biche
C81: Articles de bricolage | D81: Outillage à main et leurs accessoires | E81: Pince
C82: Articles de bricolage | D82: Outillage à main et leurs accessoires | E82: pince à bec
C83: Articles de bricolage | D83: Outillage à main et leurs accessoires | E83: pince à décoffrer
C84: Articles de bricolage | D84: Outillage à main et leurs accessoires | E84: pince à sertir
C85: Articles de bricolage | D85: Outillage à main et leurs accessoires | E85: pince coupe-boulon
C86: Articles de bricolage | D86: Outillage à main et leurs accessoires | E86: pince de carrelleur
C87: Articles de bricolage | D87: Outillage à main et leurs accessoires | E87: pince monseigneur
C88: =$B$6 -> Articles de bricolage | D88: Outillage à main et leurs accessoires | E88: pince rivet
C89: Articles de bricolage | D89: Outillage à main et leurs accessoires | E89: pioche à bec, pioche de terrassement
C90: Articles de bricolage | D90: Outillage à main et leurs accessoires | E90: pioche de terrassement
C91: Articles de bricolage | D91: =$C$8 -> Outillage à main et leurs accessoires | E91: pistolet à cartouche
C92: Articles de bricolage | D92: Outillage à main et leurs accessoires | E92: pistolet à colle
C93: Articles de bricolage | D93: Outillage à main et leurs accessoires | E93: pistolet à poche
C94: Articles de bricolage | D94: Outillage à main et leurs accessoires | E94: pointe à tracer
C95: Articles de bricolage | D95: Outillage à main et leurs accessoires | E95: pointeau
C96: Articles de bricolage | D96: Outillage à main et leurs accessoires | E96: pointerolle
C97: Articles de bricolage | D97: Outillage à main et leurs accessoires | E97: pointes
C98: Articles de bricolage | D98: Outillage à main et leurs accessoires | E98: presses
C99: Articles de bricolage | D99: Outillage à main et leurs accessoires | E99: rabot
C100: Articles de bricolage | D100: Outillage à main et leurs accessoires | E100: rape
C101: Articles de bricolage | D101: Outillage à main et leurs accessoires | E101: Regle de bricolage
C102: Articles de bricolage | D102: Outillage à main et leurs accessoires | E102: règle aluminium
C103: Articles de bricolage | D103: Outillage à main et leurs accessoires | E103: riflard
C104: Articles de bricolage | D104: Outillage à main et leurs accessoires | E104: scie à bois
C105: Articles de bricolage | D105: Outillage à main et leurs accessoires | E105: scie à métaux
C106: =$B$6 -> Articles de bricolage | D106: =$C$8 -> Outillage à main et leurs accessoires | E106: serre-joint
C107: =$B$6 -> Articles de bricolage | D107: =$C$8 -> Outillage à main et leurs accessoires | E107: souflette
C108: Articles de bricolage | D108: Outillage à main et leurs accessoires | E108: taloche
C109: =$B$6 -> Articles de bricolage | D109: =$C$8 -> Outillage à main et leurs accessoires | E109: tamis
C110: =$B$6 -> Articles de bricolage | D110: =$C$8 -> Outillage à main et leurs accessoires | E110: tenaille
C111: =$B$6 -> Articles de bricolage | D111: =$C$8 -> Outillage à main et leurs accessoires | E111: tournevis
C112: Articles de bricolage | D112: Outillage à main et leurs accessoires | E112: traçage et topographie
C113: =$B$6 -> Articles de bricolage | D113: =$C$8 -> Outillage à main et leurs accessoires | E113: treteaux de sciage
C114: Articles de bricolage | D114: Outillage à main et leurs accessoires | E114: Truelle
C115: Articles de bricolage | D115: Outillage à main et leurs accessoires | E115: trusquin
B118: 101 | C118: Gros objets et machines non électriques et non thermiques et leurs accessoires
C120: Rayon | D120: Catégorie | E120: Exemples de produits (non-exhaustif)
C121: =$B$6 -> Articles de bricolage | D121: =$C$118 -> Gros objets et machines non électriques et non thermiques et leurs accessoires | E121: boites encastrement pour appareillage et accessoires
C122: Articles de bricolage | D122: Gros objets et machines non électriques et non thermiques et leurs accessoires | E122: chariot de manutention
C123: Articles de bricolage | D123: Gros objets et machines non électriques et non thermiques et leurs accessoires | E123: Coupe carreaux
C124: Articles de bricolage | D124: Gros objets et machines non électriques et non thermiques et leurs accessoires | E124: coupe carreaux manuel
C125: Articles de bricolage | D125: Gros objets et machines non électriques et non thermiques et leurs accessoires | E125: enclumes
C126: =$B$6 -> Articles de bricolage | D126: =$C$118 -> Gros objets et machines non électriques et non thermiques et leurs accessoires | E126: etaux
C127: =$B$6 -> Articles de bricolage | D127: =$C$118 -> Gros objets et machines non électriques et non thermiques et leurs accessoires | E127: extracteur
C128: Articles de bricolage | D128: Gros objets et machines non électriques et non thermiques et leurs accessoires | E128: leviers de force
C129: Articles de bricolage | D129: Gros objets et machines non électriques et non thermiques et leurs accessoires | E129: lissarde à béton
C130: Articles de bricolage | D130: Gros objets et machines non électriques et non thermiques et leurs accessoires | E130: marteau burineur
C131: Articles de bricolage | D131: Gros objets et machines non électriques et non thermiques et leurs accessoires | E131: mesure longue
C132: Articles de bricolage | D132: Gros objets et machines non électriques et non thermiques et leurs accessoires | E132: mire
C133: Articles de bricolage | D133: Gros objets et machines non électriques et non thermiques et leurs accessoires | E133: nivelle pour mire
C134: Articles de bricolage | D134: Gros objets et machines non électriques et non thermiques et leurs accessoires | E134: outillage de serrage et découpage
C135: Articles de bricolage | D135: Gros objets et machines non électriques et non thermiques et leurs accessoires | E135: outillage lourd de carreleur
C136: Articles de bricolage | D136: Gros objets et machines non électriques et non thermiques et leurs accessoires | E136: outillage pour tuyauterie
C137: Articles de bricolage | D137: Gros objets et machines non électriques et non thermiques et leurs accessoires | E137: outils de terrassement
C138: Articles de bricolage | D138: Gros objets et machines non électriques et non thermiques et leurs accessoires | E138: outils pneumatiques
C139: Articles de bricolage | D139: Gros objets et machines non électriques et non thermiques et leurs accessoires | E139: Pistolet à clou (hors EEE)
C140: =$B$6 -> Articles de bricolage | D140: =$C$118 -> Gros objets et machines non électriques et non thermiques et leurs accessoires | E140: racleur pehd
C141: Articles de bricolage | D141: Gros objets et machines non électriques et non thermiques et leurs accessoires | E141: règle à niveau
B144: 102 | C144: Outils et supports de travail en hauteur
C146: Rayon | D146: Catégorie | E146: Exemples de produits (non-exhaustif)
C147: =$B$6 -> Articles de bricolage | D147: =$C$144 -> Outils et supports de travail en hauteur | E147: accessoires de levage
C148: Articles de bricolage | D148: Outils et supports de travail en hauteur | E148: accessoires de manutention
C149: Articles de bricolage | D149: Outils et supports de travail en hauteur | E149: anneau de levage
C150: Articles de bricolage | D150: Outils et supports de travail en hauteur | E150: crochet de levage
C151: Articles de bricolage | D151: Outils et supports de travail en hauteur | E151: échafaudages et structures tubulaires
C152: Articles de bricolage | D152: Outils et supports de travail en hauteur | E152: échafaudages mobiles
C153: =$B$6 -> Articles de bricolage | D153: =$C$144 -> Outils et supports de travail en hauteur | E153: Echelle
C154: =$B$6 -> Articles de bricolage | D154: =$C$144 -> Outils et supports de travail en hauteur | E154: echelle coulissante
C155: =$B$6 -> Articles de bricolage | D155: =$C$144 -> Outils et supports de travail en hauteur | E155: echelle simple
C156: Articles de bricolage | D156: Outils et supports de travail en hauteur | E156: echelle transformable
C157: Articles de bricolage | D157: Outils et supports de travail en hauteur | E157: échelles téléscopiques
C158: Articles de bricolage | D158: Outils et supports de travail en hauteur | E158: échelles pour chantiers
C159: Articles de bricolage | D159: Outils et supports de travail en hauteur | E159: Escabeau
C160: Articles de bricolage | D160: Outils et supports de travail en hauteur | E160: marche pied, marchepied
C161: Articles de bricolage | D161: Outils et supports de travail en hauteur | E161: Marche pieds
C162: Articles de bricolage | D162: Outils et supports de travail en hauteur | E162: tables élévatrices
C163: Articles de bricolage | D163: Outils et supports de travail en hauteur | E163: treuil
B166: 103 | C166: Equipement personnel et accessoires de protection de bricolage
C168: Rayon | D168: Catégorie | E168: Exemples de produits (non-exhaustif)
C169: =$B$6 -> Articles de bricolage | D169: =$C$166 -> Equipement personnel et accessoires de protection de bricolage | E169: bouchons anti-bruit
C170: Articles de bricolage | D170: =$C$166 -> Equipement personnel et accessoires de protection de bricolage | E170: cartouches pour masques
C171: Articles de bricolage | D171: Equipement personnel et accessoires de protection de bricolage | E171: casque de soudeur
C172: Articles de bricolage | D172: Equipement personnel et accessoires de protection de bricolage | E172: casques de chantier
C173: =$B$6 -> Articles de bricolage | D173: =$C$166 -> Equipement personnel et accessoires de protection de bricolage | E173: Casque de protection
C174: Articles de bricolage | D174: Equipement personnel et accessoires de protection de bricolage | E174: chaussure de protection (ISO 20346 et 20345 : SB, SBP, S1, S1P, S2 et S3)
C175: Articles de bricolage | D175: Equipement personnel et accessoires de protection de bricolage | E175: equipement du corps (visière, genouillère, jambière…)
C176: Articles de bricolage | D176: Equipement personnel et accessoires de protection de bricolage | E176: gants de protection pour le bricolage
C177: Articles de bricolage | D177: Equipement personnel et accessoires de protection de bricolage | E177: Lunettes de protection
C178: Articles de bricolage | D178: Equipement personnel et accessoires de protection de bricolage | E178: masques
C179: Articles de bricolage | D179: Equipement personnel et accessoires de protection de bricolage | E179: protection auditive
C180: Articles de bricolage | D180: Equipement personnel et accessoires de protection de bricolage | E180: protection des yeux
C181: Articles de bricolage | D181: Equipement personnel et accessoires de protection de bricolage | E181: Protection voies respiratoires
B183: 104 | C183: Bâches, housses, filets et films de bricolage
C185: Rayon | D185: Catégorie | E185: Exemples de produits (non-exhaustif)
C186: =B6 -> Articles de bricolage | D186: =$C$183 -> Bâches, housses, filets et films de bricolage | E186: bâche de bricolage
H188: =TRIM((LOWER(E188))) -> 
H189: =TRIM((LOWER(E189))) -> 
H190: =TRIM((LOWER(E190))) -> 
B191: Entretien et aménagement du jardin | H191: =TRIM((LOWER(E191))) -> 
H192: =TRIM((LOWER(E192))) -> 
B193: 150 | C193: Outils à main d’entretien du jardin et petits accessoires
C195: Rayon | D195: Catégorie | E195: Exemples de produits (non-exhaustif)
C196: =$B$191 -> Entretien et aménagement du jardin | D196: =$C$193 -> Outils à main d’entretien du jardin et petits accessoires | E196: accessoires de culture
C197: Entretien et aménagement du jardin | D197: Outils à main d’entretien du jardin et petits accessoires | E197: arrosage goutte à goutte
C198: Entretien et aménagement du jardin | D198: Outils à main d’entretien du jardin et petits accessoires | E198: arroseur
C199: Entretien et aménagement du jardin | D199: Outils à main d’entretien du jardin et petits accessoires | E199: Arrosoir
C200: Entretien et aménagement du jardin | D200: Outils à main d’entretien du jardin et petits accessoires | E200: autres grands outils de jardin
C201: Entretien et aménagement du jardin | D201: Outils à main d’entretien du jardin et petits accessoires | E201: balai à gazon
C202: Entretien et aménagement du jardin | D202: Outils à main d’entretien du jardin et petits accessoires | E202: Balai de jardin
C203: Entretien et aménagement du jardin | D203: Outils à main d’entretien du jardin et petits accessoires | E203: Beche
C204: Entretien et aménagement du jardin | D204: Outils à main d’entretien du jardin et petits accessoires | E204: bisaigue
C205: Entretien et aménagement du jardin | D205: Outils à main d’entretien du jardin et petits accessoires | E205: Brosse
C206: =$B$191 -> Entretien et aménagement du jardin | D206: =$C$193 -> Outils à main d’entretien du jardin et petits accessoires | E206: bucheronnage
C207: Entretien et aménagement du jardin | D207: Outils à main d’entretien du jardin et petits accessoires | E207: buse
C208: Entretien et aménagement du jardin | D208: Outils à main d’entretien du jardin et petits accessoires | E208: Cisaille
C209: Entretien et aménagement du jardin | D209: Outils à main d’entretien du jardin et petits accessoires | E209: cognée
C210: Entretien et aménagement du jardin | D210: Outils à main d’entretien du jardin et petits accessoires | E210: coin éclateur
C211: Entretien et aménagement du jardin | D211: Outils à main d’entretien du jardin et petits accessoires | E211: Coupe branche
C212: Entretien et aménagement du jardin | D212: Outils à main d’entretien du jardin et petits accessoires | E212: coupe-bordure
C213: Entretien et aménagement du jardin | D213: Outils à main d’entretien du jardin et petits accessoires | E213: cueille fruits
C214: Entretien et aménagement du jardin | D214: Outils à main d’entretien du jardin et petits accessoires | E214: Devidoir enrouleur
C215: Entretien et aménagement du jardin | D215: Outils à main d’entretien du jardin et petits accessoires | E215: divers arrosage et pulvérisation
C216: Entretien et aménagement du jardin | D216: Outils à main d’entretien du jardin et petits accessoires | E216: enrouleurs de tuyau d'arrosage
C217: Entretien et aménagement du jardin | D217: Outils à main d’entretien du jardin et petits accessoires | E217: epuisette
C218: Entretien et aménagement du jardin | D218: Outils à main d’entretien du jardin et petits accessoires | E218: équipements d’entretien du jardin
... 158 more rows

Sheet Comprendre la codification
B1: Système de codification ecomaison
B4: ► Un outil de création de tables de correspondance entre votre catalogue et le catalogue produit ecomaison est disponible
B5: ► Les codifications DEA ne sont pas représentées ci-dessous
B8: Structure générale du code
B20: Code Rayon : XX 000 00 000 0
B22: REP | C22: _ | D22: Rayon | E22: _2 | F22: Code Rayon
B24: Articles Bricolage et Jardin - ABJ | D24: Articles de bricolage | F24: 21
B25: Articles Bricolage et Jardin - ABJ | D25: Entretien et aménagement du jardin | F25: 22
B27: Code Catégorie Produit : 00 XXX 00 000 0
B29: REP | C29: _ | D29: Rayon | E29: Catégorie | F29: Code Produit
B31: ABJ | D31: =$D$24 -> Articles de bricolage | E31: Outillage à main et leurs accessoires | F31: 100
B33: ABJ | D33: =$D$24 -> Articles de bricolage | E33: Gros objets et machines non électriques et non thermiques et leurs accessoires | F33: =F31+1 -> 101
B34: ABJ | D34: Articles de bricolage | E34: Outils et supports de travail en hauteur | F34: =F33+1 -> 102
B35: ABJ | D35: Articles de bricolage | E35: Equipement personnel et accessoires de protection de bricolage | F35: 103
B36: ABJ | D36: Articles de bricolage | E36: Bâches, housses, filets et films de bricolage | F36: 104
B37: ABJ | D37: Articles de bricolage | E37: Seaux, auges et contenants | F37: =IF(D37=D36,F36+1,ROUNDUP((F36+1)*2,-1)/2) -> 105
B38: ABJ | D38: =$D$25 -> Entretien et aménagement du jardin | E38: Outils à main d’entretien du jardin et petits accessoires | F38: 150
B39: ABJ | D39: =$D$25 -> Entretien et aménagement du jardin | E39: Equipement personnel et accessoires de protection de jardinage | F39: =F38+1 -> 151
B40: ABJ | D40: =$D$25 -> Entretien et aménagement du jardin | E40: Pots de fleur et contenants | F40: =F39+1 -> 152
B41: ABJ | D41: Entretien et aménagement du jardin | E41: Bâches, housses, filets et films de jardinage | F41: 153
B42: ABJ | D42: Entretien et aménagement du jardin | E42: Equipements de plein air et leurs accessoires (hors bâches, filets, housses) | F42: 154
B43: ABJ | D43: Entretien et aménagement du jardin | E43: Structures extérieures non-maçonnées | F43: 155
B45: Code Matériaux : 00 000 XX 000 0
B47: Type de matériaux | C47: _ | D47: Matériaux | E47: Exemples de matériaux | F47: Code matériaux | G47: Colonne1
B49: 1 - Métal | D49: Métal >90% | E49: Ferreux (Acier, Acier inoxydable, Fer forgé, Fonte, Acier au carbone, acier zingué, tole, alliages…) et non-ferreux (Aluminium, plomb, zinc, étain, chrome, cuivre, bronze, argent, zamac, nickel, titane, laiton...) | F49: 28
B50: 1 - Métal | D50: Assemblage avec métal >50% et autres matériaux | E50: Assemblage métal-bois, métal-plastique, métal-inertes … | F50: 02
B52: 2 - Bois et dérivés de bois | D52: Massif et assimilés certifiés >90% | E52: Toutes essences (douglas, sapin, chène, hêtre, pin maritime, pin sylvestre, moabi , mélèze, teak, épicea ...), dont contreplaqué, contrecollé, lamellé, plaqué | F52: 52
B53: 2 - Bois et dérivés de bois | D53: Massif et assimilés certifiés >75% | E53: Toutes essences (douglas, sapin, chène, hêtre, pin maritime, pin sylvestre, moabi , mélèze, teak, épicea ...), dont contreplaqué, contrecollé, lamellé, plaqué | F53: 20
B54: 2 - Bois et dérivés de bois | D54: Massif et assimilés >90% | E54: Toutes essences (douglas, sapin, chène, hêtre, pin maritime, pin sylvestre, moabi , mélèze, teak, épicea ...), dont contreplaqué, contrecollé, lamellé, plaqué | F54: 53
B55: 2 - Bois et dérivés de bois | D55: Massif et assimilés >75% | E55: Toutes essences (douglas, sapin, chène, hêtre, pin maritime, pin sylvestre, moabi , mélèze, teak, épicea ...), dont contreplaqué, contrecollé, lamellé, plaqué | F55: 21
B56: 2 - Bois et dérivés de bois | D56: Panneaux de particules ou OSB certifiés >90% | E56: Panneaux de particules, OSB | F56: 59
B57: 2 - Bois et dérivés de bois | D57: Panneaux de particules ou OSB certifiés >75% | E57: Panneaux de particules, OSB | F57: 60
B58: 2 - Bois et dérivés de bois | D58: Panneaux de particules ou OSB >90% | E58: Panneaux de particules, OSB | F58: 61
B59: 2 - Bois et dérivés de bois | D59: Panneaux de particules ou OSB >75% | E59: Panneaux de particules, OSB | F59: 25
B60: 2 - Bois et dérivés de bois | D60: Dérivés de bois >90% | E60: Bois composite, MDF, HDF, alvéolaire, stratifé, HPL…. | F60: 62
B61: 2 - Bois et dérivés de bois | D61: Dérivés de bois >90% non certifiés | E61: Bois composite, MDF, HDF, alvéolaire, stratifé, HPL…. | F61: 54
B62: 2 - Bois et dérivés de bois | D62: Assemblage de bois, dérivés de bois à plus de 50% avec d'autres matériaux ou bois composite (hors verre) | E62: Assemblage bois-métal, bois-plastique … | F62: 01
B63: 2 - Bois et dérivés de bois | D63: Assemblage de bois, dérivés de bois à plus de 50% avec d'autres matériaux ou bois composite (hors verre) non certifiés | E63: Assemblage bois-métal, bois-plastique … | F63: 51
B65: 3 - Papier carton | D65: Papier carton >50% avec d'autres matériaux (hors verre) | E65: Papier, Carton, Compact, Papier Kraft | F65: 19
B67: 4 - Matériaux et fibres d'origine végétal ou animal autres que bois et papier, carton | D67: Matériaux bio sourcés ou textiles non synthétiques >90% | E67: Tiges végétales (bambou, rotin, osiers, jute, paille, liège), textiles naturels d'origine végétale non mélangés (coton, lin, chanvre, soie, ramie, fibres de noix de coco, rafia…) | F67: 55
B68: 4 - Matériaux et fibres d'origine végétal ou animal autres que bois et papier, carton | D68: Matériaux bio sourcés ou textiles non synthétiques >50% | E68: Assemblage de matériaux bio sourcés avec du plastique, du métal … | F68: 04
B69: 4 - Matériaux et fibres d'origine végétal ou animal autres que bois et papier, carton | D69: Caoutchouc naturel >90% | E69: Caoutchouc, latex | F69: 63
B70: 4 - Matériaux et fibres d'origine végétal ou animal autres que bois et papier, carton | D70: Caoutchouc naturel >50% | E70: Caoutchouc, latex | F70: 64
B71: 4 - Matériaux et fibres d'origine végétal ou animal autres que bois et papier, carton | D71: Matériaux d'origine animale >50% | E71: Matières textiles ou rembourrages d'origine animale (laine, feutre, mohair, plumes, duvets, poils, cuirs...) | F71: 06
B73: 5 - Plastique, matériaux et fibres synthétiques | D73: Plastiques (mono résine) >90% | E73: Plastiques et autres matériaux synthétiques : acrylique, PP, PE, PS, XPS, EPS, PER, Nylon, Polyamide, PU, PVC, vinyle, époxy, fibres synthétiques, PL, matériaux composites, carbone…. | F73: 41
B74: 5 - Plastique, matériaux et fibres synthétiques | D74: PE ou PP ou mélange PP/PE >90% | E74: Polyéthylène (PE), Polypropylène (PP), mélange PP/PE | F74: 45
B75: 5 - Plastique, matériaux et fibres synthétiques | D75: PVC >90% | F75: 48
B76: 5 - Plastique, matériaux et fibres synthétiques | D76: Polyterephtalate d'Ethylène (PET) >90% | F76: 42
B77: 5 - Plastique, matériaux et fibres synthétiques | D77: ABS >90% | F77: 46
B78: 5 - Plastique, matériaux et fibres synthétiques | D78: Polystyrène >90% | F78: 47
B79: 5 - Plastique, matériaux et fibres synthétiques | D79: Plastiques ou autres matériaux synthétiques >50% | E79: Assemblage de matériaux et textiles synthétiques, ensemble | F79: 05
B80: 5 - Plastique, matériaux et fibres synthétiques | D80: Caoutchouc synthétique >90% | E80: Caoutchouc | F80: 49
B81: 5 - Plastique, matériaux et fibres synthétiques | D81: Eléments contenant du latex | E81: Latex | F81: 10
B82: 5 - Plastique, matériaux et fibres synthétiques | D82: Assemblage caoutchouc synthétique ou latex >50% avec d'autres matériaux | E82: Caoutchouc, latex avec d'autres matériaux synthétiques, du bois, du métal … | F82: 40
B83: 5 - Plastique, matériaux et fibres synthétiques | D83: Matériaux ou fibres synthétiques >90% | E83: Polyamides, nylon, polyester (PES) et polyterephtalate d'Ethylène (PET), viscose, polyester, élastane, mousses … | F83: 65
B84: 5 - Plastique, matériaux et fibres synthétiques | D84: Textile et rembourrage en polyester >90% | E84: Polyester | F84: 66
B85: 5 - Plastique, matériaux et fibres synthétiques | D85: Eléments contenant de la mousse | F85: 09
B86: 5 - Plastique, matériaux et fibres synthétiques | D86: Eléments textiles contenant des ressorts | F86: 11
B87: 5 - Plastique, matériaux et fibres synthétiques | D87: Assemblage matériaux ou fibres synthétiques >50% avec d'autres matériaux | E87: Assemblage de matériaux et textiles synthétiques avec du métal, du bois … | F87: 67
B89: 6 - Verre et parois vitrées | D89: Verre >90% | E89: Verre plat, brique de verre … | F89: 68
B90: 6 - Verre et parois vitrées | D90: Assemblage verre à plus de 50% avec métal | E90: Assemblage de verre avec des métaux | F90: 70
B91: 6 - Verre et parois vitrées | D91: Assemblage verre à plus de 50% avec Inerte | E91: Assemblage de verre avec de l'inerte | F91: 71
B92: 6 - Verre et parois vitrées | D92: Assemblage verre à plus de 50% avec bois ou dérivés de bois | E92: Assemblage de verre avec du bois ou des matériaux biosourcés | F92: 72
B93: 6 - Verre et parois vitrées | D93: Assemblage verre à plus de 50% avec plastique | E93: Assemblage de verre avec du plastique | F93: 73
B94: 6 - Verre et parois vitrées | D94: Miroir >90% | E94: Miroir | F94: 69
B96: 7 - Plâtre | D96: Plâtre >90% | E96: Matière en plâtre, plaque de plâtre (placo) et fibre gypse | F96: 75
B97: 7 - Plâtre | D97: Plâtre >50% | E97: Elément composé majoritaitement de plâtre et associé à d'autres matériaux | F97: 76
B99: 8- Laines de verre et laines de roches | D99: Laines de roche à plus de 90 % | E99: Matière isolante fabriquée à partir d'un matériau naturel issu de l'activité volcanique | F99: 77
B100: 8- Laines de verre et laines de roches | D100: Laine de verre à plus de 90 % | E100: Matière composée de fils de verre, utilisé comme filtrant ou isolant | F100: 78
B101: 8- Laines de verre et laines de roches | D101: Assemblage de laines de verre ou laines de roches à plus de 50% et d'autres matériaux | E101: Elément composé majoritaitement de laine minérale | F101: 79
B103: 9 - Membranes bitumineuses | D103: Membranes bitumineuses à plus de 90 % | E103: Membrane d'étanchéité synthétique | F103: 80
B105: 10 - Autres mix matériaux ou matériaux non classés ou non spécifiés | D105: Assemblage dont la composition conjointe en bois, dérivés de bois et en métal dépasse 90% | F105: 81
B106: 10 - Autres mix matériaux ou matériaux non classés ou non spécifiés | D106: Assemblage de 3 matériaux ou plus sans un matériau à plus de 50% | E106: Elément composé de parties en matériaux divers avec souvent mais non exclusivement une partie de plastique ou de textile synthétique | F106: 82
B107: 10 - Autres mix matériaux ou matériaux non classés ou non spécifiés | D107: Non connu ou non spécifié par l'entreprise | E107: Non connu ou non spécifié par l'entreprise | F107: 00
B109: 11 - Mortiers, enduits, peintures, vernis, résines, produits de préparation | D109: Produits liquides, y.c. dangereux >90% | E109: Sous couches, préparation des sols et étanchéité, Peintures extérieures, Traitement des sols et toitures, Peintures intérieures, Colles et adhésifs, Résines PU et expansive (aérosol), Mastics, joints et mousses PU, Adjuvants, Traitement des bois, Traitement des matériaux (aérosol), Traitement des matériaux hors bois, Vernis et vitrificateurs et dérivés, Vernis et vitrificateurs et dérivés (aérosols), Enduits poudre, Enduits pate | F109: 83
B111: 12 - Matériaux inertes | D111: Assemblage de matériaux avec de l'inerte >50% | F111: 08
B112: 12 - Matériaux inertes | D112: Composites et autres matériaux minéraux reconstitués >50% | F112: 15
B113: 12 - Matériaux inertes | D113: Ardoise >90% | E113: Ardoise | F113: 84
B114: 12 - Matériaux inertes | D114: Granulats hors pierre >90% | E114: Matière minérale de petite taille (granulats, gravillons, sable, grave, gravier, moellon, concassé, …) hors pierre | F114: 85
B115: 12 - Matériaux inertes | D115: Pierre calcaire >90% | E115: Matière minérale de grosse taille, hors granulats, gravillons, sable et hors pierres spécifiques comme l'ardoise | F115: 86
B116: 12 - Matériaux inertes | D116: Lave >90% | F116: 87
B117: 12 - Matériaux inertes | D117: Mélange bitumineux >90% | E117: Matière liquide à base de bitume | F117: 88
B118: 12 - Matériaux inertes | D118: Terre cuite ou crue >90% | E118: Matière terre cuite | F118: 89
B119: 12 - Matériaux inertes | D119: Béton >90% | E119: Assemblage de granulats (graviers, gravillons, sables, etc.), d'un liant (ciment, bitume, argile) d'adjuvants et d'eau | F119: 74
B120: 12 - Matériaux inertes | D120: Béton cellulaire >90% | F120: 96
B121: 12 - Matériaux inertes | D121: Ciment >90% | F121: 90
B122: 12 - Matériaux inertes | D122: Granit >90% | F122: 91
B123: 12 - Matériaux inertes | D123: Céramique >90% | E123: Matière à base de faïence ou grès | F123: 97
B124: 12 - Matériaux inertes | D124: Mortier >90% | F124: 92
B125: 12 - Matériaux inertes | D125: Adjuvants >90% | F125: 93
B126: 12 - Matériaux inertes | D126: Grès >90% | F126: 94
B127: 12 - Matériaux inertes | D127: Chaux >90% | F127: 95
B128: 12 - Matériaux inertes | D128: Pierre artificielle >90% | E128: Matériau obtenu par moulage d'agrégats divers, charges et liants (béton, pierre reconstituée) ou par synthèse chimique | F128: 98
B131: Code Mesure : 00 000 00 XXX 0
B133: Type de mesure | C133: concat | D133: Mode de calcul | E133: Périmètres produits d'application | F133: Code Mesure
C134: =Tbl_Code_Mesure[[#This Row],[Mode de calcul]]&Tbl_Code_Mesure[[#This Row],[Périmètres produits d''application]] -> 
B135: Général | C135: =Tbl_Code_Mesure[[#This Row],[Mode de calcul]]&Tbl_Code_Mesure[[#This Row],[Périmètres produits d''application]] -> € / TonneEléments de toutes dimensions et poids | D135: € / Tonne | E135: Eléments de toutes dimensions et poids | F135: 000
B136: Général | C136: =Tbl_Code_Mesure[[#This Row],[Mode de calcul]]&Tbl_Code_Mesure[[#This Row],[Périmètres produits d''application]] -> € / UnitéInférieur strictement à 0,5 kg | D136: € / Unité | E136: Inférieur strictement à 0,5 kg | F136: 020
B137: Général | C137: =Tbl_Code_Mesure[[#This Row],[Mode de calcul]]&Tbl_Code_Mesure[[#This Row],[Périmètres produits d''application]] -> € / UnitéCompris entre 0,5 kg et 1 kg exclus | D137: € / Unité | E137: Compris entre 0,5 kg et 1 kg exclus | F137: 021
B138: Général | C138: =Tbl_Code_Mesure[[#This Row],[Mode de calcul]]&Tbl_Code_Mesure[[#This Row],[Périmètres produits d''application]] -> € / UnitéCompris entre 1 kg et 2 kg exclus | D138: € / Unité | E138: Compris entre 1 kg et 2 kg exclus | F138: 022
B139: Général | C139: =Tbl_Code_Mesure[[#This Row],[Mode de calcul]]&Tbl_Code_Mesure[[#This Row],[Périmètres produits d''application]] -> € / UnitéCompris entre 2 kg et 3 kg exclus | D139: € / Unité | E139: Compris entre 2 kg et 3 kg exclus | F139: 052
B140: Général | C140: =Tbl_Code_Mesure[[#This Row],[Mode de calcul]]&Tbl_Code_Mesure[[#This Row],[Périmètres produits d''application]] -> € / UnitéCompris entre 3 kg et 5 kg exclus | D140: € / Unité | E140: Compris entre 3 kg et 5 kg exclus | F140: 053
B141: Général | C141: =Tbl_Code_Mesure[[#This Row],[Mode de calcul]]&Tbl_Code_Mesure[[#This Row],[Périmètres produits d''application]] -> € / UnitéCompris entre 5 kg et 7 kg exclus | D141: € / Unité | E141: Compris entre 5 kg et 7 kg exclus | F141: 054
B142: Général | C142: =Tbl_Code_Mesure[[#This Row],[Mode de calcul]]&Tbl_Code_Mesure[[#This Row],[Périmètres produits d''application]] -> € / UnitéCompris entre 7 kg et 10 kg exclus | D142: € / Unité | E142: Compris entre 7 kg et 10 kg exclus | F142: 055
B143: Général | C143: =Tbl_Code_Mesure[[#This Row],[Mode de calcul]]&Tbl_Code_Mesure[[#This Row],[Périmètres produits d''application]] -> € / UnitéCompris entre 10 kg et 15 kg exclus | D143: € / Unité | E143: Compris entre 10 kg et 15 kg exclus | F143: 056
B144: Général | C144: =Tbl_Code_Mesure[[#This Row],[Mode de calcul]]&Tbl_Code_Mesure[[#This Row],[Périmètres produits d''application]] -> € / UnitéCompris entre 15 kg et 20 kg exclus | D144: € / Unité | E144: Compris entre 15 kg et 20 kg exclus | F144: 057
B145: Général | C145: =Tbl_Code_Mesure[[#This Row],[Mode de calcul]]&Tbl_Code_Mesure[[#This Row],[Périmètres produits d''application]] -> € / UnitéCompris entre 20 kg et 25 kg exclus | D145: € / Unité | E145: Compris entre 20 kg et 25 kg exclus | F145: 058
B146: Général | C146: =Tbl_Code_Mesure[[#This Row],[Mode de calcul]]&Tbl_Code_Mesure[[#This Row],[Périmètres produits d''application]] -> € / UnitéCompris entre 25 kg et 30 kg exclus | D146: € / Unité | E146: Compris entre 25 kg et 30 kg exclus | F146: 059
B147: Général | C147: =Tbl_Code_Mesure[[#This Row],[Mode de calcul]]&Tbl_Code_Mesure[[#This Row],[Périmètres produits d''application]] -> € / UnitéCompris entre 30 kg et 40 kg exclus | D147: € / Unité | E147: Compris entre 30 kg et 40 kg exclus | F147: 027
B148: Général | C148: =Tbl_Code_Mesure[[#This Row],[Mode de calcul]]&Tbl_Code_Mesure[[#This Row],[Périmètres produits d''application]] -> € / UnitéCompris entre 40 kg et 50 kg exclus | D148: € / Unité | E148: Compris entre 40 kg et 50 kg exclus | F148: 060
B149: Général | C149: =Tbl_Code_Mesure[[#This Row],[Mode de calcul]]&Tbl_Code_Mesure[[#This Row],[Périmètres produits d''application]] -> € / UnitéCodes petits producteurs | D149: € / Unité | E149: Codes petits producteurs | F149: 089
B152: Code Eco-modulation : 00 000 00 000 X
B154: Type | C154: concat | D154: Mode de calcul | E154: Périmètre d'application | F154: Code Eco-modulation
C155: =Tbl_Code_Mesure2[[#This Row],[Mode de calcul]]&Tbl_Code_Mesure2[[#This Row],[Périmètre d''application]] -> 
B156: Sans eco-modultation | D156: - | E156: Tous les produits | F156: 0
B157: Avec éco-modulation mise à disposition de pièces détachées | D157: Prime de 10% de la contribution du produit | E157: Tous les produits | F157: 1

Sheet ABJ - Code produit
A1: Générateur de code produit - ABJ - Barème applicable à partir du 1er janvier 2025 | H1: MASQUER | I1: MASQUER | K1: =Infos!$A$7 -> Version 2.1 - 1er mars 2025
A2: Sélectionner les éléments dans les cases vertes Penser à actionner le bouton "RESET" avant de faire une nouvelle génération. Le montant TTC de l’éco-participation est donné à titre indicatif ; le barème applicable est le barème HT.
G4: Code: | I4: A
A6: 1 - Choisissez un rayon : | G6: =IF(D6="","",VLOOKUP(D6,'Param masqué'!$D$3:$E$4,2,FALSE)) ->  | H6: =LEFT(A6,1)+0 -> 1 | I6: =I4&"_"&G6 -> A_
A8: =H6+1&" - Choisissez une catégorie de produit : " -> 2 - Choisissez une catégorie de produit : | E8: _ | G8: =IF(D8="","",VLOOKUP(D8,'Param masqué'!$J$3:$K$15,2,FALSE)) ->  | H8: =LEFT(A8,1)+0 -> 2 | I8: =I4&"_"&G8 -> A_
D10: =IF($G$8=155,"Attention, ce produit relève peut-être d'une autre filière REP. Pensez à bien vérifier son appartenance à la REP ABJ","") -> 
A12: =H8+1&" - Choisissez votre famille de matériaux :" -> 3 - Choisissez votre famille de matériaux : | H12: =LEFT(A12,1)+0 -> 3 | I12: =IFERROR(VLOOKUP($D$12,'Param masqué'!$AT$2:$AU$13,2,FALSE),0) -> 0
I13: =IF(D12="Prix en fonction d'une autre unité fonctionelle",I8&"F","") -> 
A14: =H12+1&" - Choisissez un matériau : " -> 4 - Choisissez un matériau : | G14: =IF(D14="","",VLOOKUP(D14,'Param masqué'!$R$3:$T$81,3,FALSE)) ->  | H14: =LEFT(A14,1)+0 -> 4 | I14: =IF($D$12="Prix en fonction d'une autre unité fonctionelle",VLOOKUP(I13,'Param masqué'!AG:AJ,4,FALSE),VLOOKUP(I8,'Param masqué'!AG:AJ,4,FALSE)) -> 
A16: =H14+1&" - Choisissez la caractéristique (ou conditionnement) en fonction du type de produit : " -> 5 - Choisissez la caractéristique (ou conditionnement) en fonction du type de produit : | G16: =IF(D16="","",VLOOKUP(D16,'Param masqué'!$AD$1:$AE$16,2,FALSE)) ->  | H16: =LEFT(A16,1)+0 -> 5
A19: =H16+1&" - Le produit bénéficie-t-il d'une éco-modulation pour la mise à disposition de pièces détachées ? " -> 6 - Le produit bénéficie-t-il d'une éco-modulation pour la mise à disposition de pièces détachées ? | G19: =IF(D19="","",IF(D19="oui",1,0)) -> 
D20: =IF($G$19=1,"Attention, pensez à bien vérifier l'éligibilité de ce produit aux éco-modulations","") -> 
A22: D'où le code produit: | D22: =IF(OR(D19="",D16="",D14="",D8="",D6=""),"",CONCATENATE(G6,G8,G14,G16,G19)) -> 
D23: =IF(D22="","",D6&" - "&D8&" en "&D14&" "&D16) -> 
A24: =IF(D12="forfait","Le montant de l'éco-participation (€/conditionnement retenu)","Le montant de l'éco-participation (€/T) est :") -> Le montant de l'éco-participation (€/T) est :
G25: et son code éco-participation associé :
A26: Vous pouvez le paramétrer le taux de TVA | C26: HT : | D26: =IFERROR(VLOOKUP('ABJ - Code produit'!$D$22,Codes!$C:$J,8,FALSE),"") ->  | F26: =IFERROR(VLOOKUP('ABJ - Code produit'!$D$22,Codes!$C:$J,7,FALSE),"") ->  | G26: =IFERROR(VLOOKUP(D22,Codes!$C:$L,10,FALSE),"") -> 
B27: 0.2 | C27: TTC : | D27: =IF(D26="","",D26*(1+$B$27)) ->  | F27: =IFERROR(VLOOKUP('ABJ - Code produit'!$D$22,Codes!$C:$J,7,FALSE),"") -> 
D29: =IF($G$19=1,IF(D26<0.1,"La prime correspondante sera indiquée dans l’espace service après déclaration et validation de vos preuves.","Ce produit bénéficierait, sous réserve de validation, d'une écomodulation de "&ROUND(D26*10%,2)&F26&". Cette prime sera affichée sur votre espace adhérent."),"") -> 
A31: =IF(F26="€ / Tonne","Indiquez ici le poids de votre produit en kg :","") -> 
C33: =IF(F26="€ / Tonne","soit une éco-participation unitaire de :","") ->  | D33: =IFERROR(IF(D31="","",IF(F26="€ / Tonne",IF(D31*D26/1000<0.01,"<0,01€",D31*D26/1000),D31*D26)),"") ->  | F33: =IF(F26="€ / Tonne","HT hors éco-modulation si applicable","") -> 

Sheet Param masqué (hidden)
B1: REP | C1: _ | D1: Rayon | E1: Code Rayon | G1: REP | H1: _ | I1: Rayon | J1: Catégorie | K1: Code Produit | Q1: Type de matériaux | R1: Matériaux | S1: Exemples de matériaux | T1: Code matériaux | W1: A_100 | AB1: Type de mesure | AC1: Mode de calcul | AD1: Périmètres produits d'application | AE1: Code Mesure | AG1: code produit | AH1: Tranches de dimensions | AI1: unité | AJ1: meta cat | AN1: Typo | AO1: Tranches de dimensions | AP1: Code | AY1: Cat1 | BF1: Taux de TVA
W2: 1 - Métal | X2: =VLOOKUP(W2,$AT$2:$AU$13,2,FALSE) -> Cat_1 | AF2: 100 | AG2: A_100 | AH2: Eléments de toutes dimensions et poids | AI2: € / Tonne | AJ2: Dim_2 | AN2: Dim_1 | AO2: Eléments de toutes dimensions et poids (T) | AP2: 000 | AT2: 1 - Métal | AU2: Cat_1 | AV2: 1 | AX2: 28 | AY2: Métal >90% | AZ2: =VLOOKUP(AY2,'Comprendre la codification'!$D$49:$F$128,3,FALSE) -> 28 | BB2: Prix au poids | BD2: Oui | BF2: 0.085
A3: =E3 -> 21 | B3: Articles Bricolage et Jardin - ABJ | C3: A | D3: Articles de bricolage | E3: =VLOOKUP(D3,'Comprendre la codification'!$D$20:$F$25,3,FALSE) -> 21 | G3: ABJ | H3: ="A_"&VLOOKUP(I3,$D$3:$E$4,2,FALSE) -> A_21 | I3: Articles de bricolage | J3: Outillage à main et leurs accessoires | K3: =VLOOKUP(J3,'Comprendre la codification'!$E$27:$F$43,2,FALSE) -> 100 | M3: 1 - Métal | N3: MAT_1 | O3: 1 | P3: MAT_1 | Q3: 1 - Métal | R3: Métal >90% | S3: Ferreux (Acier, Acier inoxydable, Fer forgé, Fonte, Acier au carbone, acier zingué, tole, alliages…) et non-ferreux (Aluminium, plomb, zinc, étain, chrome, cuivre, bronze, argent, zamac, nickel, titane, laiton...) | T3: =VLOOKUP(R3,'Comprendre la codification'!$D$45:$F$128,3,FALSE) -> 28 | W3: 2 - Bois et dérivés de bois | X3: =VLOOKUP(W3,$AT$2:$AU$13,2,FALSE) -> Cat_2 | AB3: Général | AC3: € / Tonne | AD3: Eléments de toutes dimensions et poids (T) | AE3: 000 | AF3: 101 | AG3: A_101 | AH3: Eléments de toutes dimensions et poids | AI3: € / Tonne | AJ3: Dim_1 | AN3: Dim_1 | AO3: Inférieur strictement à 0,5 kg | AP3: 020 | AT3: 2 - Bois et dérivés de bois | AU3: Cat_2 | AV3: 2 | AX3: 02 | AY3: Assemblage avec métal >50% et autres matériaux | AZ3: =VLOOKUP(AY3,'Comprendre la codification'!$D$49:$F$128,3,FALSE) -> 02 | BB3: Prix en fonction d'une autre unité fonctionelle | BD3: Non | BF3: 0.1
A4: =E4 -> 22 | B4: Articles Bricolage et Jardin - ABJ | C4: A | D4: Entretien et aménagement du jardin | E4: =VLOOKUP(D4,'Comprendre la codification'!$D$20:$F$25,3,FALSE) -> 22 | G4: ABJ | H4: A_21 | I4: Articles de bricolage | J4: Gros objets et machines non électriques et non thermiques et leurs accessoires | K4: =VLOOKUP(J4,'Comprendre la codification'!$E$27:$F$43,2,FALSE) -> 101 | M4: 2 - Bois et dérivés de bois | N4: MAT_2 | O4: 2 | P4: MAT_1 | Q4: 1 - Métal | R4: Assemblage avec métal >50% et autres matériaux | S4: Assemblage métal-bois, métal-plastique, métal-inertes … | T4: =VLOOKUP(R4,'Comprendre la codification'!$D$45:$F$128,3,FALSE) -> 02 | W4: 3 - Papier carton | X4: Cat_3 | AD4: Inférieur strictement à 0,5 kg | AE4: 020 | AF4: 102 | AG4: A_102 | AH4: Eléments de toutes dimensions et poids | AI4: € / Tonne | AJ4: Dim_1 | AN4: Dim_1 | AO4: Compris entre 0,5 kg et 1 kg exclus | AP4: 021 | AT4: 3 - Papier carton | AU4: Cat_3 | AV4: 3 | AY4: Cat2 | BF4: 0.2
G5: ABJ | H5: A_21 | I5: Articles de bricolage | J5: Outils et supports de travail en hauteur | K5: =VLOOKUP(J5,'Comprendre la codification'!$E$27:$F$43,2,FALSE) -> 102 | M5: 3 - Papier carton | N5: MAT_3 | O5: 3 | W5: 4 - Matériaux et fibres d'origine végétal ou animal autres que bois et papier, carton | X5: Cat_4 | AD5: Compris entre 0,5 kg et 1 kg exclus | AE5: 021 | AF5: 103 | AG5: A_103 | AH5: Eléments de toutes dimensions et poids | AI5: € / Tonne | AJ5: Dim_2 | AN5: Dim_1 | AO5: Compris entre 1 kg et 2 kg exclus | AP5: 022 | AT5: 4 - Matériaux et fibres d'origine végétal ou animal autres que bois et papier, carton | AU5: Cat_4 | AV5: 4 | AX5: 52 | AY5: Massif et assimilés certifiés >90% | AZ5: =VLOOKUP(AY5,'Comprendre la codification'!$D$49:$F$128,3,FALSE) -> 52
G6: ABJ | H6: A_21 | I6: Articles de bricolage | J6: Equipement personnel et accessoires de protection de bricolage | K6: =VLOOKUP(J6,'Comprendre la codification'!$E$27:$F$43,2,FALSE) -> 103 | M6: 4 - Matériaux et fibres d'origine végétal ou animal autres que bois et papier, carton | N6: MAT_4 | O6: 4 | P6: MAT_2 | Q6: 2 - Bois et dérivés de bois | R6: Massif et assimilés certifiés >90% | S6: Toutes essences (douglas, sapin, chène, hêtre, pin maritime, pin sylvestre, moabi , mélèze, teak, épicea ...), dont contreplaqué, contrecollé, lamellé, plaqué | T6: =VLOOKUP(R6,'Comprendre la codification'!$D$45:$F$128,3,FALSE) -> 52 | W6: 5 - Plastique, matériaux et fibres synthétiques | X6: Cat_5 | AD6: Compris entre 1 kg et 2 kg exclus | AE6: 022 | AF6: 104 | AG6: A_104 | AH6: Eléments de toutes dimensions et poids | AI6: € / Tonne | AJ6: Dim_2 | AN6: Dim_1 | AO6: Compris entre 2 kg et 3 kg exclus | AP6: 052 | AT6: 5 - Plastique, matériaux et fibres synthétiques | AU6: Cat_5 | AV6: 5 | AX6: 20 | AY6: Massif et assimilés certifiés >75% | AZ6: =VLOOKUP(AY6,'Comprendre la codification'!$D$49:$F$128,3,FALSE) -> 20
G7: ABJ | H7: A_21 | I7: Articles de bricolage | J7: Bâches, housses, filets et films de bricolage | K7: =VLOOKUP(J7,'Comprendre la codification'!$E$27:$F$43,2,FALSE) -> 104 | M7: 5 - Plastique, matériaux et fibres synthétiques | N7: MAT_5 | O7: 5 | P7: MAT_2 | Q7: 2 - Bois et dérivés de bois | R7: Massif et assimilés certifiés >75% | S7: Toutes essences (douglas, sapin, chène, hêtre, pin maritime, pin sylvestre, moabi , mélèze, teak, épicea ...), dont contreplaqué, contrecollé, lamellé, plaqué | T7: =VLOOKUP(R7,'Comprendre la codification'!$D$45:$F$128,3,FALSE) -> 20 | W7: 6 - Verre et parois vitrées | X7: Cat_6 | AD7: Compris entre 2 kg et 3 kg exclus | AE7: 052 | AF7: 105 | AG7: A_105 | AH7: Eléments de toutes dimensions et poids | AI7: € / Tonne | AJ7: Dim_2 | AN7: Dim_1 | AO7: Compris entre 3 kg et 5 kg exclus | AP7: 053 | AT7: 6 - Verre et parois vitrées | AU7: Cat_6 | AV7: 6 | AX7: 53 | AY7: Massif et assimilés >90% | AZ7: =VLOOKUP(AY7,'Comprendre la codification'!$D$49:$F$128,3,FALSE) -> 53
G8: ABJ | H8: ="A_"&VLOOKUP(I8,$D$3:$E$4,2,FALSE) -> A_21 | I8: Articles de bricolage | J8: Seaux, auges et contenants | K8: =VLOOKUP(J8,'Comprendre la codification'!$E$27:$F$43,2,FALSE) -> 105 | M8: 6 - Verre et parois vitrées | N8: MAT_6 | O8: 6 | P8: MAT_2 | Q8: 2 - Bois et dérivés de bois | R8: Massif et assimilés >90% | S8: Toutes essences (douglas, sapin, chène, hêtre, pin maritime, pin sylvestre, moabi , mélèze, teak, épicea ...), dont contreplaqué, contrecollé, lamellé, plaqué | T8: =VLOOKUP(R8,'Comprendre la codification'!$D$45:$F$128,3,FALSE) -> 53 | W8: 10 - Autres mix matériaux ou matériaux non classés ou non spécifiés | X8: Cat_10 | AD8: Compris entre 3 kg et 5 kg exclus | AE8: 053 | AF8: 150 | AG8: A_150 | AH8: Eléments de toutes dimensions et poids | AI8: € / Tonne | AJ8: Dim_2 | AN8: Dim_1 | AO8: Compris entre 5 kg et 7 kg exclus | AP8: 054 | AT8: 7 - Plâtre (Cat. e du décret) | AU8: Cat_7 | AV8: 7 | AX8: 21 | AY8: Massif et assimilés >75% | AZ8: =VLOOKUP(AY8,'Comprendre la codification'!$D$49:$F$128,3,FALSE) -> 21
G9: ABJ | H9: A_22 | I9: Entretien et aménagement du jardin | J9: Outils à main d’entretien du jardin et petits accessoires | K9: =VLOOKUP(J9,'Comprendre la codification'!$E$27:$F$43,2,FALSE) -> 150 | M9: 7 - Plâtre | N9: MAT_7 | O9: 7 | P9: MAT_2 | Q9: 2 - Bois et dérivés de bois | R9: Massif et assimilés >75% | S9: Toutes essences (douglas, sapin, chène, hêtre, pin maritime, pin sylvestre, moabi , mélèze, teak, épicea ...), dont contreplaqué, contrecollé, lamellé, plaqué | T9: =VLOOKUP(R9,'Comprendre la codification'!$D$45:$F$128,3,FALSE) -> 21 | W9: A_101 | AD9: Compris entre 5 kg et 7 kg exclus | AE9: 054 | AF9: 151 | AG9: A_151 | AH9: Eléments de toutes dimensions et poids | AI9: € / Tonne | AJ9: Dim_2 | AN9: Dim_1 | AO9: Compris entre 7 kg et 10 kg exclus | AP9: 055 | AT9: 8- Laines de verre et laines de roches (Cat. h et i du décret) | AU9: Cat_8 | AV9: 8 | AX9: 59 | AY9: Panneaux de particules ou OSB certifiés >90% | AZ9: =VLOOKUP(AY9,'Comprendre la codification'!$D$49:$F$128,3,FALSE) -> 59
G10: ABJ | H10: A_22 | I10: Entretien et aménagement du jardin | J10: Equipement personnel et accessoires de protection de jardinage | K10: =VLOOKUP(J10,'Comprendre la codification'!$E$27:$F$43,2,FALSE) -> 151 | M10: 8 - Laines de verre et laines de roches | N10: MAT_8 | O10: 8 | P10: MAT_2 | Q10: 2 - Bois et dérivés de bois | R10: Panneaux de particules ou OSB certifiés >90% | S10: Panneaux de particules, OSB | T10: =VLOOKUP(R10,'Comprendre la codification'!$D$45:$F$128,3,FALSE) -> 59 | W10: 1 - Métal | X10: =VLOOKUP(W10,$AT$2:$AU$13,2,FALSE) -> Cat_1 | AD10: Compris entre 7 kg et 10 kg exclus | AE10: 055 | AF10: 152 | AG10: A_152 | AH10: Eléments de toutes dimensions et poids | AI10: € / Tonne | AJ10: Dim_3 | AN10: Dim_1 | AO10: Compris entre 10 kg et 15 kg exclus | AP10: 056 | AT10: 9 - Membranes bitumineuses (Cat. g du décret) | AU10: Cat_9 | AV10: 9 | AX10: 60 | AY10: Panneaux de particules ou OSB certifiés >75% | AZ10: =VLOOKUP(AY10,'Comprendre la codification'!$D$49:$F$128,3,FALSE) -> 60
G11: ABJ | H11: A_22 | I11: Entretien et aménagement du jardin | J11: Pots de fleur et contenants | K11: =VLOOKUP(J11,'Comprendre la codification'!$E$27:$F$43,2,FALSE) -> 152 | M11: 9 - Membranes bitumineuses | N11: MAT_9 | O11: 9 | P11: MAT_2 | Q11: 2 - Bois et dérivés de bois | R11: Panneaux de particules ou OSB certifiés >75% | S11: Panneaux de particules, OSB | T11: =VLOOKUP(R11,'Comprendre la codification'!$D$45:$F$128,3,FALSE) -> 60 | W11: 2 - Bois et dérivés de bois | X11: Cat_2 | AD11: Compris entre 10 kg et 15 kg exclus | AE11: 056 | AF11: 153 | AG11: A_153 | AH11: Eléments de toutes dimensions et poids | AI11: € / Tonne | AJ11: Dim_2 | AN11: Dim_1 | AO11: Compris entre 15 kg et 20 kg exclus | AP11: 057 | AT11: 10 - Autres mix matériaux ou matériaux non classés ou non spécifiés | AU11: Cat_10 | AV11: 10 | AX11: 61 | AY11: Panneaux de particules ou OSB >90% | AZ11: =VLOOKUP(AY11,'Comprendre la codification'!$D$49:$F$128,3,FALSE) -> 61
G12: ABJ | H12: A_22 | I12: Entretien et aménagement du jardin | J12: Bâches, housses, filets et films de jardinage | K12: =VLOOKUP(J12,'Comprendre la codification'!$E$27:$F$43,2,FALSE) -> 153 | M12: 10 - Autres mix matériaux ou matériaux non classés ou non spécifiés | N12: MAT_10 | O12: 10 | P12: MAT_2 | Q12: 2 - Bois et dérivés de bois | R12: Panneaux de particules ou OSB >90% | S12: Panneaux de particules, OSB | T12: =VLOOKUP(R12,'Comprendre la codification'!$D$45:$F$128,3,FALSE) -> 61 | W12: 3 - Papier carton | X12: Cat_3 | AD12: Compris entre 15 kg et 20 kg exclus | AE12: 057 | AF12: 154 | AG12: A_154 | AH12: Eléments de toutes dimensions et poids | AI12: € / Tonne | AJ12: Dim_1 | AN12: Dim_1 | AO12: Compris entre 20 kg et 25 kg exclus | AP12: 058 | AT12: 11 - Mortiers, enduits, peintures, vernis, résines, produits de préparation (Cat. c du décret) | AU12: Cat_11 | AV12: 11 | AX12: 25 | AY12: Panneaux de particules ou OSB >75% | AZ12: =VLOOKUP(AY12,'Comprendre la codification'!$D$49:$F$128,3,FALSE) -> 25
G13: ABJ | H13: A_22 | I13: Entretien et aménagement du jardin | J13: Equipements de plein air et leurs accessoires (hors bâches, filets, housses) | K13: =VLOOKUP(J13,'Comprendre la codification'!$E$27:$F$43,2,FALSE) -> 154 | M13: 11 - Mortiers, enduits, peintures, vernis, résines, produits de préparation | N13: MAT_11 | O13: 11 | P13: MAT_2 | Q13: 2 - Bois et dérivés de bois | R13: Panneaux de particules ou OSB >75% | S13: Panneaux de particules, OSB | T13: =VLOOKUP(R13,'Comprendre la codification'!$D$45:$F$128,3,FALSE) -> 25 | W13: 4 - Matériaux et fibres d'origine végétal ou animal autres que bois et papier, carton | X13: Cat_4 | AD13: Compris entre 20 kg et 25 kg exclus | AE13: 058 | AF13: 155 | AG13: A_155 | AH13: Eléments de toutes dimensions et poids | AI13: € / Tonne | AJ13: Dim_1 | AN13: Dim_1 | AO13: Compris entre 25 kg et 30 kg exclus | AP13: 059 | AT13: 12 - Matériaux inertes | AU13: Cat_12 | AV13: 12 | AX13: 62 | AY13: Dérivés de bois >90% | AZ13: =VLOOKUP(AY13,'Comprendre la codification'!$D$49:$F$128,3,FALSE) -> 62
G14: ABJ | H14: A_22 | I14: Entretien et aménagement du jardin | J14: Structures extérieures non-maçonnées | K14: =VLOOKUP(J14,'Comprendre la codification'!$E$27:$F$43,2,FALSE) -> 155 | M14: 12 - Matériaux inertes | N14: MAT_12 | O14: 12 | P14: MAT_2 | Q14: 2 - Bois et dérivés de bois | R14: Dérivés de bois >90% | S14: Bois composite, MDF, HDF, alvéolaire, stratifé, HPL…. | T14: 62 | W14: 5 - Plastique, matériaux et fibres synthétiques | X14: Cat_5 | AD14: Compris entre 25 kg et 30 kg exclus | AE14: 059 | AN14: Dim_1 | AO14: Compris entre 30 kg et 40 kg exclus | AP14: 027 | AX14: 54 | AY14: Dérivés de bois >90% non certifiés | AZ14: =VLOOKUP(AY14,'Comprendre la codification'!$D$49:$F$128,3,FALSE) -> 54
P15: MAT_2 | Q15: 2 - Bois et dérivés de bois | R15: Dérivés de bois >90% non certifiés | S15: Bois composite, MDF, HDF, alvéolaire, stratifé, HPL…. | T15: 54 | W15: 6 - Verre et parois vitrées | X15: Cat_6 | AD15: Compris entre 30 kg et 40 kg exclus | AE15: 027 | AN15: Dim_1 | AO15: Compris entre 40 kg et 50 kg exclus | AP15: 060 | AX15: 01 | AY15: Assemblage de bois, dérivés de bois à plus de 50% avec d'autres matériaux ou bois composite (hors verre) | AZ15: =VLOOKUP(AY15,'Comprendre la codification'!$D$49:$F$128,3,FALSE) -> 01
P16: MAT_2 | Q16: 2 - Bois et dérivés de bois | R16: Assemblage de bois, dérivés de bois à plus de 50% avec d'autres matériaux ou bois composite (hors verre) | S16: Assemblage bois-métal, bois-plastique … | T16: 01 | W16: 10 - Autres mix matériaux ou matériaux non classés ou non spécifiés | X16: Cat_10 | AD16: Compris entre 40 kg et 50 kg exclus | AE16: 060 | AN16: Dim_2 | AO16: Eléments de toutes dimensions et poids (T) | AP16: 000 | AX16: 51 | AY16: Assemblage de bois, dérivés de bois à plus de 50% avec d'autres matériaux ou bois composite (hors verre) non certifiés | AZ16: =VLOOKUP(AY16,'Comprendre la codification'!$D$49:$F$128,3,FALSE) -> 51
P17: MAT_2 | Q17: 2 - Bois et dérivés de bois | R17: Assemblage de bois, dérivés de bois à plus de 50% avec d'autres matériaux ou bois composite (hors verre) non certifiés | S17: Assemblage bois-métal, bois-plastique … | T17: 51 | W17: 12 - Matériaux inertes | X17: Cat_12 | AN17: Dim_2 | AO17: Inférieur strictement à 0,5 kg | AP17: 020 | AY17: Cat3
W18: A_103 | AN18: Dim_2 | AO18: Compris entre 0,5 kg et 1 kg exclus | AP18: 021 | AX18: 19 | AY18: Papier carton >50% avec d'autres matériaux (hors verre) | AZ18: =VLOOKUP(AY18,'Comprendre la codification'!$D$49:$F$128,3,FALSE) -> 19
P19: MAT_3 | Q19: 3 - Papier carton | R19: Papier carton >50% avec d'autres matériaux (hors verre) | S19: Papier, Carton, Compact, Papier Kraft | T19: =VLOOKUP(R19,'Comprendre la codification'!$D$45:$F$128,3,FALSE) -> 19 | W19: 1 - Métal | X19: =VLOOKUP(W19,$AT$2:$AU$13,2,FALSE) -> Cat_1 | AN19: Dim_2 | AO19: Compris entre 1 kg et 2 kg exclus | AP19: 022 | AY19: Cat4
W20: 2 - Bois et dérivés de bois | X20: Cat_2 | AN20: Dim_2 | AO20: Compris entre 2 kg et 3 kg exclus | AP20: 052 | AX20: 64 | AY20: Caoutchouc naturel >50% | AZ20: =VLOOKUP(AY20,'Comprendre la codification'!$D$49:$F$128,3,FALSE) -> 64
P21: MAT_4 | Q21: 4 - Matériaux et fibres d'origine végétal ou animal autres que bois et papier, carton | R21: Matériaux bio sourcés ou textiles non synthétiques >90% | S21: Tiges végétales (bambou, rotin, osiers, jute, paille, liège), textiles naturels d'origine végétale non mélangés (coton, lin, chanvre, soie, ramie, fibres de noix de coco, rafia…) | T21: =VLOOKUP(R21,'Comprendre la codification'!$D$45:$F$128,3,FALSE) -> 55 | W21: 3 - Papier carton | X21: Cat_3 | AN21: Dim_2 | AO21: Compris entre 3 kg et 5 kg exclus | AP21: 053 | AX21: 63 | AY21: Caoutchouc naturel >90% | AZ21: =VLOOKUP(AY21,'Comprendre la codification'!$D$49:$F$128,3,FALSE) -> 63
P22: MAT_4 | Q22: 4 - Matériaux et fibres d'origine végétal ou animal autres que bois et papier, carton | R22: Matériaux bio sourcés ou textiles non synthétiques >50% | S22: Assemblage de matériaux bio sourcés avec du plastique, du métal … | T22: =VLOOKUP(R22,'Comprendre la codification'!$D$45:$F$128,3,FALSE) -> 04 | W22: 4 - Matériaux et fibres d'origine végétal ou animal autres que bois et papier, carton | X22: Cat_4 | AN22: Dim_2 | AO22: Compris entre 5 kg et 7 kg exclus | AP22: 054 | AX22: 04 | AY22: Matériaux bio sourcés ou textiles non synthétiques >50% | AZ22: =VLOOKUP(AY22,'Comprendre la codification'!$D$49:$F$128,3,FALSE) -> 04
P23: MAT_4 | Q23: 4 - Matériaux et fibres d'origine végétal ou animal autres que bois et papier, carton | R23: Caoutchouc naturel >90% | S23: Caoutchouc, latex | T23: =VLOOKUP(R23,'Comprendre la codification'!$D$45:$F$128,3,FALSE) -> 63 | W23: 5 - Plastique, matériaux et fibres synthétiques | X23: Cat_5 | AN23: Dim_3 | AO23: Eléments de toutes dimensions et poids (T) | AP23: 000 | AX23: 55 | AY23: Matériaux bio sourcés ou textiles non synthétiques >90% | AZ23: =VLOOKUP(AY23,'Comprendre la codification'!$D$49:$F$128,3,FALSE) -> 55
P24: MAT_4 | Q24: 4 - Matériaux et fibres d'origine végétal ou animal autres que bois et papier, carton | R24: Caoutchouc naturel >50% | S24: Caoutchouc, latex | T24: =VLOOKUP(R24,'Comprendre la codification'!$D$45:$F$128,3,FALSE) -> 64 | W24: 6 - Verre et parois vitrées | X24: Cat_6 | AN24: Dim_3 | AO24: Inférieur strictement à 0,5 kg | AP24: 020 | AX24: 06 | AY24: Matériaux d'origine animale >50% | AZ24: =VLOOKUP(AY24,'Comprendre la codification'!$D$49:$F$128,3,FALSE) -> 06
P25: MAT_4 | Q25: 4 - Matériaux et fibres d'origine végétal ou animal autres que bois et papier, carton | R25: Matériaux d'origine animale >50% | S25: Matières textiles ou rembourrages d'origine animale (laine, feutre, mohair, plumes, duvets, poils, cuirs...) | T25: =VLOOKUP(R25,'Comprendre la codification'!$D$45:$F$128,3,FALSE) -> 06 | W25: 10 - Autres mix matériaux ou matériaux non classés ou non spécifiés | X25: Cat_10 | AN25: Dim_3 | AO25: Compris entre 0,5 kg et 1 kg exclus | AP25: 021 | AY25: Cat5
W26: A_104 | AN26: Dim_3 | AO26: Compris entre 1 kg et 2 kg exclus | AP26: 022 | AX26: 41 | AY26: Plastiques (mono résine) >90% | AZ26: =VLOOKUP(AY26,'Comprendre la codification'!$D$49:$F$128,3,FALSE) -> 41
P27: MAT_5 | Q27: 5 - Plastique, matériaux et fibres synthétiques | R27: Plastiques (mono résine) >90% | S27: Plastiques et autres matériaux synthétiques : acrylique, PP, PE, PS, XPS, EPS, PER, Nylon, Polyamide, PU, PVC, vinyle, époxy, fibres synthétiques, PL, matériaux composites, carbone…. | T27: =VLOOKUP(R27,'Comprendre la codification'!$D$45:$F$128,3,FALSE) -> 41 | W27: 3 - Papier carton | X27: =VLOOKUP(W27,$AT$2:$AU$13,2,FALSE) -> Cat_3 | AN27: Dim_3 | AO27: Compris entre 2 kg et 3 kg exclus | AP27: 052 | AX27: 45 | AY27: PE ou PP ou mélange PP/PE >90% | AZ27: =VLOOKUP(AY27,'Comprendre la codification'!$D$49:$F$128,3,FALSE) -> 45
P28: MAT_5 | Q28: 5 - Plastique, matériaux et fibres synthétiques | R28: PE ou PP ou mélange PP/PE >90% | S28: Polyéthylène (PE), Polypropylène (PP), mélange PP/PE | T28: =VLOOKUP(R28,'Comprendre la codification'!$D$45:$F$128,3,FALSE) -> 45 | W28: 4 - Matériaux et fibres d'origine végétal ou animal autres que bois et papier, carton | X28: Cat_4 | AN28: Dim_3 | AO28: Compris entre 3 kg et 5 kg exclus | AP28: 053 | AX28: 46 | AY28: ABS >90% | AZ28: =VLOOKUP(AY28,'Comprendre la codification'!$D$49:$F$128,3,FALSE) -> 46
P29: MAT_5 | Q29: 5 - Plastique, matériaux et fibres synthétiques | R29: PVC >90% | T29: =VLOOKUP(R29,'Comprendre la codification'!$D$45:$F$128,3,FALSE) -> 48 | W29: 5 - Plastique, matériaux et fibres synthétiques | X29: Cat_5 | AN29: Dim_3 | AO29: Compris entre 5 kg et 7 kg exclus | AP29: 054 | AX29: 48 | AY29: PVC >90% | AZ29: =VLOOKUP(AY29,'Comprendre la codification'!$D$49:$F$128,3,FALSE) -> 48
P30: MAT_5 | Q30: 5 - Plastique, matériaux et fibres synthétiques | R30: Polyterephtalate d'Ethylène (PET) >90% | T30: =VLOOKUP(R30,'Comprendre la codification'!$D$45:$F$128,3,FALSE) -> 42 | W30: 10 - Autres mix matériaux ou matériaux non classés ou non spécifiés | X30: Cat_10 | AN30: Dim_3 | AO30: Compris entre 7 kg et 10 kg exclus | AP30: 055 | AX30: 47 | AY30: Polystyrène >90% | AZ30: =VLOOKUP(AY30,'Comprendre la codification'!$D$49:$F$128,3,FALSE) -> 47
P31: MAT_5 | Q31: 5 - Plastique, matériaux et fibres synthétiques | R31: ABS >90% | T31: =VLOOKUP(R31,'Comprendre la codification'!$D$45:$F$128,3,FALSE) -> 46 | W31: A_102 | AN31: Dim_3 | AO31: Compris entre 10 kg et 15 kg exclus | AP31: 056 | AX31: 42 | AY31: Polyterephtalate d'Ethylène (PET) >90% | AZ31: =VLOOKUP(AY31,'Comprendre la codification'!$D$49:$F$128,3,FALSE) -> 42
P32: MAT_5 | Q32: 5 - Plastique, matériaux et fibres synthétiques | R32: Polystyrène >90% | T32: =VLOOKUP(R32,'Comprendre la codification'!$D$45:$F$128,3,FALSE) -> 47 | W32: 1 - Métal | X32: =VLOOKUP(W32,$AT$2:$AU$13,2,FALSE) -> Cat_1 | AN32: Dim_3 | AO32: Compris entre 15 kg et 20 kg exclus | AP32: 057 | AX32: 49 | AY32: Caoutchouc synthétique >90% | AZ32: =VLOOKUP(AY32,'Comprendre la codification'!$D$49:$F$128,3,FALSE) -> 49
P33: MAT_5 | Q33: 5 - Plastique, matériaux et fibres synthétiques | R33: Plastiques ou autres matériaux synthétiques >50% | S33: Assemblage de matériaux et textiles synthétiques, ensemble | T33: =VLOOKUP(R33,'Comprendre la codification'!$D$45:$F$128,3,FALSE) -> 05 | W33: 2 - Bois et dérivés de bois | X33: Cat_2 | AX33: 65 | AY33: Matériaux ou fibres synthétiques >90% | AZ33: =VLOOKUP(AY33,'Comprendre la codification'!$D$49:$F$128,3,FALSE) -> 65
P34: MAT_5 | Q34: 5 - Plastique, matériaux et fibres synthétiques | R34: Caoutchouc synthétique >90% | S34: Caoutchouc | T34: =VLOOKUP(R34,'Comprendre la codification'!$D$45:$F$128,3,FALSE) -> 49 | W34: 3 - Papier carton | X34: Cat_3 | AX34: 05 | AY34: Plastiques ou autres matériaux synthétiques >50% | AZ34: =VLOOKUP(AY34,'Comprendre la codification'!$D$49:$F$128,3,FALSE) -> 05
P35: MAT_5 | Q35: 5 - Plastique, matériaux et fibres synthétiques | R35: Eléments contenant du latex | S35: Latex | T35: =VLOOKUP(R35,'Comprendre la codification'!$D$45:$F$128,3,FALSE) -> 10 | W35: 4 - Matériaux et fibres d'origine végétal ou animal autres que bois et papier, carton | X35: Cat_4 | AX35: 40 | AY35: Assemblage caoutchouc synthétique ou latex >50% avec d'autres matériaux | AZ35: =VLOOKUP(AY35,'Comprendre la codification'!$D$49:$F$128,3,FALSE) -> 40
P36: MAT_5 | Q36: 5 - Plastique, matériaux et fibres synthétiques | R36: Assemblage caoutchouc synthétique ou latex >50% avec d'autres matériaux | S36: Caoutchouc, latex avec d'autres matériaux synthétiques, du bois, du métal … | T36: =VLOOKUP(R36,'Comprendre la codification'!$D$45:$F$128,3,FALSE) -> 40 | W36: 5 - Plastique, matériaux et fibres synthétiques | X36: Cat_5 | AX36: 67 | AY36: Assemblage matériaux ou fibres synthétiques >50% avec d'autres matériaux | AZ36: =VLOOKUP(AY36,'Comprendre la codification'!$D$49:$F$128,3,FALSE) -> 67
P37: MAT_5 | Q37: 5 - Plastique, matériaux et fibres synthétiques | R37: Matériaux ou fibres synthétiques >90% | S37: Polyamides, nylon, polyester (PES) et polyterephtalate d'Ethylène (PET), viscose, polyester, élastane, mousses … | T37: =VLOOKUP(R37,'Comprendre la codification'!$D$45:$F$128,3,FALSE) -> 65 | W37: 6 - Verre et parois vitrées | X37: Cat_6 | AY37: Cat6
P38: MAT_5 | Q38: 5 - Plastique, matériaux et fibres synthétiques | R38: Textile et rembourrage en polyester >90% | S38: Polyester | T38: =VLOOKUP(R38,'Comprendre la codification'!$D$45:$F$128,3,FALSE) -> 66 | W38: 10 - Autres mix matériaux ou matériaux non classés ou non spécifiés | X38: Cat_10 | AX38: 72 | AY38: Assemblage verre à plus de 50% avec bois ou dérivés de bois | AZ38: =VLOOKUP(AY38,'Comprendre la codification'!$D$49:$F$128,3,FALSE) -> 72
P39: MAT_5 | Q39: 5 - Plastique, matériaux et fibres synthétiques | R39: Eléments contenant de la mousse | T39: =VLOOKUP(R39,'Comprendre la codification'!$D$45:$F$128,3,FALSE) -> 09 | W39: 12 - Matériaux inertes | X39: Cat_12 | AX39: 71 | AY39: Assemblage verre à plus de 50% avec Inerte | AZ39: =VLOOKUP(AY39,'Comprendre la codification'!$D$49:$F$128,3,FALSE) -> 71
P40: MAT_5 | Q40: 5 - Plastique, matériaux et fibres synthétiques | R40: Eléments textiles contenant des ressorts | T40: =VLOOKUP(R40,'Comprendre la codification'!$D$45:$F$128,3,FALSE) -> 11 | W40: A_153 | AX40: 70 | AY40: Assemblage verre à plus de 50% avec métal | AZ40: =VLOOKUP(AY40,'Comprendre la codification'!$D$49:$F$128,3,FALSE) -> 70
P41: MAT_5 | Q41: 5 - Plastique, matériaux et fibres synthétiques | R41: Assemblage matériaux ou fibres synthétiques >50% avec d'autres matériaux | S41: Assemblage de matériaux et textiles synthétiques avec du métal, du bois … | T41: =VLOOKUP(R41,'Comprendre la codification'!$D$45:$F$128,3,FALSE) -> 67 | W41: 3 - Papier carton | X41: =VLOOKUP(W41,$AT$2:$AU$13,2,FALSE) -> Cat_3 | AX41: 73 | AY41: Assemblage verre à plus de 50% avec plastique | AZ41: =VLOOKUP(AY41,'Comprendre la codification'!$D$49:$F$128,3,FALSE) -> 73
W42: 4 - Matériaux et fibres d'origine végétal ou animal autres que bois et papier, carton | X42: Cat_4 | AX42: 68 | AY42: Verre >90% | AZ42: =VLOOKUP(AY42,'Comprendre la codification'!$D$49:$F$128,3,FALSE) -> 68
P43: MAT_6 | Q43: 6 - Verre et parois vitrées | R43: Verre >90% | S43: Verre plat, brique de verre … | T43: =VLOOKUP(R43,'Comprendre la codification'!$D$45:$F$128,3,FALSE) -> 68 | W43: 5 - Plastique, matériaux et fibres synthétiques | X43: Cat_5 | AY43: Cat7
P44: MAT_6 | Q44: 6 - Verre et parois vitrées | R44: Assemblage verre à plus de 50% avec métal | S44: Assemblage de verre avec des métaux | T44: =VLOOKUP(R44,'Comprendre la codification'!$D$45:$F$128,3,FALSE) -> 70 | W44: 10 - Autres mix matériaux ou matériaux non classés ou non spécifiés | X44: Cat_10 | AX44: 75 | AY44: Plâtre >90% | AZ44: =VLOOKUP(AY44,'Comprendre la codification'!$D$49:$F$128,3,FALSE) -> 75
P45: MAT_6 | Q45: 6 - Verre et parois vitrées | R45: Assemblage verre à plus de 50% avec Inerte | S45: Assemblage de verre avec de l'inerte | T45: =VLOOKUP(R45,'Comprendre la codification'!$D$45:$F$128,3,FALSE) -> 71 | W45: A_151 | AX45: 76 | AY45: Plâtre >50% | AZ45: =VLOOKUP(AY45,'Comprendre la codification'!$D$49:$F$128,3,FALSE) -> 76
P46: MAT_6 | Q46: 6 - Verre et parois vitrées | R46: Assemblage verre à plus de 50% avec bois ou dérivés de bois | S46: Assemblage de verre avec du bois ou des matériaux biosourcés | T46: =VLOOKUP(R46,'Comprendre la codification'!$D$45:$F$128,3,FALSE) -> 72 | W46: 1 - Métal | X46: =VLOOKUP(W46,$AT$2:$AU$13,2,FALSE) -> Cat_1 | AY46: Cat8
P47: MAT_6 | Q47: 6 - Verre et parois vitrées | R47: Assemblage verre à plus de 50% avec plastique | S47: Assemblage de verre avec du plastique | T47: =VLOOKUP(R47,'Comprendre la codification'!$D$45:$F$128,3,FALSE) -> 73 | W47: 2 - Bois et dérivés de bois | X47: Cat_2 | AX47: 77 | AY47: Laines de roche à plus de 90 % | AZ47: =VLOOKUP(AY47,'Comprendre la codification'!$D$49:$F$128,3,FALSE) -> 77
P48: MAT_6 | Q48: 6 - Verre et parois vitrées | R48: Miroir >90% | S48: Miroir | T48: =VLOOKUP(R48,'Comprendre la codification'!$D$45:$F$128,3,FALSE) -> 69 | W48: 3 - Papier carton | X48: Cat_3 | AX48: 78 | AY48: Laine de verre à plus de 90 % | AZ48: =VLOOKUP(AY48,'Comprendre la codification'!$D$49:$F$128,3,FALSE) -> 78
W49: 4 - Matériaux et fibres d'origine végétal ou animal autres que bois et papier, carton | X49: Cat_4 | AX49: 79 | AY49: Assemblage de laines de verre ou laines de roches à plus de 50% et d'autres matériaux | AZ49: =VLOOKUP(AY49,'Comprendre la codification'!$D$49:$F$128,3,FALSE) -> 79
P50: MAT_7 | Q50: 7 - Plâtre | R50: Plâtre >90% | S50: Matière en plâtre, plaque de plâtre (placo) et fibre gypse | T50: =VLOOKUP(R50,'Comprendre la codification'!$D$45:$F$128,3,FALSE) -> 75 | W50: 5 - Plastique, matériaux et fibres synthétiques | X50: Cat_5 | AY50: Cat9
P51: MAT_7 | Q51: 7 - Plâtre | R51: Plâtre >50% | S51: Elément composé majoritaitement de plâtre et associé à d'autres matériaux | T51: =VLOOKUP(R51,'Comprendre la codification'!$D$45:$F$128,3,FALSE) -> 76 | W51: 6 - Verre et parois vitrées | X51: Cat_6 | AX51: 80 | AY51: Membranes bitumineuses à plus de 90 % | AZ51: =VLOOKUP(AY51,'Comprendre la codification'!$D$49:$F$128,3,FALSE) -> 80
W52: 10 - Autres mix matériaux ou matériaux non classés ou non spécifiés | X52: Cat_10 | AY52: Cat10
P53: MAT_8 | Q53: 8 - Laines de verre et laines de roches | R53: Laines de roche à plus de 90 % | S53: Matière isolante fabriquée à partir d'un matériau naturel issu de l'activité volcanique | T53: =VLOOKUP(R53,'Comprendre la codification'!$D$45:$F$128,3,FALSE) -> 77 | W53: A_154 | AX53: 82 | AY53: Assemblage de 3 matériaux ou plus sans un matériau à plus de 50% | AZ53: =VLOOKUP(AY53,'Comprendre la codification'!$D$49:$F$128,3,FALSE) -> 82
P54: MAT_8 | Q54: 8 - Laines de verre et laines de roches | R54: Laine de verre à plus de 90 % | S54: Matière composée de fils de verre, utilisé comme filtrant ou isolant | T54: =VLOOKUP(R54,'Comprendre la codification'!$D$45:$F$128,3,FALSE) -> 78 | W54: 1 - Métal | X54: =VLOOKUP(W54,$AT$2:$AU$13,2,FALSE) -> Cat_1 | AX54: 00 | AY54: Non connu ou non spécifié par l'entreprise | AZ54: =VLOOKUP(AY54,'Comprendre la codification'!$D$49:$F$128,3,FALSE) -> 00
P55: MAT_8 | Q55: 8 - Laines de verre et laines de roches | R55: Assemblage de laines de verre ou laines de roches à plus de 50% et d'autres matériaux | S55: Elément composé majoritaitement de laine minérale | T55: =VLOOKUP(R55,'Comprendre la codification'!$D$45:$F$128,3,FALSE) -> 79 | W55: 2 - Bois et dérivés de bois | X55: Cat_2 | AY55: Cat12
W56: 3 - Papier carton | X56: Cat_3 | AX56: 84 | AY56: Ardoise >90% | AZ56: =VLOOKUP(AY56,'Comprendre la codification'!$D$49:$F$128,3,FALSE) -> 84
P57: MAT_9 | Q57: 9 - Membranes bitumineuses | R57: Membranes bitumineuses à plus de 90 % | S57: Membrane d'étanchéité synthétique | T57: =VLOOKUP(R57,'Comprendre la codification'!$D$45:$F$128,3,FALSE) -> 80 | W57: 4 - Matériaux et fibres d'origine végétal ou animal autres que bois et papier, carton | X57: Cat_4 | AX57: 08 | AY57: Assemblage de matériaux avec de l'inerte >50% | AZ57: =VLOOKUP(AY57,'Comprendre la codification'!$D$49:$F$128,3,FALSE) -> 08
W58: 5 - Plastique, matériaux et fibres synthétiques | X58: Cat_5 | AX58: 74 | AY58: Béton >90% | AZ58: =VLOOKUP(AY58,'Comprendre la codification'!$D$49:$F$128,3,FALSE) -> 74
P59: MAT_10 | Q59: 10 - Autres mix matériaux ou matériaux non classés ou non spécifiés | R59: Assemblage dont la composition conjointe en bois, dérivés de bois et en métal dépasse 90% | T59: =VLOOKUP(R59,'Comprendre la codification'!$D$45:$F$128,3,FALSE) -> 81 | W59: 6 - Verre et parois vitrées | X59: Cat_6 | AX59: 97 | AY59: Céramique >90% | AZ59: =VLOOKUP(AY59,'Comprendre la codification'!$D$49:$F$128,3,FALSE) -> 97
P60: MAT_10 | Q60: 10 - Autres mix matériaux ou matériaux non classés ou non spécifiés | R60: Assemblage de 3 matériaux ou plus sans un matériau à plus de 50% | S60: Elément composé de parties en matériaux divers avec souvent mais non exclusivement une partie de plastique ou de textile synthétique | T60: =VLOOKUP(R60,'Comprendre la codification'!$D$45:$F$128,3,FALSE) -> 82 | W60: 10 - Autres mix matériaux ou matériaux non classés ou non spécifiés | X60: Cat_10 | AX60: 90 | AY60: Ciment >90% | AZ60: =VLOOKUP(AY60,'Comprendre la codification'!$D$49:$F$128,3,FALSE) -> 90
P61: MAT_10 | Q61: 10 - Autres mix matériaux ou matériaux non classés ou non spécifiés | R61: Non connu ou non spécifié par l'entreprise | S61: Non connu ou non spécifié par l'entreprise | T61: =VLOOKUP(R61,'Comprendre la codification'!$D$45:$F$128,3,FALSE) -> 00 | W61: 12 - Matériaux inertes | X61: Cat_12 | AX61: 15 | AY61: Composites et autres matériaux minéraux reconstitués >50% | AZ61: =VLOOKUP(AY61,'Comprendre la codification'!$D$49:$F$128,3,FALSE) -> 15
W62: A_150 | AX62: 91 | AY62: Granit >90% | AZ62: =VLOOKUP(AY62,'Comprendre la codification'!$D$49:$F$128,3,FALSE) -> 91
P63: MAT_11 | Q63: 11 - Mortiers, enduits, peintures, vernis, résines, produits de préparation | R63: Produits liquides, y.c. dangereux >90% | S63: Sous couches, préparation des sols et étanchéité, Peintures extérieures, Traitement des sols et toitures, Peintures intérieures, Colles et adhésifs, Résines PU et expansive (aérosol), Mastics, joints et mousses PU, Adjuvants, Traitement des bois, Traitement des matériaux (aérosol), Traitement des matériaux hors bois, Vernis et vitrificateurs et dérivés, Vernis et vitrificateurs et dérivés (aérosols), Enduits poudre, Enduits pate | T63: =VLOOKUP(R63,'Comprendre la codification'!$D$45:$F$128,3,FALSE) -> 83 | W63: 1 - Métal | X63: =VLOOKUP(W63,$AT$2:$AU$13,2,FALSE) -> Cat_1 | AX63: 94 | AY63: Grès >90% | AZ63: =VLOOKUP(AY63,'Comprendre la codification'!$D$49:$F$128,3,FALSE) -> 94
W64: 2 - Bois et dérivés de bois | X64: Cat_2 | AX64: 87 | AY64: Lave >90% | AZ64: =VLOOKUP(AY64,'Comprendre la codification'!$D$49:$F$128,3,FALSE) -> 87
P65: MAT_12 | Q65: 12 - Matériaux inertes | R65: Assemblage de matériaux avec de l'inerte >50% | T65: =VLOOKUP(R65,'Comprendre la codification'!$D$45:$F$128,3,FALSE) -> 08 | W65: 3 - Papier carton | X65: Cat_3 | AX65: 98 | AY65: Pierre artificielle >90% | AZ65: =VLOOKUP(AY65,'Comprendre la codification'!$D$49:$F$128,3,FALSE) -> 98
P66: MAT_12 | Q66: 12 - Matériaux inertes | R66: Composites et autres matériaux minéraux reconstitués >50% | T66: =VLOOKUP(R66,'Comprendre la codification'!$D$45:$F$128,3,FALSE) -> 15 | W66: 4 - Matériaux et fibres d'origine végétal ou animal autres que bois et papier, carton | X66: Cat_4 | AX66: 86 | AY66: Pierre calcaire >90% | AZ66: =VLOOKUP(AY66,'Comprendre la codification'!$D$49:$F$128,3,FALSE) -> 86
P67: MAT_12 | Q67: 12 - Matériaux inertes | R67: Ardoise >90% | S67: Ardoise | T67: =VLOOKUP(R67,'Comprendre la codification'!$D$45:$F$128,3,FALSE) -> 84 | W67: 5 - Plastique, matériaux et fibres synthétiques | X67: Cat_5 | AX67: 89 | AY67: Terre cuite ou crue >90% | AZ67: =VLOOKUP(AY67,'Comprendre la codification'!$D$49:$F$128,3,FALSE) -> 89
P68: MAT_12 | Q68: 12 - Matériaux inertes | R68: Granulats hors pierre >90% | S68: Matière minérale de petite taille (granulats, gravillons, sable, grave, gravier, moellon, concassé, …) hors pierre | T68: =VLOOKUP(R68,'Comprendre la codification'!$D$45:$F$128,3,FALSE) -> 85 | W68: 6 - Verre et parois vitrées | X68: Cat_6
P69: MAT_12 | Q69: 12 - Matériaux inertes | R69: Pierre calcaire >90% | S69: Matière minérale de grosse taille, hors granulats, gravillons, sable et hors pierres spécifiques comme l'ardoise | T69: =VLOOKUP(R69,'Comprendre la codification'!$D$45:$F$128,3,FALSE) -> 86 | W69: 10 - Autres mix matériaux ou matériaux non classés ou non spécifiés | X69: Cat_10
P70: MAT_12 | Q70: 12 - Matériaux inertes | R70: Lave >90% | T70: =VLOOKUP(R70,'Comprendre la codification'!$D$45:$F$128,3,FALSE) -> 87 | W70: A_152
P71: MAT_12 | Q71: 12 - Matériaux inertes | R71: Mélange bitumineux >90% | S71: Matière liquide à base de bitume | T71: =VLOOKUP(R71,'Comprendre la codification'!$D$45:$F$128,3,FALSE) -> 88 | W71: 1 - Métal | X71: =VLOOKUP(W71,$AT$2:$AU$13,2,FALSE) -> Cat_1
P72: MAT_12 | Q72: 12 - Matériaux inertes | R72: Terre cuite ou crue >90% | S72: Matière terre cuite | T72: =VLOOKUP(R72,'Comprendre la codification'!$D$45:$F$128,3,FALSE) -> 89 | W72: 2 - Bois et dérivés de bois | X72: Cat_2
P73: MAT_12 | Q73: 12 - Matériaux inertes | R73: Béton >90% | S73: Assemblage de granulats (graviers, gravillons, sables, etc.), d'un liant (ciment, bitume, argile) d'adjuvants et d'eau | T73: =VLOOKUP(R73,'Comprendre la codification'!$D$45:$F$128,3,FALSE) -> 74 | W73: 3 - Papier carton | X73: Cat_3
P74: MAT_12 | Q74: 12 - Matériaux inertes | R74: Béton cellulaire >90% | T74: =VLOOKUP(R74,'Comprendre la codification'!$D$45:$F$128,3,FALSE) -> 96 | W74: 4 - Matériaux et fibres d'origine végétal ou animal autres que bois et papier, carton | X74: Cat_4
P75: MAT_12 | Q75: 12 - Matériaux inertes | R75: Ciment >90% | T75: =VLOOKUP(R75,'Comprendre la codification'!$D$45:$F$128,3,FALSE) -> 90 | W75: 5 - Plastique, matériaux et fibres synthétiques | X75: Cat_5
P76: MAT_12 | Q76: 12 - Matériaux inertes | R76: Granit >90% | S76: Matière à base de faïence ou grès | T76: =VLOOKUP(R76,'Comprendre la codification'!$D$45:$F$128,3,FALSE) -> 91 | W76: 6 - Verre et parois vitrées | X76: Cat_6
P77: MAT_12 | Q77: 12 - Matériaux inertes | R77: Céramique >90% | T77: =VLOOKUP(R77,'Comprendre la codification'!$D$45:$F$128,3,FALSE) -> 97 | W77: 10 - Autres mix matériaux ou matériaux non classés ou non spécifiés | X77: Cat_10
P78: MAT_12 | Q78: 12 - Matériaux inertes | R78: Mortier >90% | T78: =VLOOKUP(R78,'Comprendre la codification'!$D$45:$F$128,3,FALSE) -> 92 | W78: 12 - Matériaux inertes | X78: Cat_12
P79: MAT_12 | Q79: 12 - Matériaux inertes | R79: Adjuvants >90% | T79: =VLOOKUP(R79,'Comprendre la codification'!$D$45:$F$128,3,FALSE) -> 93 | W79: A_155
P80: MAT_12 | Q80: 12 - Matériaux inertes | R80: Grès >90% | T80: =VLOOKUP(R80,'Comprendre la codification'!$D$45:$F$128,3,FALSE) -> 94 | W80: 1 - Métal | X80: =VLOOKUP(W80,$AT$2:$AU$13,2,FALSE) -> Cat_1
P81: MAT_12 | Q81: 12 - Matériaux inertes | R81: Chaux >90% | S81: Matériau obtenu par moulage d'agrégats divers, charges et liants (béton, pierre reconstituée) ou par synthèse chimique | T81: =VLOOKUP(R81,'Comprendre la codification'!$D$45:$F$128,3,FALSE) -> 95 | W81: 2 - Bois et dérivés de bois | X81: Cat_2
P82: MAT_12 | Q82: 12 - Matériaux inertes | R82: Pierre artificielle >90% | T82: =VLOOKUP(R82,'Comprendre la codification'!$D$45:$F$128,3,FALSE) -> 98 | W82: 3 - Papier carton | X82: Cat_3
W83: 4 - Matériaux et fibres d'origine végétal ou animal autres que bois et papier, carton | X83: Cat_4
W84: 5 - Plastique, matériaux et fibres synthétiques | X84: Cat_5
W85: 6 - Verre et parois vitrées | X85: Cat_6
W86: 10 - Autres mix matériaux ou matériaux non classés ou non spécifiés | X86: Cat_10
W87: 12 - Matériaux inertes | X87: Cat_12
W89: A_105
W90: 1 - Métal | X90: =VLOOKUP(W90,$AT$2:$AU$13,2,FALSE) -> Cat_1
W91: 2 - Bois et dérivés de bois | X91: Cat_2
W92: 3 - Papier carton | X92: Cat_3
W93: 4 - Matériaux et fibres d'origine végétal ou animal autres que bois et papier, carton | X93: Cat_4
W94: 5 - Plastique, matériaux et fibres synthétiques | X94: Cat_5
W95: 6 - Verre et parois vitrées | X95: Cat_6
W96: 10 - Autres mix matériaux ou matériaux non classés ou non spécifiés | X96: Cat_10
W97: 12 - Matériaux inertes | X97: Cat_12
D174: Textile et rembourrage en polyester >90%
B175: Code Mesure : 00 000 00 XXX 0

Sheet Codes éco-part (hidden)
B1: Codes éco-participation communs aux 4 filières | F1: 0
B2: La table ci-dessous contient les codes éco-participations et les montants correspondants pour 2024 et 2025
B5: Code éco-participation | C5: Montant € HT / article | D5: Montant € TTC / article (TVA à 20%)
B6: 618 | C6: 1.58 | D6: =C6*1.2 -> 1.896 | E6: =B6 -> 618
B7: 619 | C7: 0.77 | D7: =C7*1.2 -> 0.924 | E7: =B7 -> 619
B8: 002 | C8: 0.04 | D8: 0.05 | E8: 002
B9: 003 | C9: 0.08 | D9: 0.1 | E9: 003
B10: 004 | C10: 0.13 | D10: 0.16 | E10: 004
B11: 005 | C11: 0.17 | D11: 0.2 | E11: 005
B12: 006 | C12: 0.33 | D12: 0.4 | E12: 006
B13: 008 | C13: 0.83 | D13: 1 | E13: 008
B14: 009 | C14: 1.25 | D14: 1.5 | E14: 009
B15: 010 | C15: 1.67 | D15: 2 | E15: 010
B16: 011 | C16: 2.08 | D16: 2.5 | E16: 011
B17: 012 | C17: 2.5 | D17: 3 | E17: 012
B18: 013 | C18: 2.92 | D18: 3.5 | E18: 013
B19: 014 | C19: 3.33 | D19: 4 | E19: 014
B20: 015 | C20: 3.75 | D20: 4.5 | E20: 015
B21: 016 | C21: 4.17 | D21: 5 | E21: 016
B22: 017 | C22: 5.42 | D22: 6.5 | E22: 017
B23: 018 | C23: 5.83 | D23: 7 | E23: 018
B24: 019 | C24: 6.67 | D24: 8 | E24: 019
B25: 020 | C25: 7.5 | D25: 9 | E25: 020
B26: 021 | C26: 8.33 | D26: 10 | E26: 021
B27: 022 | C27: 10.83 | D27: 13 | E27: 022
B28: 023 | C28: 15 | D28: 18 | E28: 023
B29: 024 | C29: 19.17 | D29: 23 | E29: 024
B30: 026 | C30: 27.5 | D30: 33 | E30: 026
B31: 027 | C31: 31.67 | D31: 38 | E31: 027
B32: 029 | C32: 40 | D32: 48 | E32: 029
B33: 032 | C33: 52.5 | D33: 63 | E33: 032
B34: 036 | C34: 69.17 | D34: 83 | E34: 036
B35: 042 | C35: 5 | D35: 6 | E35: 042
B36: 043 | C36: 0.34 | D36: 0.41 | E36: 043
B37: 044 | C37: 0.68 | D37: 0.82 | E37: 044
B38: 047 | C38: 0.02 | D38: 0.02 | E38: 047
B39: 048 | C39: 0.05 | D39: 0.06 | E39: 048
B40: 049 | C40: 0.09 | D40: 0.11 | E40: 049
B41: 050 | C41: 0.15 | D41: 0.18 | E41: 050
B42: 051 | C42: 0.21 | D42: 0.25 | E42: 051
B43: 053 | C43: 0.5 | D43: 0.6 | E43: 053
B44: 054 | C44: 0.92 | D44: 1.1 | E44: 054
B45: 055 | C45: 0.96 | D45: 1.15 | E45: 055
B46: 056 | C46: 1 | D46: 1.2 | E46: 056
B47: 057 | C47: 1.42 | D47: 1.7 | E47: 057
B48: 058 | C48: 1.46 | D48: 1.75 | E48: 058
B49: 059 | C49: 1.5 | D49: 1.8 | E49: 059
B50: 060 | C50: 1.92 | D50: 2.3 | E50: 060
B51: 061 | C51: 2 | D51: 2.4 | E51: 061
B52: 062 | C52: 2.33 | D52: 2.8 | E52: 062
B53: 065 | C53: 4.58 | D53: 5.5 | E53: 065
B54: 067 | C54: 7.08 | D54: 8.5 | E54: 067
B55: 068 | C55: 7.92 | D55: 9.5 | E55: 068
B56: 069 | C56: 8.75 | D56: 10.5 | E56: 069
B57: 070 | C57: 9.17 | D57: 11 | E57: 070
B58: 072 | C58: 12.5 | D58: 15 | E58: 072
B59: 073 | C59: 17.5 | D59: 21 | E59: 073
B60: 074 | C60: 21.67 | D60: 26 | E60: 074
B61: 075 | C61: 26.67 | D61: 32 | E61: 075
B62: 079 | C62: 51.67 | D62: 62 | E62: 079
B63: 080 | C63: 61.67 | D63: 74 | E63: 080
B64: 083 | C64: 76.67 | D64: 92 | E64: 083
B65: 084 | C65: 86.67 | D65: 104 | E65: 084
B66: 088 | C66: 106.67 | D66: 128 | E66: 088
B67: 092 | C67: 0.03 | D67: 0.04 | E67: 092
B68: 094 | C68: 0.1 | D68: 0.12 | E68: 094
B69: 095 | C69: 0.25 | D69: 0.3 | E69: 095
B70: 096 | C70: 0.06 | D70: 0.07 | E70: 096
B71: 097 | C71: 0.12 | D71: 0.14 | E71: =B71 -> 097
B72: 098 | C72: 0.14 | D72: 0.17 | E72: 098
B73: 099 | C73: 0.16 | D73: 0.19 | E73: 099
B74: 100 | C74: 0.18 | D74: 0.22 | E74: 100
B75: 101 | C75: 0.2 | D75: 0.24 | E75: 101
B76: 103 | C76: 0.27 | D76: 0.32 | E76: 103
B77: 104 | C77: 0.31 | D77: 0.37 | E77: 104
B78: 105 | C78: 0.4 | D78: 0.48 | E78: 105
B79: 106 | C79: 0.46 | D79: 0.55 | E79: 106
B80: 107 | C80: 0.47 | D80: 0.56 | E80: 107
B81: 108 | C81: 0.49 | D81: 0.59 | E81: 108
B82: 109 | C82: 0.51 | D82: 0.61 | E82: 109
B83: 110 | C83: 0.67 | D83: 0.8 | E83: 110
B84: 111 | C84: 0.69 | D84: 0.83 | E84: 111
B85: 112 | C85: 0.81 | D85: 0.97 | E85: 112
B86: 113 | C86: 1.08 | D86: 1.3 | E86: 113
B87: 114 | C87: 1.21 | D87: 1.45 | E87: 114
B88: 115 | C88: 1.33 | D88: 1.6 | E88: 115
B89: 116 | C89: 1.71 | D89: 2.05 | E89: 116
B90: 117 | C90: 1.83 | D90: 2.2 | E90: 117
B91: 118 | C91: 2.25 | D91: 2.7 | E91: 118
B92: 119 | C92: 2.67 | D92: 3.2 | E92: 119
B93: 120 | C93: 2.75 | D93: 3.3 | E93: 120
B94: 121 | C94: 3.08 | D94: 3.7 | E94: 121
B95: 122 | C95: 3.25 | D95: 3.9 | E95: 122
B96: 123 | C96: 3.58 | D96: 4.3 | E96: 123
B97: 124 | C97: 3.67 | D97: 4.4 | E97: 124
B98: 125 | C98: 3.92 | D98: 4.7 | E98: 125
B99: 126 | C99: 4.42 | D99: 5.3 | E99: 126
B100: 127 | C100: 4.5 | D100: 5.4 | E100: 127
B101: 128 | C101: 4.67 | D101: 5.6 | E101: 128
B102: 129 | C102: 4.75 | D102: 5.7 | E102: 129
B103: 130 | C103: 4.83 | D103: 5.8 | E103: 130
B104: 131 | C104: 5.17 | D104: 6.2 | E104: 131
B105: 132 | C105: 5.33 | D105: 6.4 | E105: 132
B106: 133 | C106: 5.58 | D106: 6.7 | E106: 133
B107: 134 | C107: 6.08 | D107: 7.3 | E107: 134
B108: 135 | C108: 6.25 | D108: 7.5 | E108: 135
B109: 136 | C109: 6.92 | D109: 8.3 | E109: 136
B110: 137 | C110: 8.83 | D110: 10.6 | E110: 137
B111: 138 | C111: 10 | D111: 12 | E111: 138
B112: 139 | C112: 10.42 | D112: 12.5 | E112: 139
B113: 140 | C113: 11.25 | D113: 13.5 | E113: 140
B114: 141 | C114: 11.67 | D114: 14 | E114: 141
B115: 142 | C115: 13.33 | D115: 16 | E115: 142
B116: 143 | C116: 14.17 | D116: 17 | E116: 143
B117: 144 | C117: 15.42 | D117: 18.5 | E117: 144
B118: 145 | C118: 16.25 | D118: 19.5 | E118: 145
B119: 146 | C119: 17.08 | D119: 20.5 | E119: 146
B120: 147 | C120: 18.33 | D120: 22 | E120: 147
B121: 148 | C121: 20 | D121: 24 | E121: 148
B122: 149 | C122: 20.83 | D122: 25 | E122: 149
B123: 150 | C123: 22.5 | D123: 27 | E123: 150
B124: 151 | C124: 25 | D124: 30 | E124: 151
B125: 152 | C125: 26.92 | D125: 32.3 | E125: 152
B126: 153 | C126: 30 | D126: 36 | E126: 153
B127: 154 | C127: 30.83 | D127: 37 | E127: 154
B128: 155 | C128: 31.25 | D128: 37.5 | E128: 155
B129: 156 | C129: 32.17 | D129: 38.6 | E129: 156
B130: 157 | C130: 32.5 | D130: 39 | E130: 157
B131: 158 | C131: 34.17 | D131: 41 | E131: 158
B132: 159 | C132: 35 | D132: 42 | E132: 159
B133: 160 | C133: 35.42 | D133: 42.5 | E133: 160
B134: 161 | C134: 37.42 | D134: 44.9 | E134: 161
B135: 162 | C135: 37.5 | D135: 45 | E135: =B135 -> 162
B136: 163 | C136: 39.17 | D136: 47 | E136: 163
B137: 164 | C137: 42.5 | D137: 51 | E137: 164
B138: 165 | C138: 42.67 | D138: 51.2 | E138: 165
B139: 166 | C139: 42.92 | D139: 51.5 | E139: 166
B140: 167 | C140: 43.33 | D140: 52 | E140: 167
B141: 168 | C141: 43.75 | D141: 52.5 | E141: 168
B142: 169 | C142: 45 | D142: 54 | E142: 169
B143: 170 | C143: 45.42 | D143: 54.5 | E143: 170
B144: 171 | C144: 47.5 | D144: 57 | E144: 171
B145: 172 | C145: 47.92 | D145: 57.5 | E145: 172
B146: 173 | C146: 50 | D146: 60 | E146: 173
B147: 174 | C147: 50.42 | D147: 60.5 | E147: 174
B148: 175 | C148: 53.17 | D148: 63.8 | E148: 175
B149: 176 | C149: 55.42 | D149: 66.5 | E149: 176
B150: 177 | C150: 55.83 | D150: 67 | E150: 177
B151: 178 | C151: 56.25 | D151: 67.5 | E151: 178
B152: 179 | C152: 58.42 | D152: 70.1 | E152: 179
B153: 180 | C153: 60 | D153: 72 | E153: 180
B154: 181 | C154: 60.42 | D154: 72.5 | E154: 181
B155: 182 | C155: 62.5 | D155: 75 | E155: 182
B156: 183 | C156: 63.67 | D156: 76.4 | E156: 183
B157: 184 | C157: 64.17 | D157: 77 | E157: 184
B158: 185 | C158: 65.42 | D158: 78.5 | E158: 185
B159: 186 | C159: 68.33 | D159: 82 | E159: 186
B160: 187 | C160: 68.75 | D160: 82.5 | E160: 187
B161: 188 | C161: 68.92 | D161: 82.7 | E161: 188
B162: 189 | C162: 72.5 | D162: 87 | E162: 189
B163: 190 | C163: 72.92 | D163: 87.5 | E163: 190
B164: 191 | C164: 74.17 | D164: 89 | E164: 191
B165: 192 | C165: 75 | D165: 90 | E165: 192
B166: 193 | C166: 75.42 | D166: 90.5 | E166: 193
B167: 194 | C167: 77.92 | D167: 93.5 | E167: 194
B168: 195 | C168: 79.42 | D168: 95.3 | E168: 195
B169: 196 | C169: 80.83 | D169: 97 | E169: 196
B170: 197 | C170: 81.25 | D170: 97.5 | E170: 197
B171: 198 | C171: 84.17 | D171: 101 | E171: 198
B172: 199 | C172: 84.67 | D172: 101.6 | E172: 199
B173: 200 | C173: 85 | D173: 102 | E173: 200
B174: 201 | C174: 85.42 | D174: 102.5 | E174: 201
B175: 202 | C175: 87.5 | D175: 105 | E175: 202
B176: 203 | C176: 89.92 | D176: 107.9 | E176: 203
B177: 204 | C177: 93.75 | D177: 112.5 | E177: 204
B178: 205 | C178: 95.17 | D178: 114.2 | E178: 205
B179: 206 | C179: 95.42 | D179: 114.5 | E179: 206
B180: 207 | C180: 100 | D180: 120 | E180: 207
B181: 208 | C181: 100.42 | D181: 120.5 | E181: 208
B182: 209 | C182: 104.17 | D182: 125 | E182: 209
B183: 210 | C183: 105.42 | D183: 126.5 | E183: 210
B184: 211 | C184: 105.67 | D184: 126.8 | E184: 211
B185: 212 | C185: 106.25 | D185: 127.5 | E185: 212
B186: 213 | C186: 110.92 | D186: 133.1 | E186: 213
B187: 214 | C187: 112.5 | D187: 135 | E187: 214
B188: 215 | C188: 112.92 | D188: 135.5 | E188: 215
B189: 216 | C189: 115.42 | D189: 138.5 | E189: 216
B190: 217 | C190: 117.92 | D190: 141.5 | E190: 217
B191: 218 | C191: 118.75 | D191: 142.5 | E191: 218
B192: 219 | C192: 121.67 | D192: 146 | E192: 219
B193: 220 | C193: 125 | D193: 150 | E193: 220
B194: 221 | C194: 125.42 | D194: 150.5 | E194: 221
B195: 222 | C195: 129.17 | D195: 155 | E195: 222
B196: 223 | C196: 130.42 | D196: 156.5 | E196: 223
B197: 224 | C197: 131.25 | D197: 157.5 | E197: 224
B198: 225 | C198: 135.42 | D198: 162.5 | E198: 225
B199: 226 | C199: 139.17 | D199: 167 | E199: =B199 -> 226
B200: 227 | C200: 140.42 | D200: 168.5 | E200: 227
B201: 228 | C201: 145.42 | D201: 174.5 | E201: 228
B202: 229 | C202: 147.92 | D202: 177.5 | E202: 229
... 721 more rows

Sheet Codes
A1: REP | B1: Cat. REP | C1: Code Ecomaison | D1: Code Ecomodulé | E1: Rayon | F1: Catégorie de produits | G1: Matériaux | H1: Tranches de dimensions | I1: Mesure | J1: Tarifs | K1: Eco-participation 2025 | L1: Code Eco part | M1: Tarif TTC 20%
A2: REP ABJ | B2: 3 | C2: 21100000000 | E2: Articles de bricolage | F2: Outillage à main et leurs accessoires | G2: Non connu ou non spécifié par l'entreprise | H2: Eléments de toutes dimensions et poids | I2: € / Tonne | J2: 322 | K2: 322 | L2: =_xlfn.XLOOKUP(K2,'Codes éco-part'!$C$6:$C$923,'Codes éco-part'!$B$6:$B$923) -> 607 | M2: =ROUND(K2*1.2,2) -> 386.4
A3: REP ABJ | B3: 3 | C3: 21100000001 | D3: modulé | E3: Articles de bricolage | F3: Outillage à main et leurs accessoires | G3: Non connu ou non spécifié par l'entreprise | H3: Eléments de toutes dimensions et poids | I3: € / Tonne | J3: 289.8 | K3: 289.8 | L3: =_xlfn.XLOOKUP(K3,'Codes éco-part'!$C$6:$C$923,'Codes éco-part'!$B$6:$B$923) -> 936 | M3: 347.76
A4: REP ABJ | B4: 3 | C4: 21100000200 | E4: Articles de bricolage | F4: Outillage à main et leurs accessoires | G4: Non connu ou non spécifié par l'entreprise | H4: Inférieur strictement à 0,5 kg | I4: €/unité | J4: 0.08 | K4: 0.08 | L4: =_xlfn.XLOOKUP(K4,'Codes éco-part'!$C$6:$C$923,'Codes éco-part'!$B$6:$B$923) -> 003 | M4: 0.1
A5: REP ABJ | B5: 3 | C5: 21100000201 | D5: modulé | E5: Articles de bricolage | F5: Outillage à main et leurs accessoires | G5: Non connu ou non spécifié par l'entreprise | H5: Inférieur strictement à 0,5 kg | I5: €/unité | J5: 0.07 | K5: 0.07 | L5: =_xlfn.XLOOKUP(K5,'Codes éco-part'!$C$6:$C$923,'Codes éco-part'!$B$6:$B$923) -> 247 | M5: 0.08
A6: REP ABJ | B6: 3 | C6: 21100000210 | E6: Articles de bricolage | F6: Outillage à main et leurs accessoires | G6: Non connu ou non spécifié par l'entreprise | H6: Compris entre 0,5 kg et 1 kg exclus | I6: €/unité | J6: 0.24 | K6: 0.24 | L6: =_xlfn.XLOOKUP(K6,'Codes éco-part'!$C$6:$C$923,'Codes éco-part'!$B$6:$B$923) -> 248 | M6: 0.29
A7: REP ABJ | B7: 3 | C7: 21100000211 | D7: modulé | E7: Articles de bricolage | F7: Outillage à main et leurs accessoires | G7: Non connu ou non spécifié par l'entreprise | H7: Compris entre 0,5 kg et 1 kg exclus | I7: €/unité | J7: 0.22 | K7: 0.22 | L7: =_xlfn.XLOOKUP(K7,'Codes éco-part'!$C$6:$C$923,'Codes éco-part'!$B$6:$B$923) -> 263 | M7: 0.26
A8: REP ABJ | B8: 3 | C8: 21100000220 | E8: Articles de bricolage | F8: Outillage à main et leurs accessoires | G8: Non connu ou non spécifié par l'entreprise | H8: Compris entre 1 kg et 2 kg exclus | I8: €/unité | J8: 0.48 | K8: 0.48 | L8: =_xlfn.XLOOKUP(K8,'Codes éco-part'!$C$6:$C$923,'Codes éco-part'!$B$6:$B$923) -> 606 | M8: 0.58
A9: REP ABJ | B9: 3 | C9: 21100000221 | D9: modulé | E9: Articles de bricolage | F9: Outillage à main et leurs accessoires | G9: Non connu ou non spécifié par l'entreprise | H9: Compris entre 1 kg et 2 kg exclus | I9: €/unité | J9: 0.43 | K9: 0.43 | L9: =_xlfn.XLOOKUP(K9,'Codes éco-part'!$C$6:$C$923,'Codes éco-part'!$B$6:$B$923) -> 506 | M9: 0.52
A10: REP ABJ | B10: 3 | C10: 21100000520 | E10: Articles de bricolage | F10: Outillage à main et leurs accessoires | G10: Non connu ou non spécifié par l'entreprise | H10: Compris entre 2 kg et 3 kg exclus | I10: €/unité | J10: 0.81 | K10: 0.81 | L10: =_xlfn.XLOOKUP(K10,'Codes éco-part'!$C$6:$C$923,'Codes éco-part'!$B$6:$B$923) -> 112 | M10: 0.97
A11: REP ABJ | B11: 3 | C11: 21100000521 | D11: modulé | E11: Articles de bricolage | F11: Outillage à main et leurs accessoires | G11: Non connu ou non spécifié par l'entreprise | H11: Compris entre 2 kg et 3 kg exclus | I11: €/unité | J11: 0.73 | K11: 0.73 | L11: =_xlfn.XLOOKUP(K11,'Codes éco-part'!$C$6:$C$923,'Codes éco-part'!$B$6:$B$923) -> 255 | M11: 0.88
A12: REP ABJ | B12: 3 | C12: 21100000530 | E12: Articles de bricolage | F12: Outillage à main et leurs accessoires | G12: Non connu ou non spécifié par l'entreprise | H12: Compris entre 3 kg et 5 kg exclus | I12: €/unité | J12: 1.29 | K12: 1.29 | L12: =_xlfn.XLOOKUP(K12,'Codes éco-part'!$C$6:$C$923,'Codes éco-part'!$B$6:$B$923) -> 608 | M12: 1.55
A13: REP ABJ | B13: 3 | C13: 21100000531 | D13: modulé | E13: Articles de bricolage | F13: Outillage à main et leurs accessoires | G13: Non connu ou non spécifié par l'entreprise | H13: Compris entre 3 kg et 5 kg exclus | I13: €/unité | J13: 1.16 | K13: 1.16 | L13: =_xlfn.XLOOKUP(K13,'Codes éco-part'!$C$6:$C$923,'Codes éco-part'!$B$6:$B$923) -> 504 | M13: 1.39
A14: REP ABJ | B14: 3 | C14: 21100000540 | E14: Articles de bricolage | F14: Outillage à main et leurs accessoires | G14: Non connu ou non spécifié par l'entreprise | H14: Compris entre 5 kg et 7 kg exclus | I14: €/unité | J14: 2.25 | K14: 2.25 | L14: =_xlfn.XLOOKUP(K14,'Codes éco-part'!$C$6:$C$923,'Codes éco-part'!$B$6:$B$923) -> 118 | M14: 2.7
A15: REP ABJ | B15: 3 | C15: 21100000541 | D15: modulé | E15: Articles de bricolage | F15: Outillage à main et leurs accessoires | G15: Non connu ou non spécifié par l'entreprise | H15: Compris entre 5 kg et 7 kg exclus | I15: €/unité | J15: 2.03 | K15: 2.03 | L15: =_xlfn.XLOOKUP(K15,'Codes éco-part'!$C$6:$C$923,'Codes éco-part'!$B$6:$B$923) -> 937 | M15: 2.44
A16: REP ABJ | B16: 3 | C16: 21100010000 | E16: Articles de bricolage | F16: Outillage à main et leurs accessoires | G16: Assemblage de bois, dérivés de bois à plus de 50% avec d'autres matériaux ou bois composite (hors verre) | H16: Eléments de toutes dimensions et poids | I16: € / Tonne | J16: 55 | K16: 55 | L16: =_xlfn.XLOOKUP(K16,'Codes éco-part'!$C$6:$C$923,'Codes éco-part'!$B$6:$B$923) -> 490 | M16: 66
A17: REP ABJ | B17: 3 | C17: 21100010001 | D17: modulé | E17: Articles de bricolage | F17: Outillage à main et leurs accessoires | G17: Assemblage de bois, dérivés de bois à plus de 50% avec d'autres matériaux ou bois composite (hors verre) | H17: Eléments de toutes dimensions et poids | I17: € / Tonne | J17: 49.5 | K17: 49.5 | L17: =_xlfn.XLOOKUP(K17,'Codes éco-part'!$C$6:$C$923,'Codes éco-part'!$B$6:$B$923) -> 938 | M17: 59.4
A18: REP ABJ | B18: 3 | C18: 21100010200 | E18: Articles de bricolage | F18: Outillage à main et leurs accessoires | G18: Assemblage de bois, dérivés de bois à plus de 50% avec d'autres matériaux ou bois composite (hors verre) | H18: Inférieur strictement à 0,5 kg | I18: €/unité | J18: 0.01 | K18: 0.01 | L18: =_xlfn.XLOOKUP(K18,'Codes éco-part'!$C$6:$C$923,'Codes éco-part'!$B$6:$B$923) -> 260 | M18: 0.01
A19: REP ABJ | B19: 3 | C19: 21100010201 | D19: modulé | E19: Articles de bricolage | F19: Outillage à main et leurs accessoires | G19: Assemblage de bois, dérivés de bois à plus de 50% avec d'autres matériaux ou bois composite (hors verre) | H19: Inférieur strictement à 0,5 kg | I19: €/unité | J19: 0.01 | K19: 0.01 | L19: =_xlfn.XLOOKUP(K19,'Codes éco-part'!$C$6:$C$923,'Codes éco-part'!$B$6:$B$923) -> 260 | M19: 0.01
A20: REP ABJ | B20: 3 | C20: 21100010210 | E20: Articles de bricolage | F20: Outillage à main et leurs accessoires | G20: Assemblage de bois, dérivés de bois à plus de 50% avec d'autres matériaux ou bois composite (hors verre) | H20: Compris entre 0,5 kg et 1 kg exclus | I20: €/unité | J20: 0.04 | K20: 0.04 | L20: =_xlfn.XLOOKUP(K20,'Codes éco-part'!$C$6:$C$923,'Codes éco-part'!$B$6:$B$923) -> 002 | M20: 0.05
A21: REP ABJ | B21: 3 | C21: 21100010211 | D21: modulé | E21: Articles de bricolage | F21: Outillage à main et leurs accessoires | G21: Assemblage de bois, dérivés de bois à plus de 50% avec d'autres matériaux ou bois composite (hors verre) | H21: Compris entre 0,5 kg et 1 kg exclus | I21: €/unité | J21: 0.04 | K21: 0.04 | L21: =_xlfn.XLOOKUP(K21,'Codes éco-part'!$C$6:$C$923,'Codes éco-part'!$B$6:$B$923) -> 002 | M21: 0.05
A22: REP ABJ | B22: 3 | C22: 21100010220 | E22: Articles de bricolage | F22: Outillage à main et leurs accessoires | G22: Assemblage de bois, dérivés de bois à plus de 50% avec d'autres matériaux ou bois composite (hors verre) | H22: Compris entre 1 kg et 2 kg exclus | I22: €/unité | J22: 0.08 | K22: 0.08 | L22: =_xlfn.XLOOKUP(K22,'Codes éco-part'!$C$6:$C$923,'Codes éco-part'!$B$6:$B$923) -> 003 | M22: 0.1
A23: REP ABJ | B23: 3 | C23: 21100010221 | D23: modulé | E23: Articles de bricolage | F23: Outillage à main et leurs accessoires | G23: Assemblage de bois, dérivés de bois à plus de 50% avec d'autres matériaux ou bois composite (hors verre) | H23: Compris entre 1 kg et 2 kg exclus | I23: €/unité | J23: 0.07 | K23: 0.07 | L23: =_xlfn.XLOOKUP(K23,'Codes éco-part'!$C$6:$C$923,'Codes éco-part'!$B$6:$B$923) -> 247 | M23: 0.08
A24: REP ABJ | B24: 3 | C24: 21100010520 | E24: Articles de bricolage | F24: Outillage à main et leurs accessoires | G24: Assemblage de bois, dérivés de bois à plus de 50% avec d'autres matériaux ou bois composite (hors verre) | H24: Compris entre 2 kg et 3 kg exclus | I24: €/unité | J24: 0.14 | K24: 0.14 | L24: =_xlfn.XLOOKUP(K24,'Codes éco-part'!$C$6:$C$923,'Codes éco-part'!$B$6:$B$923) -> 098 | M24: 0.17
A25: REP ABJ | B25: 3 | C25: 21100010521 | D25: modulé | E25: Articles de bricolage | F25: Outillage à main et leurs accessoires | G25: Assemblage de bois, dérivés de bois à plus de 50% avec d'autres matériaux ou bois composite (hors verre) | H25: Compris entre 2 kg et 3 kg exclus | I25: €/unité | J25: 0.13 | K25: 0.13 | L25: =_xlfn.XLOOKUP(K25,'Codes éco-part'!$C$6:$C$923,'Codes éco-part'!$B$6:$B$923) -> 004 | M25: 0.16
A26: REP ABJ | B26: 3 | C26: 21100010530 | E26: Articles de bricolage | F26: Outillage à main et leurs accessoires | G26: Assemblage de bois, dérivés de bois à plus de 50% avec d'autres matériaux ou bois composite (hors verre) | H26: Compris entre 3 kg et 5 kg exclus | I26: €/unité | J26: 0.22 | K26: 0.22 | L26: =_xlfn.XLOOKUP(K26,'Codes éco-part'!$C$6:$C$923,'Codes éco-part'!$B$6:$B$923) -> 263 | M26: 0.26
A27: REP ABJ | B27: 3 | C27: 21100010531 | D27: modulé | E27: Articles de bricolage | F27: Outillage à main et leurs accessoires | G27: Assemblage de bois, dérivés de bois à plus de 50% avec d'autres matériaux ou bois composite (hors verre) | H27: Compris entre 3 kg et 5 kg exclus | I27: €/unité | J27: 0.2 | K27: 0.2 | L27: =_xlfn.XLOOKUP(K27,'Codes éco-part'!$C$6:$C$923,'Codes éco-part'!$B$6:$B$923) -> 101 | M27: 0.24
A28: REP ABJ | B28: 3 | C28: 21100010540 | E28: Articles de bricolage | F28: Outillage à main et leurs accessoires | G28: Assemblage de bois, dérivés de bois à plus de 50% avec d'autres matériaux ou bois composite (hors verre) | H28: Compris entre 5 kg et 7 kg exclus | I28: €/unité | J28: 0.39 | K28: 0.39 | L28: =_xlfn.XLOOKUP(K28,'Codes éco-part'!$C$6:$C$923,'Codes éco-part'!$B$6:$B$923) -> 253 | M28: 0.47
A29: REP ABJ | B29: 3 | C29: 21100010541 | D29: modulé | E29: Articles de bricolage | F29: Outillage à main et leurs accessoires | G29: Assemblage de bois, dérivés de bois à plus de 50% avec d'autres matériaux ou bois composite (hors verre) | H29: Compris entre 5 kg et 7 kg exclus | I29: €/unité | J29: 0.35 | K29: 0.35 | L29: =_xlfn.XLOOKUP(K29,'Codes éco-part'!$C$6:$C$923,'Codes éco-part'!$B$6:$B$923) -> 448 | M29: 0.42
A30: REP ABJ | B30: 3 | C30: 21100020000 | E30: Articles de bricolage | F30: Outillage à main et leurs accessoires | G30: Assemblage avec métal >50% et autres matériaux | H30: Eléments de toutes dimensions et poids | I30: € / Tonne | J30: 14 | K30: 14 | L30: =_xlfn.XLOOKUP(K30,'Codes éco-part'!$C$6:$C$923,'Codes éco-part'!$B$6:$B$923) -> 532 | M30: 16.8
A31: REP ABJ | B31: 3 | C31: 21100020001 | D31: modulé | E31: Articles de bricolage | F31: Outillage à main et leurs accessoires | G31: Assemblage avec métal >50% et autres matériaux | H31: Eléments de toutes dimensions et poids | I31: € / Tonne | J31: 12.6 | K31: 12.6 | L31: =_xlfn.XLOOKUP(K31,'Codes éco-part'!$C$6:$C$923,'Codes éco-part'!$B$6:$B$923) -> 939 | M31: 15.12
A32: REP ABJ | B32: 3 | C32: 21100020200 | E32: Articles de bricolage | F32: Outillage à main et leurs accessoires | G32: Assemblage avec métal >50% et autres matériaux | H32: Inférieur strictement à 0,5 kg | I32: €/unité | J32: 0.01 | K32: 0.01 | L32: =_xlfn.XLOOKUP(K32,'Codes éco-part'!$C$6:$C$923,'Codes éco-part'!$B$6:$B$923) -> 260 | M32: 0.01
A33: REP ABJ | B33: 3 | C33: 21100020201 | D33: modulé | E33: Articles de bricolage | F33: Outillage à main et leurs accessoires | G33: Assemblage avec métal >50% et autres matériaux | H33: Inférieur strictement à 0,5 kg | I33: €/unité | J33: 0.01 | K33: 0.01 | L33: =_xlfn.XLOOKUP(K33,'Codes éco-part'!$C$6:$C$923,'Codes éco-part'!$B$6:$B$923) -> 260 | M33: 0.01
A34: REP ABJ | B34: 3 | C34: 21100020210 | E34: Articles de bricolage | F34: Outillage à main et leurs accessoires | G34: Assemblage avec métal >50% et autres matériaux | H34: Compris entre 0,5 kg et 1 kg exclus | I34: €/unité | J34: 0.01 | K34: 0.01 | L34: =_xlfn.XLOOKUP(K34,'Codes éco-part'!$C$6:$C$923,'Codes éco-part'!$B$6:$B$923) -> 260 | M34: 0.01
A35: REP ABJ | B35: 3 | C35: 21100020211 | D35: modulé | E35: Articles de bricolage | F35: Outillage à main et leurs accessoires | G35: Assemblage avec métal >50% et autres matériaux | H35: Compris entre 0,5 kg et 1 kg exclus | I35: €/unité | J35: 0.01 | K35: 0.01 | L35: =_xlfn.XLOOKUP(K35,'Codes éco-part'!$C$6:$C$923,'Codes éco-part'!$B$6:$B$923) -> 260 | M35: 0.01
A36: REP ABJ | B36: 3 | C36: 21100020220 | E36: Articles de bricolage | F36: Outillage à main et leurs accessoires | G36: Assemblage avec métal >50% et autres matériaux | H36: Compris entre 1 kg et 2 kg exclus | I36: €/unité | J36: 0.02 | K36: 0.02 | L36: =_xlfn.XLOOKUP(K36,'Codes éco-part'!$C$6:$C$923,'Codes éco-part'!$B$6:$B$923) -> 047 | M36: 0.02
A37: REP ABJ | B37: 3 | C37: 21100020221 | D37: modulé | E37: Articles de bricolage | F37: Outillage à main et leurs accessoires | G37: Assemblage avec métal >50% et autres matériaux | H37: Compris entre 1 kg et 2 kg exclus | I37: €/unité | J37: 0.02 | K37: 0.02 | L37: =_xlfn.XLOOKUP(K37,'Codes éco-part'!$C$6:$C$923,'Codes éco-part'!$B$6:$B$923) -> 047 | M37: 0.02
A38: REP ABJ | B38: 3 | C38: 21100020520 | E38: Articles de bricolage | F38: Outillage à main et leurs accessoires | G38: Assemblage avec métal >50% et autres matériaux | H38: Compris entre 2 kg et 3 kg exclus | I38: €/unité | J38: 0.04 | K38: 0.04 | L38: =_xlfn.XLOOKUP(K38,'Codes éco-part'!$C$6:$C$923,'Codes éco-part'!$B$6:$B$923) -> 002 | M38: 0.05
A39: REP ABJ | B39: 3 | C39: 21100020521 | D39: modulé | E39: Articles de bricolage | F39: Outillage à main et leurs accessoires | G39: Assemblage avec métal >50% et autres matériaux | H39: Compris entre 2 kg et 3 kg exclus | I39: €/unité | J39: 0.04 | K39: 0.04 | L39: =_xlfn.XLOOKUP(K39,'Codes éco-part'!$C$6:$C$923,'Codes éco-part'!$B$6:$B$923) -> 002 | M39: 0.05
A40: REP ABJ | B40: 3 | C40: 21100020530 | E40: Articles de bricolage | F40: Outillage à main et leurs accessoires | G40: Assemblage avec métal >50% et autres matériaux | H40: Compris entre 3 kg et 5 kg exclus | I40: €/unité | J40: 0.06 | K40: 0.06 | L40: =_xlfn.XLOOKUP(K40,'Codes éco-part'!$C$6:$C$923,'Codes éco-part'!$B$6:$B$923) -> 096 | M40: 0.07
A41: REP ABJ | B41: 3 | C41: 21100020531 | D41: modulé | E41: Articles de bricolage | F41: Outillage à main et leurs accessoires | G41: Assemblage avec métal >50% et autres matériaux | H41: Compris entre 3 kg et 5 kg exclus | I41: €/unité | J41: 0.05 | K41: 0.05 | L41: =_xlfn.XLOOKUP(K41,'Codes éco-part'!$C$6:$C$923,'Codes éco-part'!$B$6:$B$923) -> 048 | M41: 0.06
A42: REP ABJ | B42: 3 | C42: 21100020540 | E42: Articles de bricolage | F42: Outillage à main et leurs accessoires | G42: Assemblage avec métal >50% et autres matériaux | H42: Compris entre 5 kg et 7 kg exclus | I42: €/unité | J42: 0.1 | K42: 0.1 | L42: =_xlfn.XLOOKUP(K42,'Codes éco-part'!$C$6:$C$923,'Codes éco-part'!$B$6:$B$923) -> 094 | M42: 0.12
A43: REP ABJ | B43: 3 | C43: 21100020541 | D43: modulé | E43: Articles de bricolage | F43: Outillage à main et leurs accessoires | G43: Assemblage avec métal >50% et autres matériaux | H43: Compris entre 5 kg et 7 kg exclus | I43: €/unité | J43: 0.09 | K43: 0.09 | L43: =_xlfn.XLOOKUP(K43,'Codes éco-part'!$C$6:$C$923,'Codes éco-part'!$B$6:$B$923) -> 049 | M43: 0.11
A44: REP ABJ | B44: 3 | C44: 21100040000 | E44: Articles de bricolage | F44: Outillage à main et leurs accessoires | G44: Matériaux bio sourcés ou textiles non synthétiques >50% | H44: Eléments de toutes dimensions et poids | I44: € / Tonne | J44: 322 | K44: 322 | L44: =_xlfn.XLOOKUP(K44,'Codes éco-part'!$C$6:$C$923,'Codes éco-part'!$B$6:$B$923) -> 607 | M44: 386.4
A45: REP ABJ | B45: 3 | C45: 21100040001 | D45: modulé | E45: Articles de bricolage | F45: Outillage à main et leurs accessoires | G45: Matériaux bio sourcés ou textiles non synthétiques >50% | H45: Eléments de toutes dimensions et poids | I45: € / Tonne | J45: 289.8 | K45: 289.8 | L45: =_xlfn.XLOOKUP(K45,'Codes éco-part'!$C$6:$C$923,'Codes éco-part'!$B$6:$B$923) -> 936 | M45: 347.76
A46: REP ABJ | B46: 3 | C46: 21100040200 | E46: Articles de bricolage | F46: Outillage à main et leurs accessoires | G46: Matériaux bio sourcés ou textiles non synthétiques >50% | H46: Inférieur strictement à 0,5 kg | I46: €/unité | J46: 0.08 | K46: 0.08 | L46: =_xlfn.XLOOKUP(K46,'Codes éco-part'!$C$6:$C$923,'Codes éco-part'!$B$6:$B$923) -> 003 | M46: 0.1
A47: REP ABJ | B47: 3 | C47: 21100040201 | D47: modulé | E47: Articles de bricolage | F47: Outillage à main et leurs accessoires | G47: Matériaux bio sourcés ou textiles non synthétiques >50% | H47: Inférieur strictement à 0,5 kg | I47: €/unité | J47: 0.07 | K47: 0.07 | L47: =_xlfn.XLOOKUP(K47,'Codes éco-part'!$C$6:$C$923,'Codes éco-part'!$B$6:$B$923) -> 247 | M47: 0.08
A48: REP ABJ | B48: 3 | C48: 21100040210 | E48: Articles de bricolage | F48: Outillage à main et leurs accessoires | G48: Matériaux bio sourcés ou textiles non synthétiques >50% | H48: Compris entre 0,5 kg et 1 kg exclus | I48: €/unité | J48: 0.24 | K48: 0.24 | L48: =_xlfn.XLOOKUP(K48,'Codes éco-part'!$C$6:$C$923,'Codes éco-part'!$B$6:$B$923) -> 248 | M48: 0.29
A49: REP ABJ | B49: 3 | C49: 21100040211 | D49: modulé | E49: Articles de bricolage | F49: Outillage à main et leurs accessoires | G49: Matériaux bio sourcés ou textiles non synthétiques >50% | H49: Compris entre 0,5 kg et 1 kg exclus | I49: €/unité | J49: 0.22 | K49: 0.22 | L49: =_xlfn.XLOOKUP(K49,'Codes éco-part'!$C$6:$C$923,'Codes éco-part'!$B$6:$B$923) -> 263 | M49: 0.26
A50: REP ABJ | B50: 3 | C50: 21100040220 | E50: Articles de bricolage | F50: Outillage à main et leurs accessoires | G50: Matériaux bio sourcés ou textiles non synthétiques >50% | H50: Compris entre 1 kg et 2 kg exclus | I50: €/unité | J50: 0.48 | K50: 0.48 | L50: =_xlfn.XLOOKUP(K50,'Codes éco-part'!$C$6:$C$923,'Codes éco-part'!$B$6:$B$923) -> 606 | M50: 0.58
A51: REP ABJ | B51: 3 | C51: 21100040221 | D51: modulé | E51: Articles de bricolage | F51: Outillage à main et leurs accessoires | G51: Matériaux bio sourcés ou textiles non synthétiques >50% | H51: Compris entre 1 kg et 2 kg exclus | I51: €/unité | J51: 0.43 | K51: 0.43 | L51: =_xlfn.XLOOKUP(K51,'Codes éco-part'!$C$6:$C$923,'Codes éco-part'!$B$6:$B$923) -> 506 | M51: 0.52
A52: REP ABJ | B52: 3 | C52: 21100040520 | E52: Articles de bricolage | F52: Outillage à main et leurs accessoires | G52: Matériaux bio sourcés ou textiles non synthétiques >50% | H52: Compris entre 2 kg et 3 kg exclus | I52: €/unité | J52: 0.81 | K52: 0.81 | L52: =_xlfn.XLOOKUP(K52,'Codes éco-part'!$C$6:$C$923,'Codes éco-part'!$B$6:$B$923) -> 112 | M52: 0.97
A53: REP ABJ | B53: 3 | C53: 21100040521 | D53: modulé | E53: Articles de bricolage | F53: Outillage à main et leurs accessoires | G53: Matériaux bio sourcés ou textiles non synthétiques >50% | H53: Compris entre 2 kg et 3 kg exclus | I53: €/unité | J53: 0.73 | K53: 0.73 | L53: =_xlfn.XLOOKUP(K53,'Codes éco-part'!$C$6:$C$923,'Codes éco-part'!$B$6:$B$923) -> 255 | M53: 0.88
A54: REP ABJ | B54: 3 | C54: 21100040530 | E54: Articles de bricolage | F54: Outillage à main et leurs accessoires | G54: Matériaux bio sourcés ou textiles non synthétiques >50% | H54: Compris entre 3 kg et 5 kg exclus | I54: €/unité | J54: 1.29 | K54: 1.29 | L54: =_xlfn.XLOOKUP(K54,'Codes éco-part'!$C$6:$C$923,'Codes éco-part'!$B$6:$B$923) -> 608 | M54: 1.55
A55: REP ABJ | B55: 3 | C55: 21100040531 | D55: modulé | E55: Articles de bricolage | F55: Outillage à main et leurs accessoires | G55: Matériaux bio sourcés ou textiles non synthétiques >50% | H55: Compris entre 3 kg et 5 kg exclus | I55: €/unité | J55: 1.16 | K55: 1.16 | L55: =_xlfn.XLOOKUP(K55,'Codes éco-part'!$C$6:$C$923,'Codes éco-part'!$B$6:$B$923) -> 504 | M55: 1.39
A56: REP ABJ | B56: 3 | C56: 21100040540 | E56: Articles de bricolage | F56: Outillage à main et leurs accessoires | G56: Matériaux bio sourcés ou textiles non synthétiques >50% | H56: Compris entre 5 kg et 7 kg exclus | I56: €/unité | J56: 2.25 | K56: 2.25 | L56: =_xlfn.XLOOKUP(K56,'Codes éco-part'!$C$6:$C$923,'Codes éco-part'!$B$6:$B$923) -> 118 | M56: 2.7
A57: REP ABJ | B57: 3 | C57: 21100040541 | D57: modulé | E57: Articles de bricolage | F57: Outillage à main et leurs accessoires | G57: Matériaux bio sourcés ou textiles non synthétiques >50% | H57: Compris entre 5 kg et 7 kg exclus | I57: €/unité | J57: 2.03 | K57: 2.03 | L57: =_xlfn.XLOOKUP(K57,'Codes éco-part'!$C$6:$C$923,'Codes éco-part'!$B$6:$B$923) -> 937 | M57: 2.44
A58: REP ABJ | B58: 3 | C58: 21100050000 | E58: Articles de bricolage | F58: Outillage à main et leurs accessoires | G58: Plastiques ou autres matériaux synthétiques >50% | H58: Eléments de toutes dimensions et poids | I58: € / Tonne | J58: 322 | K58: 322 | L58: =_xlfn.XLOOKUP(K58,'Codes éco-part'!$C$6:$C$923,'Codes éco-part'!$B$6:$B$923) -> 607 | M58: 386.4
A59: REP ABJ | B59: 3 | C59: 21100050001 | D59: modulé | E59: Articles de bricolage | F59: Outillage à main et leurs accessoires | G59: Plastiques ou autres matériaux synthétiques >50% | H59: Eléments de toutes dimensions et poids | I59: € / Tonne | J59: 289.8 | K59: 289.8 | L59: =_xlfn.XLOOKUP(K59,'Codes éco-part'!$C$6:$C$923,'Codes éco-part'!$B$6:$B$923) -> 936 | M59: 347.76
A60: REP ABJ | B60: 3 | C60: 21100050200 | E60: Articles de bricolage | F60: Outillage à main et leurs accessoires | G60: Plastiques ou autres matériaux synthétiques >50% | H60: Inférieur strictement à 0,5 kg | I60: €/unité | J60: 0.08 | K60: 0.08 | L60: =_xlfn.XLOOKUP(K60,'Codes éco-part'!$C$6:$C$923,'Codes éco-part'!$B$6:$B$923) -> 003 | M60: 0.1
A61: REP ABJ | B61: 3 | C61: 21100050201 | D61: modulé | E61: Articles de bricolage | F61: Outillage à main et leurs accessoires | G61: Plastiques ou autres matériaux synthétiques >50% | H61: Inférieur strictement à 0,5 kg | I61: €/unité | J61: 0.07 | K61: 0.07 | L61: =_xlfn.XLOOKUP(K61,'Codes éco-part'!$C$6:$C$923,'Codes éco-part'!$B$6:$B$923) -> 247 | M61: 0.08
A62: REP ABJ | B62: 3 | C62: 21100050210 | E62: Articles de bricolage | F62: Outillage à main et leurs accessoires | G62: Plastiques ou autres matériaux synthétiques >50% | H62: Compris entre 0,5 kg et 1 kg exclus | I62: €/unité | J62: 0.24 | K62: 0.24 | L62: =_xlfn.XLOOKUP(K62,'Codes éco-part'!$C$6:$C$923,'Codes éco-part'!$B$6:$B$923) -> 248 | M62: 0.29
A63: REP ABJ | B63: 3 | C63: 21100050211 | D63: modulé | E63: Articles de bricolage | F63: Outillage à main et leurs accessoires | G63: Plastiques ou autres matériaux synthétiques >50% | H63: Compris entre 0,5 kg et 1 kg exclus | I63: €/unité | J63: 0.22 | K63: 0.22 | L63: =_xlfn.XLOOKUP(K63,'Codes éco-part'!$C$6:$C$923,'Codes éco-part'!$B$6:$B$923) -> 263 | M63: 0.26
A64: REP ABJ | B64: 3 | C64: 21100050220 | E64: Articles de bricolage | F64: Outillage à main et leurs accessoires | G64: Plastiques ou autres matériaux synthétiques >50% | H64: Compris entre 1 kg et 2 kg exclus | I64: €/unité | J64: 0.48 | K64: 0.48 | L64: =_xlfn.XLOOKUP(K64,'Codes éco-part'!$C$6:$C$923,'Codes éco-part'!$B$6:$B$923) -> 606 | M64: 0.58
A65: REP ABJ | B65: 3 | C65: 21100050221 | D65: modulé | E65: Articles de bricolage | F65: Outillage à main et leurs accessoires | G65: Plastiques ou autres matériaux synthétiques >50% | H65: Compris entre 1 kg et 2 kg exclus | I65: €/unité | J65: 0.43 | K65: 0.43 | L65: =_xlfn.XLOOKUP(K65,'Codes éco-part'!$C$6:$C$923,'Codes éco-part'!$B$6:$B$923) -> 506 | M65: 0.52
A66: REP ABJ | B66: 3 | C66: 21100050520 | E66: Articles de bricolage | F66: Outillage à main et leurs accessoires | G66: Plastiques ou autres matériaux synthétiques >50% | H66: Compris entre 2 kg et 3 kg exclus | I66: €/unité | J66: 0.81 | K66: 0.81 | L66: =_xlfn.XLOOKUP(K66,'Codes éco-part'!$C$6:$C$923,'Codes éco-part'!$B$6:$B$923) -> 112 | M66: =ROUND(K66*1.2,2) -> 0.97
A67: REP ABJ | B67: 3 | C67: 21100050521 | D67: modulé | E67: Articles de bricolage | F67: Outillage à main et leurs accessoires | G67: Plastiques ou autres matériaux synthétiques >50% | H67: Compris entre 2 kg et 3 kg exclus | I67: €/unité | J67: 0.73 | K67: 0.73 | L67: =_xlfn.XLOOKUP(K67,'Codes éco-part'!$C$6:$C$923,'Codes éco-part'!$B$6:$B$923) -> 255 | M67: 0.88
A68: REP ABJ | B68: 3 | C68: 21100050530 | E68: Articles de bricolage | F68: Outillage à main et leurs accessoires | G68: Plastiques ou autres matériaux synthétiques >50% | H68: Compris entre 3 kg et 5 kg exclus | I68: €/unité | J68: 1.29 | K68: 1.29 | L68: =_xlfn.XLOOKUP(K68,'Codes éco-part'!$C$6:$C$923,'Codes éco-part'!$B$6:$B$923) -> 608 | M68: 1.55
A69: REP ABJ | B69: 3 | C69: 21100050531 | D69: modulé | E69: Articles de bricolage | F69: Outillage à main et leurs accessoires | G69: Plastiques ou autres matériaux synthétiques >50% | H69: Compris entre 3 kg et 5 kg exclus | I69: €/unité | J69: 1.16 | K69: 1.16 | L69: =_xlfn.XLOOKUP(K69,'Codes éco-part'!$C$6:$C$923,'Codes éco-part'!$B$6:$B$923) -> 504 | M69: 1.39
A70: REP ABJ | B70: 3 | C70: 21100050540 | E70: Articles de bricolage | F70: Outillage à main et leurs accessoires | G70: Plastiques ou autres matériaux synthétiques >50% | H70: Compris entre 5 kg et 7 kg exclus | I70: €/unité | J70: 2.25 | K70: 2.25 | L70: =_xlfn.XLOOKUP(K70,'Codes éco-part'!$C$6:$C$923,'Codes éco-part'!$B$6:$B$923) -> 118 | M70: 2.7
A71: REP ABJ | B71: 3 | C71: 21100050541 | D71: modulé | E71: Articles de bricolage | F71: Outillage à main et leurs accessoires | G71: Plastiques ou autres matériaux synthétiques >50% | H71: Compris entre 5 kg et 7 kg exclus | I71: €/unité | J71: 2.03 | K71: 2.03 | L71: =_xlfn.XLOOKUP(K71,'Codes éco-part'!$C$6:$C$923,'Codes éco-part'!$B$6:$B$923) -> 937 | M71: 2.44
A72: REP ABJ | B72: 3 | C72: 21100060000 | E72: Articles de bricolage | F72: Outillage à main et leurs accessoires | G72: Matériaux d'origine animale >50% | H72: Eléments de toutes dimensions et poids | I72: € / Tonne | J72: 322 | K72: 322 | L72: =_xlfn.XLOOKUP(K72,'Codes éco-part'!$C$6:$C$923,'Codes éco-part'!$B$6:$B$923) -> 607 | M72: 386.4
A73: REP ABJ | B73: 3 | C73: 21100060001 | D73: modulé | E73: Articles de bricolage | F73: Outillage à main et leurs accessoires | G73: Matériaux d'origine animale >50% | H73: Eléments de toutes dimensions et poids | I73: € / Tonne | J73: 289.8 | K73: 289.8 | L73: =_xlfn.XLOOKUP(K73,'Codes éco-part'!$C$6:$C$923,'Codes éco-part'!$B$6:$B$923) -> 936 | M73: 347.76
A74: REP ABJ | B74: 3 | C74: 21100060200 | E74: Articles de bricolage | F74: Outillage à main et leurs accessoires | G74: Matériaux d'origine animale >50% | H74: Inférieur strictement à 0,5 kg | I74: €/unité | J74: 0.08 | K74: 0.08 | L74: =_xlfn.XLOOKUP(K74,'Codes éco-part'!$C$6:$C$923,'Codes éco-part'!$B$6:$B$923) -> 003 | M74: 0.1
A75: REP ABJ | B75: 3 | C75: 21100060201 | D75: modulé | E75: Articles de bricolage | F75: Outillage à main et leurs accessoires | G75: Matériaux d'origine animale >50% | H75: Inférieur strictement à 0,5 kg | I75: €/unité | J75: 0.07 | K75: 0.07 | L75: =_xlfn.XLOOKUP(K75,'Codes éco-part'!$C$6:$C$923,'Codes éco-part'!$B$6:$B$923) -> 247 | M75: 0.08
A76: REP ABJ | B76: 3 | C76: 21100060210 | E76: Articles de bricolage | F76: Outillage à main et leurs accessoires | G76: Matériaux d'origine animale >50% | H76: Compris entre 0,5 kg et 1 kg exclus | I76: €/unité | J76: 0.24 | K76: 0.24 | L76: =_xlfn.XLOOKUP(K76,'Codes éco-part'!$C$6:$C$923,'Codes éco-part'!$B$6:$B$923) -> 248 | M76: 0.29
A77: REP ABJ | B77: 3 | C77: 21100060211 | D77: modulé | E77: Articles de bricolage | F77: Outillage à main et leurs accessoires | G77: Matériaux d'origine animale >50% | H77: Compris entre 0,5 kg et 1 kg exclus | I77: €/unité | J77: 0.22 | K77: 0.22 | L77: =_xlfn.XLOOKUP(K77,'Codes éco-part'!$C$6:$C$923,'Codes éco-part'!$B$6:$B$923) -> 263 | M77: 0.26
A78: REP ABJ | B78: 3 | C78: 21100060220 | E78: Articles de bricolage | F78: Outillage à main et leurs accessoires | G78: Matériaux d'origine animale >50% | H78: Compris entre 1 kg et 2 kg exclus | I78: €/unité | J78: 0.48 | K78: 0.48 | L78: =_xlfn.XLOOKUP(K78,'Codes éco-part'!$C$6:$C$923,'Codes éco-part'!$B$6:$B$923) -> 606 | M78: 0.58
A79: REP ABJ | B79: 3 | C79: 21100060221 | D79: modulé | E79: Articles de bricolage | F79: Outillage à main et leurs accessoires | G79: Matériaux d'origine animale >50% | H79: Compris entre 1 kg et 2 kg exclus | I79: €/unité | J79: 0.43 | K79: 0.43 | L79: =_xlfn.XLOOKUP(K79,'Codes éco-part'!$C$6:$C$923,'Codes éco-part'!$B$6:$B$923) -> 506 | M79: 0.52
A80: REP ABJ | B80: 3 | C80: 21100060520 | E80: Articles de bricolage | F80: Outillage à main et leurs accessoires | G80: Matériaux d'origine animale >50% | H80: Compris entre 2 kg et 3 kg exclus | I80: €/unité | J80: 0.81 | K80: 0.81 | L80: =_xlfn.XLOOKUP(K80,'Codes éco-part'!$C$6:$C$923,'Codes éco-part'!$B$6:$B$923) -> 112 | M80: 0.97
A81: REP ABJ | B81: 3 | C81: 21100060521 | D81: modulé | E81: Articles de bricolage | F81: Outillage à main et leurs accessoires | G81: Matériaux d'origine animale >50% | H81: Compris entre 2 kg et 3 kg exclus | I81: €/unité | J81: 0.73 | K81: 0.73 | L81: =_xlfn.XLOOKUP(K81,'Codes éco-part'!$C$6:$C$923,'Codes éco-part'!$B$6:$B$923) -> 255 | M81: 0.88
A82: REP ABJ | B82: 3 | C82: 21100060530 | E82: Articles de bricolage | F82: Outillage à main et leurs accessoires | G82: Matériaux d'origine animale >50% | H82: Compris entre 3 kg et 5 kg exclus | I82: €/unité | J82: 1.29 | K82: 1.29 | L82: =_xlfn.XLOOKUP(K82,'Codes éco-part'!$C$6:$C$923,'Codes éco-part'!$B$6:$B$923) -> 608 | M82: 1.55
A83: REP ABJ | B83: 3 | C83: 21100060531 | D83: modulé | E83: Articles de bricolage | F83: Outillage à main et leurs accessoires | G83: Matériaux d'origine animale >50% | H83: Compris entre 3 kg et 5 kg exclus | I83: €/unité | J83: 1.16 | K83: 1.16 | L83: =_xlfn.XLOOKUP(K83,'Codes éco-part'!$C$6:$C$923,'Codes éco-part'!$B$6:$B$923) -> 504 | M83: 1.39
A84: REP ABJ | B84: 3 | C84: 21100060540 | E84: Articles de bricolage | F84: Outillage à main et leurs accessoires | G84: Matériaux d'origine animale >50% | H84: Compris entre 5 kg et 7 kg exclus | I84: €/unité | J84: 2.25 | K84: 2.25 | L84: =_xlfn.XLOOKUP(K84,'Codes éco-part'!$C$6:$C$923,'Codes éco-part'!$B$6:$B$923) -> 118 | M84: 2.7
A85: REP ABJ | B85: 3 | C85: 21100060541 | D85: modulé | E85: Articles de bricolage | F85: Outillage à main et leurs accessoires | G85: Matériaux d'origine animale >50% | H85: Compris entre 5 kg et 7 kg exclus | I85: €/unité | J85: 2.03 | K85: 2.03 | L85: =_xlfn.XLOOKUP(K85,'Codes éco-part'!$C$6:$C$923,'Codes éco-part'!$B$6:$B$923) -> 937 | M85: 2.44
A86: REP ABJ | B86: 3 | C86: 21100190000 | E86: Articles de bricolage | F86: Outillage à main et leurs accessoires | G86: Papier carton >50% avec d'autres matériaux (hors verre) | H86: Eléments de toutes dimensions et poids | I86: € / Tonne | J86: 322 | K86: 322 | L86: =_xlfn.XLOOKUP(K86,'Codes éco-part'!$C$6:$C$923,'Codes éco-part'!$B$6:$B$923) -> 607 | M86: 386.4
A87: REP ABJ | B87: 3 | C87: 21100190001 | D87: modulé | E87: Articles de bricolage | F87: Outillage à main et leurs accessoires | G87: Papier carton >50% avec d'autres matériaux (hors verre) | H87: Eléments de toutes dimensions et poids | I87: € / Tonne | J87: 289.8 | K87: 289.8 | L87: =_xlfn.XLOOKUP(K87,'Codes éco-part'!$C$6:$C$923,'Codes éco-part'!$B$6:$B$923) -> 936 | M87: 347.76
A88: REP ABJ | B88: 3 | C88: 21100190200 | E88: Articles de bricolage | F88: Outillage à main et leurs accessoires | G88: Papier carton >50% avec d'autres matériaux (hors verre) | H88: Inférieur strictement à 0,5 kg | I88: €/unité | J88: 0.08 | K88: 0.08 | L88: =_xlfn.XLOOKUP(K88,'Codes éco-part'!$C$6:$C$923,'Codes éco-part'!$B$6:$B$923) -> 003 | M88: 0.1
A89: REP ABJ | B89: 3 | C89: 21100190201 | D89: modulé | E89: Articles de bricolage | F89: Outillage à main et leurs accessoires | G89: Papier carton >50% avec d'autres matériaux (hors verre) | H89: Inférieur strictement à 0,5 kg | I89: €/unité | J89: 0.07 | K89: 0.07 | L89: =_xlfn.XLOOKUP(K89,'Codes éco-part'!$C$6:$C$923,'Codes éco-part'!$B$6:$B$923) -> 247 | M89: 0.08
A90: REP ABJ | B90: 3 | C90: 21100190210 | E90: Articles de bricolage | F90: Outillage à main et leurs accessoires | G90: Papier carton >50% avec d'autres matériaux (hors verre) | H90: Compris entre 0,5 kg et 1 kg exclus | I90: €/unité | J90: 0.24 | K90: 0.24 | L90: =_xlfn.XLOOKUP(K90,'Codes éco-part'!$C$6:$C$923,'Codes éco-part'!$B$6:$B$923) -> 248 | M90: 0.29
A91: REP ABJ | B91: 3 | C91: 21100190211 | D91: modulé | E91: Articles de bricolage | F91: Outillage à main et leurs accessoires | G91: Papier carton >50% avec d'autres matériaux (hors verre) | H91: Compris entre 0,5 kg et 1 kg exclus | I91: €/unité | J91: 0.22 | K91: 0.22 | L91: =_xlfn.XLOOKUP(K91,'Codes éco-part'!$C$6:$C$923,'Codes éco-part'!$B$6:$B$923) -> 263 | M91: 0.26
A92: REP ABJ | B92: 3 | C92: 21100190220 | E92: Articles de bricolage | F92: Outillage à main et leurs accessoires | G92: Papier carton >50% avec d'autres matériaux (hors verre) | H92: Compris entre 1 kg et 2 kg exclus | I92: €/unité | J92: 0.48 | K92: 0.48 | L92: =_xlfn.XLOOKUP(K92,'Codes éco-part'!$C$6:$C$923,'Codes éco-part'!$B$6:$B$923) -> 606 | M92: 0.58
A93: REP ABJ | B93: 3 | C93: 21100190221 | D93: modulé | E93: Articles de bricolage | F93: Outillage à main et leurs accessoires | G93: Papier carton >50% avec d'autres matériaux (hors verre) | H93: Compris entre 1 kg et 2 kg exclus | I93: €/unité | J93: 0.43 | K93: 0.43 | L93: =_xlfn.XLOOKUP(K93,'Codes éco-part'!$C$6:$C$923,'Codes éco-part'!$B$6:$B$923) -> 506 | M93: 0.52
A94: REP ABJ | B94: 3 | C94: 21100190520 | E94: Articles de bricolage | F94: Outillage à main et leurs accessoires | G94: Papier carton >50% avec d'autres matériaux (hors verre) | H94: Compris entre 2 kg et 3 kg exclus | I94: €/unité | J94: 0.81 | K94: 0.81 | L94: =_xlfn.XLOOKUP(K94,'Codes éco-part'!$C$6:$C$923,'Codes éco-part'!$B$6:$B$923) -> 112 | M94: 0.97
A95: REP ABJ | B95: 3 | C95: 21100190521 | D95: modulé | E95: Articles de bricolage | F95: Outillage à main et leurs accessoires | G95: Papier carton >50% avec d'autres matériaux (hors verre) | H95: Compris entre 2 kg et 3 kg exclus | I95: €/unité | J95: 0.73 | K95: 0.73 | L95: =_xlfn.XLOOKUP(K95,'Codes éco-part'!$C$6:$C$923,'Codes éco-part'!$B$6:$B$923) -> 255 | M95: 0.88
A96: REP ABJ | B96: 3 | C96: 21100190530 | E96: Articles de bricolage | F96: Outillage à main et leurs accessoires | G96: Papier carton >50% avec d'autres matériaux (hors verre) | H96: Compris entre 3 kg et 5 kg exclus | I96: €/unité | J96: 1.29 | K96: 1.29 | L96: =_xlfn.XLOOKUP(K96,'Codes éco-part'!$C$6:$C$923,'Codes éco-part'!$B$6:$B$923) -> 608 | M96: 1.55
A97: REP ABJ | B97: 3 | C97: 21100190531 | D97: modulé | E97: Articles de bricolage | F97: Outillage à main et leurs accessoires | G97: Papier carton >50% avec d'autres matériaux (hors verre) | H97: Compris entre 3 kg et 5 kg exclus | I97: €/unité | J97: 1.16 | K97: 1.16 | L97: =_xlfn.XLOOKUP(K97,'Codes éco-part'!$C$6:$C$923,'Codes éco-part'!$B$6:$B$923) -> 504 | M97: 1.39
A98: REP ABJ | B98: 3 | C98: 21100190540 | E98: Articles de bricolage | F98: Outillage à main et leurs accessoires | G98: Papier carton >50% avec d'autres matériaux (hors verre) | H98: Compris entre 5 kg et 7 kg exclus | I98: €/unité | J98: 2.25 | K98: 2.25 | L98: =_xlfn.XLOOKUP(K98,'Codes éco-part'!$C$6:$C$923,'Codes éco-part'!$B$6:$B$923) -> 118 | M98: 2.7
A99: REP ABJ | B99: 3 | C99: 21100190541 | D99: modulé | E99: Articles de bricolage | F99: Outillage à main et leurs accessoires | G99: Papier carton >50% avec d'autres matériaux (hors verre) | H99: Compris entre 5 kg et 7 kg exclus | I99: €/unité | J99: 2.03 | K99: 2.03 | L99: =_xlfn.XLOOKUP(K99,'Codes éco-part'!$C$6:$C$923,'Codes éco-part'!$B$6:$B$923) -> 937 | M99: 2.44
A100: REP ABJ | B100: 3 | C100: 21100200000 | E100: Articles de bricolage | F100: Outillage à main et leurs accessoires | G100: Massif et assimilés certifiés >75% | H100: Eléments de toutes dimensions et poids | I100: € / Tonne | J100: 55 | K100: 55 | L100: =_xlfn.XLOOKUP(K100,'Codes éco-part'!$C$6:$C$923,'Codes éco-part'!$B$6:$B$923) -> 490 | M100: 66
A101: REP ABJ | B101: 3 | C101: 21100200001 | D101: modulé | E101: Articles de bricolage | F101: Outillage à main et leurs accessoires | G101: Massif et assimilés certifiés >75% | H101: Eléments de toutes dimensions et poids | I101: € / Tonne | J101: 49.5 | K101: 49.5 | L101: =_xlfn.XLOOKUP(K101,'Codes éco-part'!$C$6:$C$923,'Codes éco-part'!$B$6:$B$923) -> 938 | M101: 59.4
A102: REP ABJ | B102: 3 | C102: 21100200200 | E102: Articles de bricolage | F102: Outillage à main et leurs accessoires | G102: Massif et assimilés certifiés >75% | H102: Inférieur strictement à 0,5 kg | I102: €/unité | J102: 0.01 | K102: 0.01 | L102: =_xlfn.XLOOKUP(K102,'Codes éco-part'!$C$6:$C$923,'Codes éco-part'!$B$6:$B$923) -> 260 | M102: 0.01
A103: REP ABJ | B103: 3 | C103: 21100200201 | D103: modulé | E103: Articles de bricolage | F103: Outillage à main et leurs accessoires | G103: Massif et assimilés certifiés >75% | H103: Inférieur strictement à 0,5 kg | I103: €/unité | J103: 0.01 | K103: 0.01 | L103: =_xlfn.XLOOKUP(K103,'Codes éco-part'!$C$6:$C$923,'Codes éco-part'!$B$6:$B$923) -> 260 | M103: 0.01
A104: REP ABJ | B104: 3 | C104: 21100200210 | E104: Articles de bricolage | F104: Outillage à main et leurs accessoires | G104: Massif et assimilés certifiés >75% | H104: Compris entre 0,5 kg et 1 kg exclus | I104: €/unité | J104: 0.04 | K104: 0.04 | L104: =_xlfn.XLOOKUP(K104,'Codes éco-part'!$C$6:$C$923,'Codes éco-part'!$B$6:$B$923) -> 002 | M104: 0.05
A105: REP ABJ | B105: 3 | C105: 21100200211 | D105: modulé | E105: Articles de bricolage | F105: Outillage à main et leurs accessoires | G105: Massif et assimilés certifiés >75% | H105: Compris entre 0,5 kg et 1 kg exclus | I105: €/unité | J105: 0.04 | K105: 0.04 | L105: =_xlfn.XLOOKUP(K105,'Codes éco-part'!$C$6:$C$923,'Codes éco-part'!$B$6:$B$923) -> 002 | M105: 0.05
A106: REP ABJ | B106: 3 | C106: 21100200220 | E106: Articles de bricolage | F106: Outillage à main et leurs accessoires | G106: Massif et assimilés certifiés >75% | H106: Compris entre 1 kg et 2 kg exclus | I106: €/unité | J106: 0.08 | K106: 0.08 | L106: =_xlfn.XLOOKUP(K106,'Codes éco-part'!$C$6:$C$923,'Codes éco-part'!$B$6:$B$923) -> 003 | M106: 0.1
A107: REP ABJ | B107: 3 | C107: 21100200221 | D107: modulé | E107: Articles de bricolage | F107: Outillage à main et leurs accessoires | G107: Massif et assimilés certifiés >75% | H107: Compris entre 1 kg et 2 kg exclus | I107: €/unité | J107: 0.07 | K107: 0.07 | L107: =_xlfn.XLOOKUP(K107,'Codes éco-part'!$C$6:$C$923,'Codes éco-part'!$B$6:$B$923) -> 247 | M107: 0.08
A108: REP ABJ | B108: 3 | C108: 21100200520 | E108: Articles de bricolage | F108: Outillage à main et leurs accessoires | G108: Massif et assimilés certifiés >75% | H108: Compris entre 2 kg et 3 kg exclus | I108: €/unité | J108: 0.14 | K108: 0.14 | L108: =_xlfn.XLOOKUP(K108,'Codes éco-part'!$C$6:$C$923,'Codes éco-part'!$B$6:$B$923) -> 098 | M108: 0.17
A109: REP ABJ | B109: 3 | C109: 21100200521 | D109: modulé | E109: Articles de bricolage | F109: Outillage à main et leurs accessoires | G109: Massif et assimilés certifiés >75% | H109: Compris entre 2 kg et 3 kg exclus | I109: €/unité | J109: 0.13 | K109: 0.13 | L109: =_xlfn.XLOOKUP(K109,'Codes éco-part'!$C$6:$C$923,'Codes éco-part'!$B$6:$B$923) -> 004 | M109: 0.16
A110: REP ABJ | B110: 3 | C110: 21100200530 | E110: Articles de bricolage | F110: Outillage à main et leurs accessoires | G110: Massif et assimilés certifiés >75% | H110: Compris entre 3 kg et 5 kg exclus | I110: €/unité | J110: 0.22 | K110: 0.22 | L110: =_xlfn.XLOOKUP(K110,'Codes éco-part'!$C$6:$C$923,'Codes éco-part'!$B$6:$B$923) -> 263 | M110: 0.26
A111: REP ABJ | B111: 3 | C111: 21100200531 | D111: modulé | E111: Articles de bricolage | F111: Outillage à main et leurs accessoires | G111: Massif et assimilés certifiés >75% | H111: Compris entre 3 kg et 5 kg exclus | I111: €/unité | J111: 0.2 | K111: 0.2 | L111: =_xlfn.XLOOKUP(K111,'Codes éco-part'!$C$6:$C$923,'Codes éco-part'!$B$6:$B$923) -> 101 | M111: 0.24
A112: REP ABJ | B112: 3 | C112: 21100200540 | E112: Articles de bricolage | F112: Outillage à main et leurs accessoires | G112: Massif et assimilés certifiés >75% | H112: Compris entre 5 kg et 7 kg exclus | I112: €/unité | J112: 0.39 | K112: 0.39 | L112: =_xlfn.XLOOKUP(K112,'Codes éco-part'!$C$6:$C$923,'Codes éco-part'!$B$6:$B$923) -> 253 | M112: 0.47
A113: REP ABJ | B113: 3 | C113: 21100200541 | D113: modulé | E113: Articles de bricolage | F113: Outillage à main et leurs accessoires | G113: Massif et assimilés certifiés >75% | H113: Compris entre 5 kg et 7 kg exclus | I113: €/unité | J113: 0.35 | K113: 0.35 | L113: =_xlfn.XLOOKUP(K113,'Codes éco-part'!$C$6:$C$923,'Codes éco-part'!$B$6:$B$923) -> 448 | M113: 0.42
A114: REP ABJ | B114: 3 | C114: 21100210000 | E114: Articles de bricolage | F114: Outillage à main et leurs accessoires | G114: Massif et assimilés >75% | H114: Eléments de toutes dimensions et poids | I114: € / Tonne | J114: 110 | K114: 110 | L114: =_xlfn.XLOOKUP(K114,'Codes éco-part'!$C$6:$C$923,'Codes éco-part'!$B$6:$B$923) -> 615 | M114: 132
A115: REP ABJ | B115: 3 | C115: 21100210001 | D115: modulé | E115: Articles de bricolage | F115: Outillage à main et leurs accessoires | G115: Massif et assimilés >75% | H115: Eléments de toutes dimensions et poids | I115: € / Tonne | J115: 99 | K115: 99 | L115: =_xlfn.XLOOKUP(K115,'Codes éco-part'!$C$6:$C$923,'Codes éco-part'!$B$6:$B$923) -> 940 | M115: 118.8
A116: REP ABJ | B116: 3 | C116: 21100210200 | E116: Articles de bricolage | F116: Outillage à main et leurs accessoires | G116: Massif et assimilés >75% | H116: Inférieur strictement à 0,5 kg | I116: €/unité | J116: 0.02 | K116: 0.02 | L116: =_xlfn.XLOOKUP(K116,'Codes éco-part'!$C$6:$C$923,'Codes éco-part'!$B$6:$B$923) -> 047 | M116: 0.02
A117: REP ABJ | B117: 3 | C117: 21100210201 | D117: modulé | E117: Articles de bricolage | F117: Outillage à main et leurs accessoires | G117: Massif et assimilés >75% | H117: Inférieur strictement à 0,5 kg | I117: €/unité | J117: 0.02 | K117: 0.02 | L117: =_xlfn.XLOOKUP(K117,'Codes éco-part'!$C$6:$C$923,'Codes éco-part'!$B$6:$B$923) -> 047 | M117: 0.02
A118: REP ABJ | B118: 3 | C118: 21100210210 | E118: Articles de bricolage | F118: Outillage à main et leurs accessoires | G118: Massif et assimilés >75% | H118: Compris entre 0,5 kg et 1 kg exclus | I118: €/unité | J118: 0.08 | K118: 0.08 | L118: =_xlfn.XLOOKUP(K118,'Codes éco-part'!$C$6:$C$923,'Codes éco-part'!$B$6:$B$923) -> 003 | M118: 0.1
A119: REP ABJ | B119: 3 | C119: 21100210211 | D119: modulé | E119: Articles de bricolage | F119: Outillage à main et leurs accessoires | G119: Massif et assimilés >75% | H119: Compris entre 0,5 kg et 1 kg exclus | I119: €/unité | J119: 0.07 | K119: 0.07 | L119: =_xlfn.XLOOKUP(K119,'Codes éco-part'!$C$6:$C$923,'Codes éco-part'!$B$6:$B$923) -> 247 | M119: 0.08
A120: REP ABJ | B120: 3 | C120: 21100210220 | E120: Articles de bricolage | F120: Outillage à main et leurs accessoires | G120: Massif et assimilés >75% | H120: Compris entre 1 kg et 2 kg exclus | I120: €/unité | J120: 0.16 | K120: 0.16 | L120: =_xlfn.XLOOKUP(K120,'Codes éco-part'!$C$6:$C$923,'Codes éco-part'!$B$6:$B$923) -> 099 | M120: 0.19
A121: REP ABJ | B121: 3 | C121: 21100210221 | D121: modulé | E121: Articles de bricolage | F121: Outillage à main et leurs accessoires | G121: Massif et assimilés >75% | H121: Compris entre 1 kg et 2 kg exclus | I121: €/unité | J121: 0.14 | K121: 0.14 | L121: =_xlfn.XLOOKUP(K121,'Codes éco-part'!$C$6:$C$923,'Codes éco-part'!$B$6:$B$923) -> 098 | M121: 0.17
A122: REP ABJ | B122: 3 | C122: 21100210520 | E122: Articles de bricolage | F122: Outillage à main et leurs accessoires | G122: Massif et assimilés >75% | H122: Compris entre 2 kg et 3 kg exclus | I122: €/unité | J122: 0.28 | K122: 0.28 | L122: =_xlfn.XLOOKUP(K122,'Codes éco-part'!$C$6:$C$923,'Codes éco-part'!$B$6:$B$923) -> 542 | M122: 0.34
A123: REP ABJ | B123: 3 | C123: 21100210521 | D123: modulé | E123: Articles de bricolage | F123: Outillage à main et leurs accessoires | G123: Massif et assimilés >75% | H123: Compris entre 2 kg et 3 kg exclus | I123: €/unité | J123: 0.25 | K123: 0.25 | L123: =_xlfn.XLOOKUP(K123,'Codes éco-part'!$C$6:$C$923,'Codes éco-part'!$B$6:$B$923) -> 095 | M123: 0.3
A124: REP ABJ | B124: 3 | C124: 21100210530 | E124: Articles de bricolage | F124: Outillage à main et leurs accessoires | G124: Massif et assimilés >75% | H124: Compris entre 3 kg et 5 kg exclus | I124: €/unité | J124: 0.44 | K124: 0.44 | L124: =_xlfn.XLOOKUP(K124,'Codes éco-part'!$C$6:$C$923,'Codes éco-part'!$B$6:$B$923) -> 281 | M124: 0.53
A125: REP ABJ | B125: 3 | C125: 21100210531 | D125: modulé | E125: Articles de bricolage | F125: Outillage à main et leurs accessoires | G125: Massif et assimilés >75% | H125: Compris entre 3 kg et 5 kg exclus | I125: €/unité | J125: 0.4 | K125: 0.4 | L125: =_xlfn.XLOOKUP(K125,'Codes éco-part'!$C$6:$C$923,'Codes éco-part'!$B$6:$B$923) -> 105 | M125: 0.48
A126: REP ABJ | B126: 3 | C126: 21100210540 | E126: Articles de bricolage | F126: Outillage à main et leurs accessoires | G126: Massif et assimilés >75% | H126: Compris entre 5 kg et 7 kg exclus | I126: €/unité | J126: 0.78 | K126: 0.78 | L126: =_xlfn.XLOOKUP(K126,'Codes éco-part'!$C$6:$C$923,'Codes éco-part'!$B$6:$B$923) -> 312 | M126: 0.94
A127: REP ABJ | B127: 3 | C127: 21100210541 | D127: modulé | E127: Articles de bricolage | F127: Outillage à main et leurs accessoires | G127: Massif et assimilés >75% | H127: Compris entre 5 kg et 7 kg exclus | I127: €/unité | J127: 0.7 | K127: 0.7 | L127: =_xlfn.XLOOKUP(K127,'Codes éco-part'!$C$6:$C$923,'Codes éco-part'!$B$6:$B$923) -> 282 | M127: 0.84
A128: REP ABJ | B128: 3 | C128: 21100250000 | E128: Articles de bricolage | F128: Outillage à main et leurs accessoires | G128: Panneaux de particules ou OSB >75% | H128: Eléments de toutes dimensions et poids | I128: € / Tonne | J128: 110 | K128: 110 | L128: =_xlfn.XLOOKUP(K128,'Codes éco-part'!$C$6:$C$923,'Codes éco-part'!$B$6:$B$923) -> 615 | M128: 132
A129: REP ABJ | B129: 3 | C129: 21100250001 | D129: modulé | E129: Articles de bricolage | F129: Outillage à main et leurs accessoires | G129: Panneaux de particules ou OSB >75% | H129: Eléments de toutes dimensions et poids | I129: € / Tonne | J129: 99 | K129: 99 | L129: =_xlfn.XLOOKUP(K129,'Codes éco-part'!$C$6:$C$923,'Codes éco-part'!$B$6:$B$923) -> 940 | M129: 118.8
A130: REP ABJ | B130: 3 | C130: 21100250200 | E130: Articles de bricolage | F130: Outillage à main et leurs accessoires | G130: Panneaux de particules ou OSB >75% | H130: Inférieur strictement à 0,5 kg | I130: €/unité | J130: 0.02 | K130: 0.02 | L130: =_xlfn.XLOOKUP(K130,'Codes éco-part'!$C$6:$C$923,'Codes éco-part'!$B$6:$B$923) -> 047 | M130: =ROUND(K130*1.2,2) -> 0.02
A131: REP ABJ | B131: 3 | C131: 21100250201 | D131: modulé | E131: Articles de bricolage | F131: Outillage à main et leurs accessoires | G131: Panneaux de particules ou OSB >75% | H131: Inférieur strictement à 0,5 kg | I131: €/unité | J131: 0.02 | K131: 0.02 | L131: =_xlfn.XLOOKUP(K131,'Codes éco-part'!$C$6:$C$923,'Codes éco-part'!$B$6:$B$923) -> 047 | M131: 0.02
A132: REP ABJ | B132: 3 | C132: 21100250210 | E132: Articles de bricolage | F132: Outillage à main et leurs accessoires | G132: Panneaux de particules ou OSB >75% | H132: Compris entre 0,5 kg et 1 kg exclus | I132: €/unité | J132: 0.08 | K132: 0.08 | L132: =_xlfn.XLOOKUP(K132,'Codes éco-part'!$C$6:$C$923,'Codes éco-part'!$B$6:$B$923) -> 003 | M132: 0.1
A133: REP ABJ | B133: 3 | C133: 21100250211 | D133: modulé | E133: Articles de bricolage | F133: Outillage à main et leurs accessoires | G133: Panneaux de particules ou OSB >75% | H133: Compris entre 0,5 kg et 1 kg exclus | I133: €/unité | J133: 0.07 | K133: 0.07 | L133: =_xlfn.XLOOKUP(K133,'Codes éco-part'!$C$6:$C$923,'Codes éco-part'!$B$6:$B$923) -> 247 | M133: 0.08
A134: REP ABJ | B134: 3 | C134: 21100250220 | E134: Articles de bricolage | F134: Outillage à main et leurs accessoires | G134: Panneaux de particules ou OSB >75% | H134: Compris entre 1 kg et 2 kg exclus | I134: €/unité | J134: 0.16 | K134: 0.16 | L134: =_xlfn.XLOOKUP(K134,'Codes éco-part'!$C$6:$C$923,'Codes éco-part'!$B$6:$B$923) -> 099 | M134: 0.19
A135: REP ABJ | B135: 3 | C135: 21100250221 | D135: modulé | E135: Articles de bricolage | F135: Outillage à main et leurs accessoires | G135: Panneaux de particules ou OSB >75% | H135: Compris entre 1 kg et 2 kg exclus | I135: €/unité | J135: 0.14 | K135: 0.14 | L135: =_xlfn.XLOOKUP(K135,'Codes éco-part'!$C$6:$C$923,'Codes éco-part'!$B$6:$B$923) -> 098 | M135: 0.17
A136: REP ABJ | B136: 3 | C136: 21100250520 | E136: Articles de bricolage | F136: Outillage à main et leurs accessoires | G136: Panneaux de particules ou OSB >75% | H136: Compris entre 2 kg et 3 kg exclus | I136: €/unité | J136: 0.28 | K136: 0.28 | L136: =_xlfn.XLOOKUP(K136,'Codes éco-part'!$C$6:$C$923,'Codes éco-part'!$B$6:$B$923) -> 542 | M136: 0.34
A137: REP ABJ | B137: 3 | C137: 21100250521 | D137: modulé | E137: Articles de bricolage | F137: Outillage à main et leurs accessoires | G137: Panneaux de particules ou OSB >75% | H137: Compris entre 2 kg et 3 kg exclus | I137: €/unité | J137: 0.25 | K137: 0.25 | L137: =_xlfn.XLOOKUP(K137,'Codes éco-part'!$C$6:$C$923,'Codes éco-part'!$B$6:$B$923) -> 095 | M137: 0.3
A138: REP ABJ | B138: 3 | C138: 21100250530 | E138: Articles de bricolage | F138: Outillage à main et leurs accessoires | G138: Panneaux de particules ou OSB >75% | H138: Compris entre 3 kg et 5 kg exclus | I138: €/unité | J138: 0.44 | K138: 0.44 | L138: =_xlfn.XLOOKUP(K138,'Codes éco-part'!$C$6:$C$923,'Codes éco-part'!$B$6:$B$923) -> 281 | M138: 0.53
A139: REP ABJ | B139: 3 | C139: 21100250531 | D139: modulé | E139: Articles de bricolage | F139: Outillage à main et leurs accessoires | G139: Panneaux de particules ou OSB >75% | H139: Compris entre 3 kg et 5 kg exclus | I139: €/unité | J139: 0.4 | K139: 0.4 | L139: =_xlfn.XLOOKUP(K139,'Codes éco-part'!$C$6:$C$923,'Codes éco-part'!$B$6:$B$923) -> 105 | M139: 0.48
A140: REP ABJ | B140: 3 | C140: 21100250540 | E140: Articles de bricolage | F140: Outillage à main et leurs accessoires | G140: Panneaux de particules ou OSB >75% | H140: Compris entre 5 kg et 7 kg exclus | I140: €/unité | J140: 0.78 | K140: 0.78 | L140: =_xlfn.XLOOKUP(K140,'Codes éco-part'!$C$6:$C$923,'Codes éco-part'!$B$6:$B$923) -> 312 | M140: 0.94
A141: REP ABJ | B141: 3 | C141: 21100250541 | D141: modulé | E141: Articles de bricolage | F141: Outillage à main et leurs accessoires | G141: Panneaux de particules ou OSB >75% | H141: Compris entre 5 kg et 7 kg exclus | I141: €/unité | J141: 0.7 | K141: 0.7 | L141: =_xlfn.XLOOKUP(K141,'Codes éco-part'!$C$6:$C$923,'Codes éco-part'!$B$6:$B$923) -> 282 | M141: 0.84
A142: REP ABJ | B142: 3 | C142: 21100280000 | E142: Articles de bricolage | F142: Outillage à main et leurs accessoires | G142: Métal >90% | H142: Eléments de toutes dimensions et poids | I142: € / Tonne | J142: 14 | K142: 14 | L142: =_xlfn.XLOOKUP(K142,'Codes éco-part'!$C$6:$C$923,'Codes éco-part'!$B$6:$B$923) -> 532 | M142: 16.8
A143: REP ABJ | B143: 3 | C143: 21100280001 | D143: modulé | E143: Articles de bricolage | F143: Outillage à main et leurs accessoires | G143: Métal >90% | H143: Eléments de toutes dimensions et poids | I143: € / Tonne | J143: 12.6 | K143: 12.6 | L143: =_xlfn.XLOOKUP(K143,'Codes éco-part'!$C$6:$C$923,'Codes éco-part'!$B$6:$B$923) -> 939 | M143: 15.12
A144: REP ABJ | B144: 3 | C144: 21100280200 | E144: Articles de bricolage | F144: Outillage à main et leurs accessoires | G144: Métal >90% | H144: Inférieur strictement à 0,5 kg | I144: €/unité | J144: 0.01 | K144: 0.01 | L144: =_xlfn.XLOOKUP(K144,'Codes éco-part'!$C$6:$C$923,'Codes éco-part'!$B$6:$B$923) -> 260 | M144: 0.01
A145: REP ABJ | B145: 3 | C145: 21100280201 | D145: modulé | E145: Articles de bricolage | F145: Outillage à main et leurs accessoires | G145: Métal >90% | H145: Inférieur strictement à 0,5 kg | I145: €/unité | J145: 0.01 | K145: 0.01 | L145: =_xlfn.XLOOKUP(K145,'Codes éco-part'!$C$6:$C$923,'Codes éco-part'!$B$6:$B$923) -> 260 | M145: 0.01
A146: REP ABJ | B146: 3 | C146: 21100280210 | E146: Articles de bricolage | F146: Outillage à main et leurs accessoires | G146: Métal >90% | H146: Compris entre 0,5 kg et 1 kg exclus | I146: €/unité | J146: 0.01 | K146: 0.01 | L146: =_xlfn.XLOOKUP(K146,'Codes éco-part'!$C$6:$C$923,'Codes éco-part'!$B$6:$B$923) -> 260 | M146: 0.01
A147: REP ABJ | B147: 3 | C147: 21100280211 | D147: modulé | E147: Articles de bricolage | F147: Outillage à main et leurs accessoires | G147: Métal >90% | H147: Compris entre 0,5 kg et 1 kg exclus | I147: €/unité | J147: 0.01 | K147: 0.01 | L147: =_xlfn.XLOOKUP(K147,'Codes éco-part'!$C$6:$C$923,'Codes éco-part'!$B$6:$B$923) -> 260 | M147: 0.01
A148: REP ABJ | B148: 3 | C148: 21100280220 | E148: Articles de bricolage | F148: Outillage à main et leurs accessoires | G148: Métal >90% | H148: Compris entre 1 kg et 2 kg exclus | I148: €/unité | J148: 0.02 | K148: 0.02 | L148: =_xlfn.XLOOKUP(K148,'Codes éco-part'!$C$6:$C$923,'Codes éco-part'!$B$6:$B$923) -> 047 | M148: 0.02
A149: REP ABJ | B149: 3 | C149: 21100280221 | D149: modulé | E149: Articles de bricolage | F149: Outillage à main et leurs accessoires | G149: Métal >90% | H149: Compris entre 1 kg et 2 kg exclus | I149: €/unité | J149: 0.02 | K149: 0.02 | L149: =_xlfn.XLOOKUP(K149,'Codes éco-part'!$C$6:$C$923,'Codes éco-part'!$B$6:$B$923) -> 047 | M149: 0.02
A150: REP ABJ | B150: 3 | C150: 21100280520 | E150: Articles de bricolage | F150: Outillage à main et leurs accessoires | G150: Métal >90% | H150: Compris entre 2 kg et 3 kg exclus | I150: €/unité | J150: 0.04 | K150: 0.04 | L150: =_xlfn.XLOOKUP(K150,'Codes éco-part'!$C$6:$C$923,'Codes éco-part'!$B$6:$B$923) -> 002 | M150: 0.05
A151: REP ABJ | B151: 3 | C151: 21100280521 | D151: modulé | E151: Articles de bricolage | F151: Outillage à main et leurs accessoires | G151: Métal >90% | H151: Compris entre 2 kg et 3 kg exclus | I151: €/unité | J151: 0.04 | K151: 0.04 | L151: =_xlfn.XLOOKUP(K151,'Codes éco-part'!$C$6:$C$923,'Codes éco-part'!$B$6:$B$923) -> 002 | M151: 0.05
A152: REP ABJ | B152: 3 | C152: 21100280530 | E152: Articles de bricolage | F152: Outillage à main et leurs accessoires | G152: Métal >90% | H152: Compris entre 3 kg et 5 kg exclus | I152: €/unité | J152: 0.06 | K152: 0.06 | L152: =_xlfn.XLOOKUP(K152,'Codes éco-part'!$C$6:$C$923,'Codes éco-part'!$B$6:$B$923) -> 096 | M152: 0.07
A153: REP ABJ | B153: 3 | C153: 21100280531 | D153: modulé | E153: Articles de bricolage | F153: Outillage à main et leurs accessoires | G153: Métal >90% | H153: Compris entre 3 kg et 5 kg exclus | I153: €/unité | J153: 0.05 | K153: 0.05 | L153: =_xlfn.XLOOKUP(K153,'Codes éco-part'!$C$6:$C$923,'Codes éco-part'!$B$6:$B$923) -> 048 | M153: 0.06
A154: REP ABJ | B154: 3 | C154: 21100280540 | E154: Articles de bricolage | F154: Outillage à main et leurs accessoires | G154: Métal >90% | H154: Compris entre 5 kg et 7 kg exclus | I154: €/unité | J154: 0.1 | K154: 0.1 | L154: =_xlfn.XLOOKUP(K154,'Codes éco-part'!$C$6:$C$923,'Codes éco-part'!$B$6:$B$923) -> 094 | M154: 0.12
A155: REP ABJ | B155: 3 | C155: 21100280541 | D155: modulé | E155: Articles de bricolage | F155: Outillage à main et leurs accessoires | G155: Métal >90% | H155: Compris entre 5 kg et 7 kg exclus | I155: €/unité | J155: 0.09 | K155: 0.09 | L155: =_xlfn.XLOOKUP(K155,'Codes éco-part'!$C$6:$C$923,'Codes éco-part'!$B$6:$B$923) -> 049 | M155: 0.11
A156: REP ABJ | B156: 3 | C156: 21100400000 | E156: Articles de bricolage | F156: Outillage à main et leurs accessoires | G156: Assemblage caoutchouc synthétique ou latex >50% avec d'autres matériaux | H156: Eléments de toutes dimensions et poids | I156: € / Tonne | J156: 322 | K156: 322 | L156: =_xlfn.XLOOKUP(K156,'Codes éco-part'!$C$6:$C$923,'Codes éco-part'!$B$6:$B$923) -> 607 | M156: 386.4
A157: REP ABJ | B157: 3 | C157: 21100400001 | D157: modulé | E157: Articles de bricolage | F157: Outillage à main et leurs accessoires | G157: Assemblage caoutchouc synthétique ou latex >50% avec d'autres matériaux | H157: Eléments de toutes dimensions et poids | I157: € / Tonne | J157: 289.8 | K157: 289.8 | L157: =_xlfn.XLOOKUP(K157,'Codes éco-part'!$C$6:$C$923,'Codes éco-part'!$B$6:$B$923) -> 936 | M157: 347.76
A158: REP ABJ | B158: 3 | C158: 21100400200 | E158: Articles de bricolage | F158: Outillage à main et leurs accessoires | G158: Assemblage caoutchouc synthétique ou latex >50% avec d'autres matériaux | H158: Inférieur strictement à 0,5 kg | I158: €/unité | J158: 0.08 | K158: 0.08 | L158: =_xlfn.XLOOKUP(K158,'Codes éco-part'!$C$6:$C$923,'Codes éco-part'!$B$6:$B$923) -> 003 | M158: 0.1
A159: REP ABJ | B159: 3 | C159: 21100400201 | D159: modulé | E159: Articles de bricolage | F159: Outillage à main et leurs accessoires | G159: Assemblage caoutchouc synthétique ou latex >50% avec d'autres matériaux | H159: Inférieur strictement à 0,5 kg | I159: €/unité | J159: 0.07 | K159: 0.07 | L159: =_xlfn.XLOOKUP(K159,'Codes éco-part'!$C$6:$C$923,'Codes éco-part'!$B$6:$B$923) -> 247 | M159: 0.08
A160: REP ABJ | B160: 3 | C160: 21100400210 | E160: Articles de bricolage | F160: Outillage à main et leurs accessoires | G160: Assemblage caoutchouc synthétique ou latex >50% avec d'autres matériaux | H160: Compris entre 0,5 kg et 1 kg exclus | I160: €/unité | J160: 0.24 | K160: 0.24 | L160: =_xlfn.XLOOKUP(K160,'Codes éco-part'!$C$6:$C$923,'Codes éco-part'!$B$6:$B$923) -> 248 | M160: 0.29
A161: REP ABJ | B161: 3 | C161: 21100400211 | D161: modulé | E161: Articles de bricolage | F161: Outillage à main et leurs accessoires | G161: Assemblage caoutchouc synthétique ou latex >50% avec d'autres matériaux | H161: Compris entre 0,5 kg et 1 kg exclus | I161: €/unité | J161: 0.22 | K161: 0.22 | L161: =_xlfn.XLOOKUP(K161,'Codes éco-part'!$C$6:$C$923,'Codes éco-part'!$B$6:$B$923) -> 263 | M161: 0.26
A162: REP ABJ | B162: 3 | C162: 21100400220 | E162: Articles de bricolage | F162: Outillage à main et leurs accessoires | G162: Assemblage caoutchouc synthétique ou latex >50% avec d'autres matériaux | H162: Compris entre 1 kg et 2 kg exclus | I162: €/unité | J162: 0.48 | K162: 0.48 | L162: =_xlfn.XLOOKUP(K162,'Codes éco-part'!$C$6:$C$923,'Codes éco-part'!$B$6:$B$923) -> 606 | M162: 0.58
A163: REP ABJ | B163: 3 | C163: 21100400221 | D163: modulé | E163: Articles de bricolage | F163: Outillage à main et leurs accessoires | G163: Assemblage caoutchouc synthétique ou latex >50% avec d'autres matériaux | H163: Compris entre 1 kg et 2 kg exclus | I163: €/unité | J163: 0.43 | K163: 0.43 | L163: =_xlfn.XLOOKUP(K163,'Codes éco-part'!$C$6:$C$923,'Codes éco-part'!$B$6:$B$923) -> 506 | M163: 0.52
A164: REP ABJ | B164: 3 | C164: 21100400520 | E164: Articles de bricolage | F164: Outillage à main et leurs accessoires | G164: Assemblage caoutchouc synthétique ou latex >50% avec d'autres matériaux | H164: Compris entre 2 kg et 3 kg exclus | I164: €/unité | J164: 0.81 | K164: 0.81 | L164: =_xlfn.XLOOKUP(K164,'Codes éco-part'!$C$6:$C$923,'Codes éco-part'!$B$6:$B$923) -> 112 | M164: 0.97
A165: REP ABJ | B165: 3 | C165: 21100400521 | D165: modulé | E165: Articles de bricolage | F165: Outillage à main et leurs accessoires | G165: Assemblage caoutchouc synthétique ou latex >50% avec d'autres matériaux | H165: Compris entre 2 kg et 3 kg exclus | I165: €/unité | J165: 0.73 | K165: 0.73 | L165: =_xlfn.XLOOKUP(K165,'Codes éco-part'!$C$6:$C$923,'Codes éco-part'!$B$6:$B$923) -> 255 | M165: 0.88
A166: REP ABJ | B166: 3 | C166: 21100400530 | E166: Articles de bricolage | F166: Outillage à main et leurs accessoires | G166: Assemblage caoutchouc synthétique ou latex >50% avec d'autres matériaux | H166: Compris entre 3 kg et 5 kg exclus | I166: €/unité | J166: 1.29 | K166: 1.29 | L166: =_xlfn.XLOOKUP(K166,'Codes éco-part'!$C$6:$C$923,'Codes éco-part'!$B$6:$B$923) -> 608 | M166: 1.55
A167: REP ABJ | B167: 3 | C167: 21100400531 | D167: modulé | E167: Articles de bricolage | F167: Outillage à main et leurs accessoires | G167: Assemblage caoutchouc synthétique ou latex >50% avec d'autres matériaux | H167: Compris entre 3 kg et 5 kg exclus | I167: €/unité | J167: 1.16 | K167: 1.16 | L167: =_xlfn.XLOOKUP(K167,'Codes éco-part'!$C$6:$C$923,'Codes éco-part'!$B$6:$B$923) -> 504 | M167: 1.39
A168: REP ABJ | B168: 3 | C168: 21100400540 | E168: Articles de bricolage | F168: Outillage à main et leurs accessoires | G168: Assemblage caoutchouc synthétique ou latex >50% avec d'autres matériaux | H168: Compris entre 5 kg et 7 kg exclus | I168: €/unité | J168: 2.25 | K168: 2.25 | L168: =_xlfn.XLOOKUP(K168,'Codes éco-part'!$C$6:$C$923,'Codes éco-part'!$B$6:$B$923) -> 118 | M168: 2.7
A169: REP ABJ | B169: 3 | C169: 21100400541 | D169: modulé | E169: Articles de bricolage | F169: Outillage à main et leurs accessoires | G169: Assemblage caoutchouc synthétique ou latex >50% avec d'autres matériaux | H169: Compris entre 5 kg et 7 kg exclus | I169: €/unité | J169: 2.03 | K169: 2.03 | L169: =_xlfn.XLOOKUP(K169,'Codes éco-part'!$C$6:$C$923,'Codes éco-part'!$B$6:$B$923) -> 937 | M169: 2.44
A170: REP ABJ | B170: 3 | C170: 21100410000 | E170: Articles de bricolage | F170: Outillage à main et leurs accessoires | G170: Plastiques (mono résine) >90% | H170: Eléments de toutes dimensions et poids | I170: € / Tonne | J170: 200 | K170: 200 | L170: =_xlfn.XLOOKUP(K170,'Codes éco-part'!$C$6:$C$923,'Codes éco-part'!$B$6:$B$923) -> 601 | M170: 240
A171: REP ABJ | B171: 3 | C171: 21100410001 | D171: modulé | E171: Articles de bricolage | F171: Outillage à main et leurs accessoires | G171: Plastiques (mono résine) >90% | H171: Eléments de toutes dimensions et poids | I171: € / Tonne | J171: 180 | K171: 180 | L171: =_xlfn.XLOOKUP(K171,'Codes éco-part'!$C$6:$C$923,'Codes éco-part'!$B$6:$B$923) -> 941 | M171: 216
A172: REP ABJ | B172: 3 | C172: 21100410200 | E172: Articles de bricolage | F172: Outillage à main et leurs accessoires | G172: Plastiques (mono résine) >90% | H172: Inférieur strictement à 0,5 kg | I172: €/unité | J172: 0.05 | K172: 0.05 | L172: =_xlfn.XLOOKUP(K172,'Codes éco-part'!$C$6:$C$923,'Codes éco-part'!$B$6:$B$923) -> 048 | M172: 0.06
A173: REP ABJ | B173: 3 | C173: 21100410201 | D173: modulé | E173: Articles de bricolage | F173: Outillage à main et leurs accessoires | G173: Plastiques (mono résine) >90% | H173: Inférieur strictement à 0,5 kg | I173: €/unité | J173: 0.05 | K173: 0.05 | L173: =_xlfn.XLOOKUP(K173,'Codes éco-part'!$C$6:$C$923,'Codes éco-part'!$B$6:$B$923) -> 048 | M173: 0.06
A174: REP ABJ | B174: 3 | C174: 21100410210 | E174: Articles de bricolage | F174: Outillage à main et leurs accessoires | G174: Plastiques (mono résine) >90% | H174: Compris entre 0,5 kg et 1 kg exclus | I174: €/unité | J174: 0.15 | K174: 0.15 | L174: =_xlfn.XLOOKUP(K174,'Codes éco-part'!$C$6:$C$923,'Codes éco-part'!$B$6:$B$923) -> 050 | M174: 0.18
A175: REP ABJ | B175: 3 | C175: 21100410211 | D175: modulé | E175: Articles de bricolage | F175: Outillage à main et leurs accessoires | G175: Plastiques (mono résine) >90% | H175: Compris entre 0,5 kg et 1 kg exclus | I175: €/unité | J175: 0.14 | K175: 0.14 | L175: =_xlfn.XLOOKUP(K175,'Codes éco-part'!$C$6:$C$923,'Codes éco-part'!$B$6:$B$923) -> 098 | M175: 0.17
A176: REP ABJ | B176: 3 | C176: 21100410220 | E176: Articles de bricolage | F176: Outillage à main et leurs accessoires | G176: Plastiques (mono résine) >90% | H176: Compris entre 1 kg et 2 kg exclus | I176: €/unité | J176: 0.3 | K176: 0.3 | L176: =_xlfn.XLOOKUP(K176,'Codes éco-part'!$C$6:$C$923,'Codes éco-part'!$B$6:$B$923) -> 446 | M176: 0.36
A177: REP ABJ | B177: 3 | C177: 21100410221 | D177: modulé | E177: Articles de bricolage | F177: Outillage à main et leurs accessoires | G177: Plastiques (mono résine) >90% | H177: Compris entre 1 kg et 2 kg exclus | I177: €/unité | J177: 0.27 | K177: 0.27 | L177: =_xlfn.XLOOKUP(K177,'Codes éco-part'!$C$6:$C$923,'Codes éco-part'!$B$6:$B$923) -> 103 | M177: 0.32
A178: REP ABJ | B178: 3 | C178: 21100410520 | E178: Articles de bricolage | F178: Outillage à main et leurs accessoires | G178: Plastiques (mono résine) >90% | H178: Compris entre 2 kg et 3 kg exclus | I178: €/unité | J178: 0.5 | K178: 0.5 | L178: =_xlfn.XLOOKUP(K178,'Codes éco-part'!$C$6:$C$923,'Codes éco-part'!$B$6:$B$923) -> 053 | M178: 0.6
A179: REP ABJ | B179: 3 | C179: 21100410521 | D179: modulé | E179: Articles de bricolage | F179: Outillage à main et leurs accessoires | G179: Plastiques (mono résine) >90% | H179: Compris entre 2 kg et 3 kg exclus | I179: €/unité | J179: 0.45 | K179: 0.45 | L179: =_xlfn.XLOOKUP(K179,'Codes éco-part'!$C$6:$C$923,'Codes éco-part'!$B$6:$B$923) -> 325 | M179: 0.54
A180: REP ABJ | B180: 3 | C180: 21100410530 | E180: Articles de bricolage | F180: Outillage à main et leurs accessoires | G180: Plastiques (mono résine) >90% | H180: Compris entre 3 kg et 5 kg exclus | I180: €/unité | J180: 0.8 | K180: 0.8 | L180: =_xlfn.XLOOKUP(K180,'Codes éco-part'!$C$6:$C$923,'Codes éco-part'!$B$6:$B$923) -> 456 | M180: 0.96
A181: REP ABJ | B181: 3 | C181: 21100410531 | D181: modulé | E181: Articles de bricolage | F181: Outillage à main et leurs accessoires | G181: Plastiques (mono résine) >90% | H181: Compris entre 3 kg et 5 kg exclus | I181: €/unité | J181: 0.72 | K181: 0.72 | L181: =_xlfn.XLOOKUP(K181,'Codes éco-part'!$C$6:$C$923,'Codes éco-part'!$B$6:$B$923) -> 454 | M181: 0.86
A182: REP ABJ | B182: 3 | C182: 21100410540 | E182: Articles de bricolage | F182: Outillage à main et leurs accessoires | G182: Plastiques (mono résine) >90% | H182: Compris entre 5 kg et 7 kg exclus | I182: €/unité | J182: 1.4 | K182: 1.4 | L182: =_xlfn.XLOOKUP(K182,'Codes éco-part'!$C$6:$C$923,'Codes éco-part'!$B$6:$B$923) -> 463 | M182: 1.68
A183: REP ABJ | B183: 3 | C183: 21100410541 | D183: modulé | E183: Articles de bricolage | F183: Outillage à main et leurs accessoires | G183: Plastiques (mono résine) >90% | H183: Compris entre 5 kg et 7 kg exclus | I183: €/unité | J183: 1.26 | K183: 1.26 | L183: =_xlfn.XLOOKUP(K183,'Codes éco-part'!$C$6:$C$923,'Codes éco-part'!$B$6:$B$923) -> 568 | M183: 1.51
A184: REP ABJ | B184: 3 | C184: 21100420000 | E184: Articles de bricolage | F184: Outillage à main et leurs accessoires | G184: Polyterephtalate d'Ethylène (PET) >90% | H184: Eléments de toutes dimensions et poids | I184: € / Tonne | J184: 200 | K184: 200 | L184: =_xlfn.XLOOKUP(K184,'Codes éco-part'!$C$6:$C$923,'Codes éco-part'!$B$6:$B$923) -> 601 | M184: 240
A185: REP ABJ | B185: 3 | C185: 21100420001 | D185: modulé | E185: Articles de bricolage | F185: Outillage à main et leurs accessoires | G185: Polyterephtalate d'Ethylène (PET) >90% | H185: Eléments de toutes dimensions et poids | I185: € / Tonne | J185: 180 | K185: 180 | L185: =_xlfn.XLOOKUP(K185,'Codes éco-part'!$C$6:$C$923,'Codes éco-part'!$B$6:$B$923) -> 941 | M185: 216
A186: REP ABJ | B186: 3 | C186: 21100420200 | E186: Articles de bricolage | F186: Outillage à main et leurs accessoires | G186: Polyterephtalate d'Ethylène (PET) >90% | H186: Inférieur strictement à 0,5 kg | I186: €/unité | J186: 0.05 | K186: 0.05 | L186: =_xlfn.XLOOKUP(K186,'Codes éco-part'!$C$6:$C$923,'Codes éco-part'!$B$6:$B$923) -> 048 | M186: 0.06
A187: REP ABJ | B187: 3 | C187: 21100420201 | D187: modulé | E187: Articles de bricolage | F187: Outillage à main et leurs accessoires | G187: Polyterephtalate d'Ethylène (PET) >90% | H187: Inférieur strictement à 0,5 kg | I187: €/unité | J187: 0.05 | K187: 0.05 | L187: =_xlfn.XLOOKUP(K187,'Codes éco-part'!$C$6:$C$923,'Codes éco-part'!$B$6:$B$923) -> 048 | M187: 0.06
A188: REP ABJ | B188: 3 | C188: 21100420210 | E188: Articles de bricolage | F188: Outillage à main et leurs accessoires | G188: Polyterephtalate d'Ethylène (PET) >90% | H188: Compris entre 0,5 kg et 1 kg exclus | I188: €/unité | J188: 0.15 | K188: 0.15 | L188: =_xlfn.XLOOKUP(K188,'Codes éco-part'!$C$6:$C$923,'Codes éco-part'!$B$6:$B$923) -> 050 | M188: 0.18
A189: REP ABJ | B189: 3 | C189: 21100420211 | D189: modulé | E189: Articles de bricolage | F189: Outillage à main et leurs accessoires | G189: Polyterephtalate d'Ethylène (PET) >90% | H189: Compris entre 0,5 kg et 1 kg exclus | I189: €/unité | J189: 0.14 | K189: 0.14 | L189: =_xlfn.XLOOKUP(K189,'Codes éco-part'!$C$6:$C$923,'Codes éco-part'!$B$6:$B$923) -> 098 | M189: 0.17
A190: REP ABJ | B190: 3 | C190: 21100420220 | E190: Articles de bricolage | F190: Outillage à main et leurs accessoires | G190: Polyterephtalate d'Ethylène (PET) >90% | H190: Compris entre 1 kg et 2 kg exclus | I190: €/unité | J190: 0.3 | K190: 0.3 | L190: =_xlfn.XLOOKUP(K190,'Codes éco-part'!$C$6:$C$923,'Codes éco-part'!$B$6:$B$923) -> 446 | M190: 0.36
A191: REP ABJ | B191: 3 | C191: 21100420221 | D191: modulé | E191: Articles de bricolage | F191: Outillage à main et leurs accessoires | G191: Polyterephtalate d'Ethylène (PET) >90% | H191: Compris entre 1 kg et 2 kg exclus | I191: €/unité | J191: 0.27 | K191: 0.27 | L191: =_xlfn.XLOOKUP(K191,'Codes éco-part'!$C$6:$C$923,'Codes éco-part'!$B$6:$B$923) -> 103 | M191: 0.32
A192: REP ABJ | B192: 3 | C192: 21100420520 | E192: Articles de bricolage | F192: Outillage à main et leurs accessoires | G192: Polyterephtalate d'Ethylène (PET) >90% | H192: Compris entre 2 kg et 3 kg exclus | I192: €/unité | J192: 0.5 | K192: 0.5 | L192: =_xlfn.XLOOKUP(K192,'Codes éco-part'!$C$6:$C$923,'Codes éco-part'!$B$6:$B$923) -> 053 | M192: 0.6
A193: REP ABJ | B193: 3 | C193: 21100420521 | D193: modulé | E193: Articles de bricolage | F193: Outillage à main et leurs accessoires | G193: Polyterephtalate d'Ethylène (PET) >90% | H193: Compris entre 2 kg et 3 kg exclus | I193: €/unité | J193: 0.45 | K193: 0.45 | L193: =_xlfn.XLOOKUP(K193,'Codes éco-part'!$C$6:$C$923,'Codes éco-part'!$B$6:$B$923) -> 325 | M193: 0.54
A194: REP ABJ | B194: 3 | C194: 21100420530 | E194: Articles de bricolage | F194: Outillage à main et leurs accessoires | G194: Polyterephtalate d'Ethylène (PET) >90% | H194: Compris entre 3 kg et 5 kg exclus | I194: €/unité | J194: 0.8 | K194: 0.8 | L194: =_xlfn.XLOOKUP(K194,'Codes éco-part'!$C$6:$C$923,'Codes éco-part'!$B$6:$B$923) -> 456 | M194: =ROUND(K194*1.2,2) -> 0.96
A195: REP ABJ | B195: 3 | C195: 21100420531 | D195: modulé | E195: Articles de bricolage | F195: Outillage à main et leurs accessoires | G195: Polyterephtalate d'Ethylène (PET) >90% | H195: Compris entre 3 kg et 5 kg exclus | I195: €/unité | J195: 0.72 | K195: 0.72 | L195: =_xlfn.XLOOKUP(K195,'Codes éco-part'!$C$6:$C$923,'Codes éco-part'!$B$6:$B$923) -> 454 | M195: 0.86
A196: REP ABJ | B196: 3 | C196: 21100420540 | E196: Articles de bricolage | F196: Outillage à main et leurs accessoires | G196: Polyterephtalate d'Ethylène (PET) >90% | H196: Compris entre 5 kg et 7 kg exclus | I196: €/unité | J196: 1.4 | K196: 1.4 | L196: =_xlfn.XLOOKUP(K196,'Codes éco-part'!$C$6:$C$923,'Codes éco-part'!$B$6:$B$923) -> 463 | M196: 1.68
A197: REP ABJ | B197: 3 | C197: 21100420541 | D197: modulé | E197: Articles de bricolage | F197: Outillage à main et leurs accessoires | G197: Polyterephtalate d'Ethylène (PET) >90% | H197: Compris entre 5 kg et 7 kg exclus | I197: €/unité | J197: 1.26 | K197: 1.26 | L197: =_xlfn.XLOOKUP(K197,'Codes éco-part'!$C$6:$C$923,'Codes éco-part'!$B$6:$B$923) -> 568 | M197: 1.51
A198: REP ABJ | B198: 3 | C198: 21100450000 | E198: Articles de bricolage | F198: Outillage à main et leurs accessoires | G198: PE ou PP ou mélange PP/PE >90% | H198: Eléments de toutes dimensions et poids | I198: € / Tonne | J198: 200 | K198: 200 | L198: =_xlfn.XLOOKUP(K198,'Codes éco-part'!$C$6:$C$923,'Codes éco-part'!$B$6:$B$923) -> 601 | M198: 240
A199: REP ABJ | B199: 3 | C199: 21100450001 | D199: modulé | E199: Articles de bricolage | F199: Outillage à main et leurs accessoires | G199: PE ou PP ou mélange PP/PE >90% | H199: Eléments de toutes dimensions et poids | I199: € / Tonne | J199: 180 | K199: 180 | L199: =_xlfn.XLOOKUP(K199,'Codes éco-part'!$C$6:$C$923,'Codes éco-part'!$B$6:$B$923) -> 941 | M199: 216
A200: REP ABJ | B200: 3 | C200: 21100450200 | E200: Articles de bricolage | F200: Outillage à main et leurs accessoires | G200: PE ou PP ou mélange PP/PE >90% | H200: Inférieur strictement à 0,5 kg | I200: €/unité | J200: 0.05 | K200: 0.05 | L200: =_xlfn.XLOOKUP(K200,'Codes éco-part'!$C$6:$C$923,'Codes éco-part'!$B$6:$B$923) -> 048 | M200: 0.06
... 4300 more rows

Sheet ABJ - Grille d'éco-part
A1: Eco-participations à l’€ / Tonne | B1: Monomatériau (90%) | D1: Majorité (>50%) | F1: Monomatériau (90%) | H1: Majorité (>50%) | I1: Mix matériaux ou Assemblage de plus de 3 matériaux sans matériau majoritaire (hors ceux colonne E) ou composites ou non spécifié
B2: Matériaux inertes hors céramique | C2: Céramique | D2: Métal | E2: Bois certifié ou Bois + Métal | F2: Textile non synthétique ou matériaux biosourcés (Carton, papier, lin, chanvre…) | G2: Textile synthétique, polymères ou Plastique monorésine | H2: Textile synthétique ou Plastique
A4: Cat.3 – Bricolage
A5: 1. Outillage à main et leurs accessoires | B5: 8.75 | C5: - | D5: 14 | E5: 55 | F5: 65 | G5: 200 | H5: 322 | I5: 322
A6: 2. Gros objets et machines non électriques/thermiques et leurs accessoires | B6: 8.75 | C6: 12 | D6: 4.5 | E6: 13 | F6: 40 | G6: 60 | H6: 90 | I6: 90
A7: 3. Outils et supports de travail en hauteur | B7: 8.75 | C7: 12 | D7: 4.5 | E7: 13 | F7: 40 | G7: 60 | H7: 90 | I7: 90
A8: 4. Equipement personnel et accessoires de protection de bricolage | B8: 8.75 | C8: - | D8: 14 | E8: 55 | F8: 65 | G8: 200 | H8: 322 | I8: 322
A9: 5. Bâches de bricolage | B9: - | C9: - | D9: - | E9: - | F9: 65 | G9: 200 | H9: 322 | I9: 322
A10: 6. Seaux, auges et contenants | B10: 8.75 | C10: 15 | D10: 14 | E10: 26 | F10: 65 | G10: 160 | H10: 250 | I10: 250
A12: Cat.4 - Entretien et aménagement du jardin
A13: 7. Outils à main d'entretien du jardin | B13: 8.75 | C13: - | D13: 14 | E13: 55 | F13: 65 | G13: 200 | H13: 322 | I13: 322
A14: 8. Equipement personnel de jardinage | B14: 8.75 | C14: - | D14: 14 | E14: 55 | F14: 65 | G14: 200 | H14: 322 | I14: 322
A15: 9. Pots de fleur et contenants | B15: 8.75 | C15: 15 | D15: 14 | E15: 26 | F15: 65 | G15: 160 | H15: 250 | I15: 250
A16: 10. Bâches, housses, films et filets | B16: - | C16: - | D16: - | E16: - | F16: 65 | G16: 200 | H16: 322 | I16: 322
A17: 11. Equipement de plein air | B17: 8.75 | C17: 12 | D17: 4.5 | E17: 13 | F17: 40 | G17: 60 | H17: 90 | I17: 90
A18: 12. Structures extérieures non maçonnées | B18: 8.75 | C18: 12 | D18: 4.5 | E18: 13 | F18: 40 | G18: 60 | H18: 90 | I18: 90
A20: Barème alternatif par tranches de poids
A23: Gros objets, supports de travail en hauteur, équipements de plein air et structures extérieures | B23: Monomatériau (90%) | D23: Majorité (>50%) | F23: Monomatériau (90%) | H23: Majorité (>50%) | I23: Mix matériaux ou Assemblage de plus de 3 matériaux sans matériau majoritaire (hors ceux colonne E) ou composites ou non spécifié
B24: Matériaux inertes hors céramique | C24: Céramique | D24: Métal | E24: Bois certifié ou Bois + Métal | F24: Textile non synthétique ou matériaux biosourcés (Carton, papier, lin, chanvre…) | G24: Textile synthétique, polymères ou Plastique monorésine | H24: Textile synthétique ou Plastique
A25: inférieur strictement à 0,5 kg | B25: 0.01 | C25: 0.01 | D25: 0.01 | E25: 0.01 | F25: 0.01 | G25: 0.02 | H25: 0.02 | I25: 0.02
A26: compris entre 0,5 kg et 1 kg exclus | B26: 0.01 | C26: 0.01 | D26: 0.01 | E26: 0.01 | F26: 0.03 | G26: 0.05 | H26: 0.07 | I26: 0.07
A27: compris entre 1 kg et 2 kg exclus | B27: 0.01 | C27: 0.02 | D27: 0.01 | E27: 0.02 | F27: 0.06 | G27: 0.09 | H27: 0.14 | I27: 0.14
A28: compris entre 2 kg et 3 kg exclus | B28: 0.02 | C28: 0.03 | D28: 0.01 | E28: 0.03 | F28: 0.1 | G28: 0.15 | H28: 0.23 | I28: 0.23
A29: compris entre 3 kg et 5 kg exclus | B29: 0.04 | C29: 0.05 | D29: 0.02 | E29: 0.05 | F29: 0.16 | G29: 0.24 | H29: 0.36 | I29: 0.36
A30: compris entre 5 kg et 7 kg exclus | B30: 0.06 | C30: 0.08 | D30: 0.03 | E30: 0.09 | F30: 0.28 | G30: 0.42 | H30: 0.63 | I30: 0.63
A31: compris entre 7 kg et 10 kg exclus | B31: 0.09 | C31: 0.12 | D31: 0.05 | E31: 0.13 | F31: 0.4 | G31: 0.6 | H31: 0.9 | I31: 0.9
A32: compris entre 10 kg et 15 kg exclus | B32: 0.13 | C32: 0.18 | D32: 0.07 | E32: 0.2 | F32: 0.6 | G32: 0.9 | H32: 1.35 | I32: 1.35
A33: compris entre 15 kg et 20 kg exclus | B33: 0.18 | C33: 0.24 | D33: 0.09 | E33: 0.26 | F33: 0.8 | G33: 1.2 | H33: 1.8 | I33: 1.8
A34: compris entre 20 kg et 25 kg exclus | B34: 0.22 | C34: 0.3 | D34: 0.11 | E34: 0.33 | F34: 1 | G34: 1.5 | H34: 2.25 | I34: 2.25
A35: compris entre 25 kg et 30 kg exclus | B35: 0.26 | C35: 0.36 | D35: 0.14 | E35: 0.39 | F35: 1.2 | G35: 1.8 | H35: 2.7 | I35: 2.7
A36: compris entre 30 kg et 40 kg exclus | B36: 0.35 | C36: 0.48 | D36: 0.18 | E36: 0.52 | F36: 1.6 | G36: 2.4 | H36: 3.6 | I36: 3.6
A37: compris entre 40 kg et 50 kg exclus | B37: 0.44 | C37: 0.6 | D37: 0.23 | E37: 0.65 | F37: 2 | G37: 3 | H37: 4.5 | I37: 4.5
A40: Outils, bâches et équipement de protection | B40: Monomatériau (90%) | D40: Majorité (>50%) | F40: Monomatériau (90%) | H40: Majorité (>50%) | I40: Mix matériaux ou Assemblage de plus de 3 matériaux sans matériau majoritaire (hors ceux colonne E) ou composites ou non spécifié
B41: Matériaux inertes hors céramique | C41: Céramique | D41: Métal | E41: Bois certifié ou Bois + Métal | F41: Textile non synthétique ou matériaux biosourcés (Carton, papier, lin, chanvre…) | G41: Textile synthétique, polymères ou Plastique monorésine | H41: Textile synthétique ou Plastique
A42: inférieur strictement à 0,5 kg | B42: 0.01 | C42: - | D42: 0.01 | E42: 0.01 | F42: 0.02 | G42: 0.05 | H42: 0.08 | I42: 0.08
A43: compris entre 0,5 kg et 1 kg exclus | B43: 0.01 | C43: - | D43: 0.01 | E43: 0.04 | F43: 0.05 | G43: 0.15 | H43: 0.24 | I43: 0.24
A44: compris entre 1 kg et 2 kg exclus | B44: 0.01 | C44: - | D44: 0.02 | E44: 0.08 | F44: 0.1 | G44: 0.3 | H44: 0.48 | I44: 0.48
A45: compris entre 2 kg et 3 kg exclus | B45: 0.02 | C45: - | D45: 0.04 | E45: 0.14 | F45: 0.16 | G45: 0.5 | H45: 0.81 | I45: 0.81
A46: compris entre 3 kg et 5 kg exclus | B46: 0.04 | C46: - | D46: 0.06 | E46: 0.22 | F46: 0.26 | G46: 0.8 | H46: 1.29 | I46: 1.29
A47: compris entre 5 kg et 7 kg exclus | B47: 0.06 | C47: - | D47: 0.1 | E47: 0.39 | F47: 0.46 | G47: 1.4 | H47: 2.25 | I47: 2.25
A50: Pots de fleur et contenants | B50: Monomatériau (90%) | D50: Majorité (>50%) | F50: Monomatériau (90%) | H50: Majorité (>50%) | I50: Mix matériaux ou Assemblage de plus de 3 matériaux sans matériau majoritaire (hors ceux colonne E) ou composites ou non spécifié
B51: Matériaux inertes hors céramique | C51: Céramique | D51: Métal | E51: Bois certifié ou Bois + Métal | F51: Textile non synthétique ou matériaux biosourcés (Carton, papier, lin, chanvre…) | G51: Textile synthétique, polymères ou Plastique monorésine | H51: Textile synthétique ou Plastique
A52: inférieur strictement à 0,5 kg | B52: 0.01 | C52: 0.01 | D52: 0.01 | E52: 0.01 | F52: 0.02 | G52: 0.04 | H52: 0.06 | I52: 0.06
A53: compris entre 0,5 kg et 1 kg exclus | B53: 0.01 | C53: 0.01 | D53: 0.01 | E53: 0.02 | F53: 0.05 | G53: 0.12 | H53: 0.19 | I53: 0.19
A54: compris entre 1 kg et 2 kg exclus | B54: 0.01 | C54: 0.02 | D54: 0.02 | E54: 0.04 | F54: 0.1 | G54: 0.24 | H54: 0.38 | I54: 0.38
A55: compris entre 2 kg et 3 kg exclus | B55: 0.02 | C55: 0.04 | D55: 0.04 | E55: 0.07 | F55: 0.16 | G55: 0.4 | H55: 0.63 | I55: 0.63
A56: compris entre 3 kg et 5 kg exclus | B56: 0.04 | C56: 0.06 | D56: 0.06 | E56: 0.1 | F56: 0.26 | G56: 0.64 | H56: 1 | I56: 1
A57: compris entre 5 kg et 7 kg exclus | B57: 0.06 | C57: 0.11 | D57: 0.1 | E57: 0.18 | F57: 0.46 | G57: 1.12 | H57: 1.75 | I57: 1.75
A58: compris entre 7 kg et 10 kg exclus | B58: 0.09 | C58: 0.15 | D58: 0.14 | E58: 0.26 | F58: 0.65 | G58: 1.6 | H58: 2.5 | I58: 2.5
A59: compris entre 10 kg et 15 kg exclus | B59: 0.13 | C59: 0.23 | D59: 0.21 | E59: 0.39 | F59: 0.98 | G59: 2.4 | H59: 3.75 | I59: 3.75
A60: compris entre 15 kg et 20 kg exclus | B60: 0.18 | C60: 0.3 | D60: 0.28 | E60: 0.52 | F60: 1.3 | G60: 3.2 | H60: 5 | I60: 5
A63: Codification simplifiée
A65: Eco-participations à l'unité | B65: Tarif par unité | C65: Code correspondant
A68: Cat.3 – Bricolage
A69: 1. Outillage à main et leurs accessoires | B69: 0.24 | C69: 21100000890
A70: 2. Gros objets et machines non électriques/thermiques et leurs accessoires | B70: 1.58 | C70: 21101000890
A71: 3. Outils et supports de travail en hauteur | B71: 1.13 | C71: 21102000890
A72: 4. Equipement personnel et accessoires de protection de bricolage | B72: 0.08 | C72: 21103000890
A73: 5. Bâches de bricolage | B73: 1.29 | C73: 21104000890
A74: 6. Seaux, auges et contenants | B74: 0.06 | C74: 21105000890
A76: Cat.4 - Entretien et aménagement du jardin
A77: 7. Outils à main d'entretien du jardin | B77: 0.48 | C77: 22150000890
A78: 8. Equipement personnel de jardinage | B78: 0.48 | C78: 22151000890
A79: 9. Pots de fleur et contenants | B79: 0.63 | C79: 22152000890
A80: 10. Bâches, housses, films et filets | B80: 0.48 | C80: 22153000890
A81: 11. Equipement de plein air | B81: 0.77 | C81: 22154000890
A82: 12. Structures extérieures non maçonnées | B82: 1.13 | C82: 22155000890

Sheet Codes petits producteurs
A1: Codification simplifiée
A3: Eco-participations à l'unité | B3: Tarif par unité | C3: Code correspondant
A6: Cat.3 – Bricolage
A7: 1. Outillage à main et leurs accessoires | B7: 0.24 | C7: 21100000890
A8: 2. Gros objets et machines non électriques/thermiques et leurs accessoires | B8: 1.58 | C8: 21101000890
A9: 3. Outils et supports de travail en hauteur | B9: 1.13 | C9: 21102000890
A10: 4. Equipement personnel et accessoires de protection de bricolage | B10: 0.08 | C10: 21103000890
A11: 5. Bâches de bricolage | B11: 1.29 | C11: 21104000890
A12: 6. Seaux, auges et contenants | B12: 0.06 | C12: 21105000890
A14: Cat.4 - Entretien et aménagement du jardin
A15: 7. Outils à main d'entretien du jardin | B15: 0.48 | C15: 22150000890
A16: 8. Equipement personnel de jardinage | B16: 0.48 | C16: 22151000890
A17: 9. Pots de fleur et contenants | B17: 0.63 | C17: 22152000890
A18: 10. Bâches, housses, films et filets | B18: 0.48 | C18: 22153000890
A19: 11. Equipement de plein air | B19: 0.77 | C19: 22154000890
A20: 12. Structures extérieures non maçonnées | B20: 1.13 | C20: 22155000890
